{"text_format":"1","workbook":"xlsx","n_sheets":14,"sheets":["HVAC-Tool","HVAC","Program Requirements","HELP","Application NEW","Lookups","CFR 10.430.32","IECC 2009","IECC 2012","Title 24-2013","CFR Title 10.431.97","WSEC 2015","Change Log","Sheet1"],"not_rendered":{"charts":0,"images":35,"macros":1,"external_links":0,"defined_names":254,"comments":2,"pivot_tables":0},"unopened":[],"bounds":{"document_bytes":16777216,"sheet_cells":100000,"rows_first":2000,"rows_last":500,"rows_between":2000,"halvings":0,"cell_chars":16384,"cell_head_chars":4096},"cells_cut":0,"cells_raw":0,"read":"whole","date_system":"1900"}

{"sheet":"HVAC-Tool","index":0,"n_rows":44,"n_cols":77,"rows_kept":44,"cut":false,"hidden":false,"merged":[[39,12,39,14],[42,12,42,14],[35,8,35,9],[35,10,35,11],[36,8,36,9],[36,10,36,11],[41,3,41,5],[42,3,42,5],[36,3,36,5],[37,3,37,5],[38,3,38,5],[39,3,39,5],[40,3,40,5],[42,10,42,11],[37,8,37,9],[37,10,37,11],[38,8,38,9],[38,10,38,11],[39,8,39,9],[39,10,39,11],[35,12,35,14],[36,12,36,14],[26,2,26,5],[26,7,26,8],[26,11,26,13],[26,17,26,18],[15,5,15,6],[16,5,16,6],[8,5,8,11],[9,9,9,11],[26,19,26,20],[25,17,25,23],[23,2,25,5],[26,9,26,10],[21,7,21,9],[27,21,27,22],[28,21,28,22],[7,18,7,23],[21,23,21,24],[8,13,8,14],[9,13,9,14],[7,13,7,14],[26,21,26,22],[9,7,9,8],[16,7,16,11],[15,7,15,11],[7,5,7,8],[7,9,7,11],[13,5,13,11],[14,5,14,6],[21,10,21,11],[21,5,21,6],[21,15,21,20],[21,21,21,22],[17,21,17,24],[17,13,17,20],[18,5,18,11],[27,3,27,5],[28,3,28,5],[5,21,5,22],[20,13,20,14],[20,15,20,24],[6,7,6,8],[6,9,6,11],[18,13,18,14],[19,13,19,14],[8,18,8,23],[10,18,10,23],[11,13,15,24],[5,9,5,11],[5,7,5,8],[10,5,10,11],[6,17,6,23],[14,7,14,8],[14,9,14,11],[12,5,12,11],[17,5,17,11],[18,15,18,24],[19,15,19,20],[19,21,19,24],[20,5,20,11],[19,2,19,6],[19,7,19,11],[34,7,34,24],[35,2,35,5],[43,8,43,9],[43,10,43,11],[43,12,43,14],[35,15,35,16],[36,15,36,16],[37,15,37,16],[38,15,38,16],[39,15,39,16],[40,15,40,16],[41,15,41,16],[42,15,42,16],[43,15,43,16],[40,8,40,9],[40,10,40,11],[40,12,40,14],[41,8,41,9],[41,10,41,11],[41,12,41,14],[42,8,42,9],[41,17,41,18],[37,12,37,14],[38,12,38,14],[35,21,35,22],[36,21,36,22],[37,21,37,22],[38,21,38,22],[42,17,42,18],[43,17,43,18],[36,19,36,20],[37,19,37,20],[38,19,38,20],[39,19,39,20],[40,19,40,20],[41,19,41,20],[42,19,42,20],[43,19,43,20],[36,17,36,18],[37,17,37,18],[38,17,38,18],[39,17,39,18],[40,17,40,18],[35,17,35,18],[35,19,35,20],[29,21,29,22],[30,21,30,22],[31,21,31,22],[32,21,32,22],[21,13,21,14],[43,2,43,5],[21,2,21,4],[34,2,34,6],[33,21,33,22],[39,21,39,22],[40,21,40,22],[41,21,41,22],[42,21,42,22],[43,21,43,22],[33,3,33,5],[31,3,31,5],[33,7,33,8],[33,11,33,13],[28,9,28,10],[29,9,29,10],[33,9,33,10],[32,3,32,5],[29,3,29,5],[30,3,30,5],[39,23,39,24],[40,23,40,24],[41,23,41,24],[42,23,42,24],[43,23,43,24],[35,23,35,24],[36,23,36,24],[37,23,37,24],[38,23,38,24],[4,9,4,11],[6,2,6,6],[11,2,11,6],[4,2,4,4],[2,2,3,11],[20,2,20,4],[7,2,7,4],[8,2,8,4],[9,2,9,4],[10,2,10,4],[12,2,12,4],[13,2,13,4],[14,2,14,4],[15,2,15,4],[16,2,16,4],[18,2,18,4],[17,2,17,4],[4,7,4,8],[9,5,9,6],[29,11,29,13],[30,11,30,13],[32,7,32,8],[32,9,32,10],[30,9,30,10],[31,9,31,10],[27,9,27,10],[27,11,27,13],[28,11,28,13],[28,7,28,8],[27,7,27,8],[31,11,31,13],[32,11,32,13],[29,7,29,8],[30,7,30,8],[31,7,31,8]]}
[]
[]
[null,null,"HVAC Calculator Tool"]
[]
[null,null,{"$f":"\"Version: \" & INDEX(CurrentVersion_List,MATCH(\"a\",CurrentVersionSelected_List,0))","v":"Version: 70320.5"},null,null,null,null,"Application Date"]
[null,null,null,null,null,null,null,"Invoice/Install Date",null,null,null,null,null,{"$f":"IF(InstallDate=\"\",\"\",INDEX(TariffTable,MATCH(InstallState,InstallStates_List,0),3))","v":""},{"$f":"TODAY()","v":"2026-02-23"},{"$f":"IF(InstallDate=\"\",\"Please enter project date\",IF(ISNUMBER(SEARCH(\"applicable to\",N12)),\"Please contact Coordinator\",\"\"))","v":"Please enter project date"}]
[null,null,"Project Information",null,null,null,null,null,null,null,null,null,null,null,null,null,null,"Instructions"]
[null,null,"Project Name/Type",null,null,null,null,null,null,null,null,null,null,null,null,"User Input Fields",null,null,"1 - Complete all yellow fields",null,null,null,null,null,null,null,null,null,null,null,null,null,null,null,null,null,null,null,null,null,null,null,null,null,null,null,null,null,null,null,null,null,null,null,null,null,null,null,null,null,null,null,null,null,null,null,null,null,null,null,null,null,null,null,null,null,true]
[null,null,"Installation Address",null,null,null,null,null,null,null,null,null,null,null,null,"Completed Fields",null,null,"2 - Save a copy of this HVAC tool",null,null,null,null,null,null,null,null,null,null,null,null,null,null,null,null,null,null,null,null,null,null,null,null,null,null,null,null,null,null,null,null,null,null,null,null,null,null,null,null,null,null,null,null,null,null,null,null,null,null,null,null,null,null,null,null,null,false]
[null,null,"City/State/Zip",null,null,null,null,"WY",null,null,null,null,null,null,null,"Calculated Fields",null,null,null,null,null,null,null,null,null,null,null,null,null,null,null,null,null,null,null,null,null,null,null,null,null,null,null,null,null,null,null,null,null,null,null,null,null,null,null,null,null,null,null,null,null,null,null,null,null,null,null,null,null,null,null,null,null,null,null,null,true]
[null,null,"Contractor/Dealer Name",null,null,null,null,null,null,null,null,null,null,null,null,null,null,null,"4 - Follow the instructions on the incentive application"]
[null,null,"Participant Information",null,null,null,null,null,null,null,null,null,null,{"$f":"IF(AND(InstallState=\"\",InstallDate=\"\"),\"\",IF(InstallState=\"\",\"Please select the project state to continue.\",IF(InstallDate=\"\",\"Please enter the project invoice/install date to continue.\",\"Calculator results are in accordance with \"&INDEX(StateName_List,MATCH(InstallState,StateAbrev_List,0))&\" Tariff \"&IF(InstallState=\"CA\",\"A-140\",\"140\"))&\", effective \"&TEXT(INDEX(TariffTable,MATCH(InstallState,InstallStates_List,0),3),\"mm/dd/yyyy\")&\", and are estimates only.\"))&IF(InstallState=\"\",\"\",IF(InstallDate=\"\",\"\",IF(InstallDate<INDEX(TariffTable,MATCH(InstallState,InstallStates_List,0),3),\" Please contact your project Coordinator for an HVAC calculator tool applicable to your project.\",\" Actual energy savings and incentives paid will be determined based on the results of a post-installation inspection and review of project invoices.\"&\" Calculator results are only valid for equipment purchased and installed, on or after the tariff effective date.\")))","v":"Please enter the project invoice/install date to continue., effective 10/02/2020, and are estimates only."}]
[null,null,"Business Name"]
[null,null,"Address"]
[null,null,"City/State/Zip"]
[null,null,"Contact Person/Title"]
[null,null,"Phone/Email",null,null,null,null,null,null,null,null,null,null,"Incentive Payee Information"]
[null,null,"Business Type",null,null,null,null,null,null,null,null,null,null,"Select where the incentive will be paid in the drop down selector >>"]
[null,null,"Participant is >>",null,null,null,null,null,null,null,null,null,null,"Business Name"]
[null,null,"Account Information (as shown on bill)",null,null,null,null,{"$f":"IF(RateSchedule=\"\",\"\",RateScheduleEffectiveDateNote)","v":""},null,null,null,null,null,"Contact Name/Phone"]
[null,null,"Account Name",null,null,null,null,null,null,null,null,null,null,"Address"]
[null,null,"Account/Meter/Rate",null,null,null,null,null,null,null,null,null,null,"City/State/Zip"]
[]
[null,null,"Equipment Information"]
[]
[null,null,null,null,null,null,null,null,null,null,null,null,null,null,null,null,null,"HVAC Equipment Efficiencies"]
[null,null,"HVAC Type",null,null,null,"System Type","Manufacturer",null,"Model Number",null,"AHRI Reference\nNumber",null,null,"Cooling Capacity (BTU/Hr)","Cooling Capacity\n(Tons)","EER","SEER / IEER",null,"HSPF / COP",null,"Wet/Dry Bulb\nTemperature (F°)",null,"Quantity","HP (CTA-2045)"]
[null,null,1,null,null,null,null,null,null,null,null,null,null,null,null,{"$f":"IF($O28=\"\",\"\",ROUND($O28/12000,1))","v":""}]
[null,null,2,null,null,null,null,null,null,null,null,null,null,null,null,""]
[null,null,3,null,null,null,null,null,null,null,null,null,null,null,null,""]
[null,null,4,null,null,null,null,null,null,null,null,null,null,null,null,""]
[null,null,5,null,null,null,null,null,null,null,null,null,null,null,null,""]
[null,null,6,null,null,null,null,null,null,null,null,null,null,null,null,""]
[null,null,7,null,null,null,null,null,null,null,null,null,null,null,null,""]
[null,null,"Savings/Incentive Information",null,null,null,null,{"$f":"IF(InstallState=\"\",\"\",\"Baseline Energy Code: \" & HVAC!D26)","v":"Baseline Energy Code: IECC 2009, Tables 503.2.3(1) & 503.2.3(2)"}]
[null,null,"HVAC Type",null,null,null,"Incentive","Incentive Rate ($/ton)","kWh/Yr\nSavings",null,"kW/Mo\nSavings",null,"Deemed Costs",null,null,"Monthly Savings",null,"Annual Savings",null,"Net Cost",null,"Pre-Incentive\nPayback (Years)",null,"Post-Incentive\nPayback (Years)"]
[null,null,1,{"$f":"IF(D28=\"\",\"\",D28)","v":""},null,null,{"$f":"IF(HVAC!Q17=0,\"\",HVAC!Q17)","v":""},{"$f":"IF($O28=\"\",\"\",IFERROR(ROUND(G37/(P28*X28),1),\"\"))","v":""},{"$f":"IF(HVAC!S17=0,\"\",HVAC!S17)","v":""},null,{"$f":"IF(HVAC!T17=0,\"\",HVAC!T17)","v":""},null,{"$f":"IF(HVAC!U17=0,\"\",HVAC!U17)","v":""},null,null,{"$f":"IF(I37=\"\",\"\",IFERROR(I37/12*HVAC!$BC$9,0)+IFERROR(K37*HVAC!$BD$9,0))","v":""},null,{"$f":"IF(I37=\"\",\"\",IFERROR(I37*HVAC!$BC$9,0)+IFERROR(K37*12*HVAC!$BD$9,0))","v":""},null,{"$f":"IF(M37=\"\",\"\",M37-G37)","v":""},null,{"$f":"IF(R37=\"\",\"\",M37/R37)","v":""},null,{"$f":"IF(R37=\"\",\"\",T37/R37)","v":""}]
[null,null,2,{"$f":"IF(D29=\"\",\"\",D29)","v":""},null,null,{"$f":"IF(HVAC!Q18=0,\"\",HVAC!Q18)","v":""},{"$f":"IF($O29=\"\",\"\",IFERROR(ROUND(G38/(P29*X29),1),\"\"))","v":""},{"$f":"IF(HVAC!S18=0,\"\",HVAC!S18)","v":""},null,{"$f":"IF(HVAC!T18=0,\"\",HVAC!T18)","v":""},null,{"$f":"IF(HVAC!U18=0,\"\",HVAC!U18)","v":""},null,null,{"$f":"IF(I38=\"\",\"\",IFERROR(I38/12*HVAC!$BC$9,0)+IFERROR(K38*HVAC!$BD$9,0))","v":""},null,{"$f":"IF(I38=\"\",\"\",IFERROR(I38*HVAC!$BC$9,0)+IFERROR(K38*12*HVAC!$BD$9,0))","v":""},null,"",null,{"$f":"IF(M38=\"\",\"\",M38/R38)","v":""},null,""]
[null,null,3,"",null,null,{"$f":"IF(HVAC!Q19=0,\"\",HVAC!Q19)","v":""},"",{"$f":"IF(HVAC!S19=0,\"\",HVAC!S19)","v":""},null,{"$f":"IF(HVAC!T19=0,\"\",HVAC!T19)","v":""},null,{"$f":"IF(HVAC!U19=0,\"\",HVAC!U19)","v":""},null,null,{"$f":"IF(I39=\"\",\"\",IFERROR(I39/12*HVAC!$BC$9,0)+IFERROR(K39*HVAC!$BD$9,0))","v":""},null,{"$f":"IF(I39=\"\",\"\",IFERROR(I39*HVAC!$BC$9,0)+IFERROR(K39*12*HVAC!$BD$9,0))","v":""},null,"",null,"",null,""]
[null,null,4,"",null,null,{"$f":"IF(HVAC!Q20=0,\"\",HVAC!Q20)","v":""},"",{"$f":"IF(HVAC!S20=0,\"\",HVAC!S20)","v":""},null,{"$f":"IF(HVAC!T20=0,\"\",HVAC!T20)","v":""},null,{"$f":"IF(HVAC!U20=0,\"\",HVAC!U20)","v":""},null,null,{"$f":"IF(I40=\"\",\"\",IFERROR(I40/12*HVAC!$BC$9,0)+IFERROR(K40*HVAC!$BD$9,0))","v":""},null,{"$f":"IF(I40=\"\",\"\",IFERROR(I40*HVAC!$BC$9,0)+IFERROR(K40*12*HVAC!$BD$9,0))","v":""},null,"",null,"",null,""]
[null,null,5,"",null,null,{"$f":"IF(HVAC!Q21=0,\"\",HVAC!Q21)","v":""},"",{"$f":"IF(HVAC!S21=0,\"\",HVAC!S21)","v":""},null,{"$f":"IF(HVAC!T21=0,\"\",HVAC!T21)","v":""},null,{"$f":"IF(HVAC!U21=0,\"\",HVAC!U21)","v":""},null,null,{"$f":"IF(I41=\"\",\"\",IFERROR(I41/12*HVAC!$BC$9,0)+IFERROR(K41*HVAC!$BD$9,0))","v":""},null,{"$f":"IF(I41=\"\",\"\",IFERROR(I41*HVAC!$BC$9,0)+IFERROR(K41*12*HVAC!$BD$9,0))","v":""},null,"",null,"",null,""]
[null,null,6,"",null,null,{"$f":"IF(HVAC!Q22=0,\"\",HVAC!Q22)","v":""},"",{"$f":"IF(HVAC!S22=0,\"\",HVAC!S22)","v":""},null,{"$f":"IF(HVAC!T22=0,\"\",HVAC!T22)","v":""},null,{"$f":"IF(HVAC!U22=0,\"\",HVAC!U22)","v":""},null,null,{"$f":"IF(I42=\"\",\"\",IFERROR(I42/12*HVAC!$BC$9,0)+IFERROR(K42*HVAC!$BD$9,0))","v":""},null,{"$f":"IF(I42=\"\",\"\",IFERROR(I42*HVAC!$BC$9,0)+IFERROR(K42*12*HVAC!$BD$9,0))","v":""},null,"",null,"",null,""]
[null,null,7,"",null,null,{"$f":"IF(HVAC!Q23=0,\"\",HVAC!Q23)","v":""},"",{"$f":"IF(HVAC!S23=0,\"\",HVAC!S23)","v":""},null,{"$f":"IF(HVAC!T23=0,\"\",HVAC!T23)","v":""},null,{"$f":"IF(HVAC!U23=0,\"\",HVAC!U23)","v":""},null,null,{"$f":"IF(I43=\"\",\"\",IFERROR(I43/12*HVAC!$BC$9,0)+IFERROR(K43*HVAC!$BD$9,0))","v":""},null,{"$f":"IF(I43=\"\",\"\",IFERROR(I43*HVAC!$BC$9,0)+IFERROR(K43*12*HVAC!$BD$9,0))","v":""},null,"",null,"",null,""]
[null,null,"Project Totals",null,null,null,{"$f":"SUM(G37:G43)","v":0},{"$error":"#N/A"},{"$f":"SUM(I37:J43)","v":0},null,{"$f":"SUM(K37:L43)","v":0},null,{"$f":"SUM(M37:O43)","v":0},null,null,{"$f":"SUM(P37:Q43)","v":0},null,{"$f":"SUM(R37:S43)","v":0},null,{"$f":"SUM(T37:U43)","v":0},null,{"$f":"IF(R44=0, 0,M44/R44)","v":0},null,{"$f":"IF(R44=0,,T44/R44)","v":0}]

{"sheet":"HVAC","index":1,"n_rows":371,"n_cols":94,"rows_kept":371,"cut":false,"hidden":true,"merged":[[0,57,0,86],[1,3,2,19],[2,50,4,50],[2,51,9,52],[2,53,4,55],[2,79,4,80],[2,81,2,83],[2,84,3,85],[3,4,3,17],[3,19,3,20],[7,69,8,69],[7,54,7,55],[6,66,6,67],[6,69,6,71],[6,72,6,73],[6,74,8,74],[6,75,6,77],[6,78,6,79],[7,70,8,70],[7,71,8,71],[7,66,7,67],[6,80,8,80],[6,81,6,83],[7,64,8,64],[3,88,3,90],[4,1,4,6],[4,11,4,17],[4,18,4,19],[4,84,4,85],[5,1,5,2],[5,3,5,9],[5,11,5,13],[5,14,5,16],[5,17,5,19],[5,63,5,64],[5,50,6,50],[5,53,6,55],[6,84,6,85],[6,86,8,86],[7,1,7,2],[7,3,7,9],[7,11,7,13],[7,78,7,79],[7,81,8,81],[7,82,8,82],[7,83,8,83],[7,61,7,62],[7,63,8,63],[7,84,7,85],[8,1,8,2],[8,3,8,5],[8,11,8,13],[8,14,8,16],[9,1,9,2],[9,3,9,5],[9,8,9,9],[9,11,9,18],[7,76,8,76],[7,77,8,77],[7,72,7,73],[7,75,8,75],[7,65,8,65],[15,32,15,33],[15,36,15,37],[15,40,15,41],[13,10,15,12],[13,13,15,13],[13,14,15,14],[13,34,14,37],[13,30,14,33],[10,1,10,2],[10,3,10,4],[10,7,10,8],[13,15,15,15],[13,16,13,20],[10,11,11,20],[11,1,11,2],[11,3,11,4],[11,5,11,9],[13,38,14,41],[14,16,15,17],[14,18,15,18],[14,19,15,19],[14,20,15,20],[6,1,6,2],[6,3,6,9],[6,11,6,13],[6,14,6,20],[6,63,6,65],[7,14,7,20],[7,53,9,53],[19,5,19,6],[19,10,19,11],[19,16,19,17],[12,1,12,4],[12,5,12,9],[13,1,15,3],[13,4,15,4],[13,5,15,6],[13,7,15,7],[13,8,15,9],[17,10,17,11],[17,16,17,17],[16,1,16,3],[16,5,16,6],[16,10,16,11],[16,16,16,17],[17,1,17,3],[17,5,17,6],[23,10,24,11],[23,12,24,13],[23,14,24,15],[23,16,24,16],[23,17,24,18],[20,1,20,3],[20,5,20,6],[20,10,20,11],[20,16,20,17],[21,1,21,3],[21,5,21,6],[21,10,21,11],[21,16,21,17],[18,1,18,3],[18,5,18,6],[18,10,18,11],[18,16,18,17],[19,1,19,3],[23,19,24,20],[22,1,22,3],[22,5,22,6],[22,10,22,11],[22,16,22,17],[23,1,25,2],[23,3,24,3],[23,4,24,4],[23,5,24,5],[23,6,24,7],[23,8,24,9],[25,19,25,20],[28,3,29,3],[63,57,63,86],[64,63,65,63],[64,77,64,78],[64,79,65,80],[64,84,64,85],[65,77,65,78],[65,84,65,85],[25,6,25,7],[25,8,25,9],[25,10,25,11],[25,12,25,13],[25,14,25,15],[25,17,25,18],[66,63,66,67],[67,63,67,65],[67,66,67,67],[67,69,67,71],[67,72,67,73],[67,74,69,74],[68,63,69,63],[68,64,69,64],[68,65,69,65],[68,66,68,67],[67,75,67,77],[67,78,67,79],[67,80,69,80],[67,81,67,83],[67,84,67,85],[67,86,69,86],[68,77,69,77],[68,78,68,79],[68,81,69,81],[68,82,69,82],[68,83,69,83],[68,84,68,85],[124,57,124,86],[125,63,126,63],[125,77,125,78],[125,79,126,80],[125,84,125,85],[126,77,126,78],[126,84,126,85],[68,69,69,69],[68,70,69,70],[68,71,69,71],[68,72,68,73],[68,75,69,75],[68,76,69,76],[127,63,127,67],[128,63,128,65],[128,66,128,67],[128,69,128,71],[128,72,128,73],[128,74,130,74],[129,63,130,63],[129,64,130,64],[129,65,130,65],[129,66,129,67],[128,75,128,77],[128,78,128,79],[128,80,130,80],[128,81,128,83],[128,84,128,85],[128,86,130,86],[129,77,130,77],[129,78,129,79],[129,81,130,81],[129,82,130,82],[129,83,130,83],[129,84,129,85],[185,57,185,86],[186,63,187,63],[186,77,186,78],[186,79,187,80],[186,84,186,85],[187,77,187,78],[187,84,187,85],[129,69,130,69],[129,70,130,70],[129,71,130,71],[129,72,129,73],[129,75,130,75],[129,76,130,76],[188,63,188,67],[189,63,189,65],[189,66,189,67],[189,69,189,71],[189,72,189,73],[189,74,191,74],[190,63,191,63],[190,64,191,64],[190,65,191,65],[190,66,190,67],[189,75,189,77],[189,78,189,79],[189,80,191,80],[189,81,189,83],[189,84,189,85],[189,86,191,86],[190,77,191,77],[190,78,190,79],[190,81,191,81],[190,82,191,82],[190,83,191,83],[190,84,190,85],[246,57,246,86],[247,63,248,63],[247,77,247,78],[247,79,248,80],[247,84,247,85],[248,77,248,78],[248,84,248,85],[190,69,191,69],[190,70,191,70],[190,71,191,71],[190,72,190,73],[190,75,191,75],[190,76,191,76],[249,63,249,67],[250,63,250,65],[250,66,250,67],[250,69,250,71],[250,72,250,73],[250,74,252,74],[251,63,252,63],[251,64,252,64],[251,65,252,65],[251,66,251,67],[251,69,252,69],[251,70,252,70],[251,71,252,71],[251,72,251,73],[250,81,250,83],[250,84,250,85],[250,86,252,86],[251,77,252,77],[251,78,251,79],[251,81,252,81],[251,82,252,82],[251,83,252,83],[251,84,251,85],[311,75,311,77],[307,57,307,86],[308,63,309,63],[308,77,308,78],[308,79,309,80],[308,84,308,85],[309,77,309,78],[309,84,309,85],[310,63,310,67],[311,63,311,65],[311,66,311,67],[311,69,311,71],[311,72,311,73],[311,74,313,74],[312,63,313,63],[312,64,313,64],[312,65,313,65],[14,45,14,46],[311,86,313,86],[312,77,313,77],[312,78,312,79],[312,81,313,81],[312,82,313,82],[312,83,313,83],[312,84,312,85],[312,66,312,67],[312,69,313,69],[312,70,313,70],[312,71,313,71],[312,72,312,73],[311,78,311,79],[311,80,313,80],[311,81,311,83],[311,84,311,85],[251,75,252,75],[251,76,252,76],[250,75,250,77],[250,78,250,79],[250,80,252,80],[312,75,313,75],[312,76,313,76]]}
[{"$f":"IF(H9=\"\",\"\",IF(OR(H9=\"UT\",H9=\"ID\",H9=\"WY\"),2,1))","v":2},"RMP or PP",null,null,null,null,null,null,null,null,null,null,null,null,null,null,null,null,null,null,null,null,null,null,null,null,null,null,null,null,null,null,null,null,null,null,null,null,null,null,null,null,null,null,null,null,null,null,null,null,null,null,null,null,null,null,null,"Lookup Tables Do Not Change"]
[null,null,null,"This sheet used for calculations",null,null,null,null,null,null,null,null,null,null,null,null,null,null,null,null,"Version:",null,null,null,null,null,null,null,null,null,null,null,null,null,null,null,null,null,null,null,null,null,null,null,null,null,null,null,null,null,null,null,null,null,null,null,null,null,"HVAC Type","System Type","Phase","Eff2","DB/WB"]
[null,null,null,null,null,null,null,null,null,null,null,null,null,null,null,null,null,null,null,null,{"$f":"INDEX(CurrentVersion_List,MATCH(\"a\",CurrentVersionSelected_List,0))","v":70320.5},null,null,null,null,null,null,null,null,null,"Effective Dates","Tariff","Tool",null,null,null,null,null,null,null,null,null,null,null,null,null,null,null,1,"ID","RMP","Rate Lookups",null,"Simplified Rate Table For FinAnswer Express",null,null,null,null,null,"Split (1 Phase)",1,"IPLV","47/43",{"$f":"$H$9","v":"WY"},null,null,null,null,null,null,null,null,null,null,null,null,null,null,null,"PTAC Calcs from Deemed Savings",null,"PTAC",null,null,"Incentive $/Ton"]
[null,"Date",null,{"$f":"AY10","v":"2026-02-23"},{"$f":"IF(H9=\"\",\"\",\"Calculator results are in accordance with the tariff effective \"&VLOOKUP(H9,TariffTable,2,FALSE))","v":"Calculator results are in accordance with the tariff effective October 2, 2020"},null,null,null,null,null,null,null,null,null,null,null,null,null,"Project #",{"$f":"ProjectNumber","v":{"$error":"#NAME?"}},null,null,null,null,null,null,null,null,null,null,"CA","September 24, 2020","2020-09-24",null,null,null,null,null,null,null,null,null,null,null,null,null,null,null,2,"UT",null,null,null,null,null,null,null,null,null,"Package (1 Phase)",3,"SEER","17/15",{"$f":"IF($BL$3=\"UT\",1,IF($BL$3=\"WA\",2,IF($BL$3=\"CA\",3,IF($BL$3=\"ID\",4,IF($BL$3=\"WY\",5,0)))))","v":5},null,null,null,null,null,{"$f":"IF($BL$4=0,0,OFFSET(BR4,$BL$5*$BL$4,0))","v":"Code"},"EFLCH","EFLHH","NTG","CF","Cooling Months",null,null,null,null,null,null,"Cost","kW/Unit","Gross kWh/yr",null,null,null,null,"Incentive"]
[null,"Project/Customer Information (Optional)",null,null,null,null,null,null,null,null,null,"Incentive Payee Information (Optional)",null,null,null,null,null,null,null,null,null,null,null,null,null,null,null,null,null,null,"ID","January 20, 2018","2018-01-20",null,null,null,null,null,null,null,null,null,null,null,null,null,null,null,3,"WY",null,null,null,null,null,null,null,null,null,"Split (3 Phase)","HSPF","IEER",null,61,null,null,null,null,null,"IECC 2009, Tables 503.2.3(1) & 503.2.3(2)",666.89,{"$f":"IF($BL$4=0,0,OFFSET(BT5,$BL$5*$BL$4,0))","v":2588},1,1,5,null,null,null,null,null,null,{"$f":"IF($BL$4=0,0,OFFSET(CD5,$BL$5*$BL$4,0))","v":200},{"$f":"IF($BL$4=0,0,OFFSET(CE5,$BL$5*$BL$4,0))","v":9.8000000000000004E-2},{"$f":"IF($BL$4=0,0,OFFSET(CF5,$BL$5*$BL$4,0))","v":400},{"$f":"IF($BL$4=0,0,OFFSET(CG5,$BL$5*$BL$4,0))","v":50},null,null,null,"Tier",{"$f":"BS6","v":1},{"$f":"BU6","v":125}]
[null,"Project Name",null,{"$f":"ProjectName","v":0},null,null,null,null,null,null,null,"Attention",null,null,null,null,null,null,null,null,null,null,null,null,null,null,null,null,null,null,"UT","April 23, 2019","2020-01-01",null,null,null,null,null,null,null,null,null,null,null,null,null,null,null,4,"CA","PP",null,null,{"$f":"CONCATENATE(AT8,\n\" Ave Secondary rates except where noted\")","v":"Updated 2/28/2020 Ave Secondary rates except where noted"},null,null,null,null,null,"Package (3 Phase)","COP",null,null,"Baseline",null,null,0,{"$f":"BV6","v":"per ton"},null,{"$f":"IF($BL$4=0,0,OFFSET(BR6,$BL$5*$BL$4,0))","v":"Tier"},{"$f":"IF($BL$4=0,0,OFFSET(BS6,$BL$5*$BL$4,0))","v":1},null,{"$f":"IF($BL$4=0,0,OFFSET(BU6,$BL$5*$BL$4,0))","v":125},{"$f":"IF($BL$4=0,0,OFFSET(BV6,$BL$5*$BL$4,0))","v":"per ton"},null,{"$f":"IF($BL$4=0,0,OFFSET(BX6,$BL$5*$BL$4,0))","v":"Tier"},{"$f":"IF($BL$4=0,0,OFFSET(BY6,$BL$5*$BL$4,0))","v":2},null,{"$f":"IF($BL$4=0,0,OFFSET(CA6,$BL$5*$BL$4,0))","v":62},{"$f":"IF($BL$4=0,0,OFFSET(CB6,$BL$5*$BL$4,0))","v":"per ton"},null,{"$f":"IF($BL$4=0,0,OFFSET(CD6,$BL$5*$BL$4,0))","v":"Tier"},{"$f":"IF($BL$4=0,0,OFFSET(CE6,$BL$5*$BL$4,0))","v":3},null,{"$f":"IF($BL$4=0,0,OFFSET(CG6,$BL$5*$BL$4,0))","v":75},{"$f":"IF($BL$4=0,0,OFFSET(CH6,$BL$5*$BL$4,0))","v":"per ton"},null,null,"Tier",{"$f":"BY6","v":2},{"$f":"CA6","v":62}]
[null,"Business Name",null,{"$f":"CustomerBusinessName","v":0},null,null,null,null,null,null,null,"Business Name",null,null,{"$f":"PayeeBusinessName","v":0},null,null,null,null,null,null,null,null,null,null,null,null,null,null,null,"WA","August 1, 2020","2020-08-01",null,null,null,null,null,null,null,null,null,null,null,null,null,null,null,5,"WA",null,null,null,null,null,null,null,null,null,null,null,null,null,"Cooling",null,null,"Heating",null,null,"Cooling",null,null,"Heating",null,"Gross Incremental Cost/Ton","Cooling",null,null,"Heating",null,"Gross Incremental Cost/Ton","Cooling",null,null,"Heating",null,"Gross Incremental Cost/Ton",null,"Tier",{"$f":"CE6","v":3},{"$f":"CG6","v":75}]
[null,"Address",null,{"$f":"InstallAddress","v":0},null,null,null,null,null,null,null,"Address",null,null,{"$f":"PayeeAddress","v":0},null,null,null,null,null,null,null,null,null,null,null,null,null,null,null,"WY","October 2, 2020","2020-10-02",null,null,null,null,null,null,null,null,null,null,null,null,"Updated 2/28/2020",null,null,6,"AK","Required Filled out",null,null,"State","Cost",null,null,null,null,null,null,"Size (BTU/Hr or CFM)",null,"EER","SEER IPLV","IEER","HSPF COP @ DB/WB",null,null,"EER","SEER IPLV","IEER","HSPF COP @ DB/WB",null,null,"EER","SEER IPLV","IEER","HSPF COP @ DB/WB",null,null,"EER","SEER IPLV","IEER","HSPF COP @ DB/WB"]
[null,"City",null,{"$f":"InstallCity","v":0},null,null,"State",{"$f":"InstallState","v":"WY"},"Zip",{"$f":"InstallZip","v":0},null,"City",null,null,{"$f":"PayeeCity","v":0},null,null,"State",{"$f":"PayeeState","v":0},"Zip",{"$f":"PayeeZip","v":0},null,null,null,null,null,null,null,null,null,null,null,null,null,null,null,null,null,null,null,null,null,null,null,null,"Rates Effective as of:",null,null,7,"AL",{"$f":"IF(F12=\"Project Name, State, and Rate are Required.\",FALSE,TRUE)","v":true},null,null,null,{"$f":"IF($H$9=\"\",\"\",VLOOKUP($H$9&\" \"&$J$11,$BB$11:$BD$67,2,0))","v":{"$error":"#N/A"}},{"$f":"IF($H$9=\"\",\"\",IF(VLOOKUP($H$9&\" \"&$J$11,$BB$11:$BD$67,3,0)=0,0,VLOOKUP($H$9&\" \"&$J$11,$BB$12:$BD$67,3,0)))","v":{"$error":"#N/A"}},null,null,"Equip Type","Category","Phase","Min","Max",null,null,null,"47/43","17/15",null,null,null,null,"47/43","17/15",null,null,null,null,"47/43","17/15",null,null,null,null,"47/43","17/15",null,null,"HVAC Type_140",null,null,"HVAC Type_115"]
[null,"Contact Person",null,{"$f":"CustomerContactName","v":0},null,null,null,"Phone",{"$f":"CustomerContactPhone","v":0},null,null,"Note",null,null,null,null,null,null,null,null,null,null,null,null,null,null,null,null,null,null,null,null,null,null,null,null,null,null,null,null,null,null,null,null,null,"CA","2019-04-01",null,8,"AR",{"$f":"TODAY()","v":"2026-02-23"},null,null,null,"kWh","Demand",null,1,{"$f":"IF($BL$4=0,0,OFFSET(BG10,$BL$5*$BL$4,0))","v":"Heat Pump (Air Cooled)"},"Split (1 Phase)",1,0,65000,10.87,14,0,8.1999999999999993,8.1999999999999993,0,0,0,0,0,0,{"$f":"IF($BL$4=0,0,OFFSET(BW10,$BL$5*$BL$4,0))","v":0},13,16,0,9,9,450,0,0,0,0,0,0,null,"Heat Pump (Air Cooled)",null,null,"Unitary AC (Air Cooled)"]
[null,"Account Number",null,{"$f":"AccountNumber","v":0},null,null,null,"Rate Schedule",null,{"$f":"RateSchedule","v":0},null,"Please fill in all blue fields.  Incentive and energy savings are estimates only.  The actual incentive paid will be determined based on the results of a post-installation inspection and review of project invoices.  Please be sure all capacities and efficiencies are reported @ AHRI conditions.",null,null,null,null,null,null,null,null,null,null,null,null,null,null,null,null,null,null,null,null,null,null,null,null,null,null,null,null,null,null,null,null,null,"ID","2018-06-01",null,9,"AZ",null,{"$f":"IF(ISERROR(MID(VLOOKUP(LARGE($BA$11:$BA$67,AW3),$BA$11:$BB$68,2,),4,5)),\"\",MID(VLOOKUP(LARGE($BA$11:$BA$67,AW3),$BA$11:$BB$68,2,),4,5))","v":"25"},{"$f":"IF(LEFT(BB11,2)=$H$9,AW3,\"\")","v":1},"WY 212",6.1420000000000002E-2,null,null,2,{"$f":"IF($BL$4=0,0,OFFSET(BG11,$BL$5*$BL$4,0))","v":"Heat Pump (Air Cooled)"},"Package (1 Phase)",1,0,65000,10.87,14,0,8,8,0,0,0,0,0,0,0,12,16,0,8.1999999999999993,8.1999999999999993,450,0,0,0,0,0,0,null,"Heat Pump (Water Cooled)",null,null,"Heat Pump (Air Cooled)"]
[null,"Meter Number",null,{"$f":"MeterNumber","v":0},null,{"$f":"IF(OR($H$9=\"\",$J$11=\"\",$D$6=\"\"),\"Project Name, State, and Rate are Required.\",IF(ISERROR(MATCH($J$11,$AZ$11:$AZ$67,0)),CONCATENATE($J$11,\" is not a valid rate for \",$H$9),IF($BC$9=0,\"Non-Qualifing Rate\",CONCATENATE(\"Rate \",J11,\" effective as of \",TEXT(VLOOKUP(H9,AT10:AU14,2,FALSE),\"mm/dd/yyyy\")))))","v":"0 is not a valid rate for WY"},null,null,null,null,null,null,null,null,null,null,null,null,null,null,null,null,null,null,null,null,null,null,null,null,null,null,null,null,null,null,null,null,null,null,null,null,null,null,null,"UT","2019-11-22",null,10,"CO",null,"28",{"$f":"IF(LEFT(BB12,2)=$H$9,AW4,\"\")","v":2},"WY 210",3.4009999999999999E-2,15.744,null,3,"Heat Pump (Air Cooled)","Split (3 Phase)",3,0,65000,9.23,13,0,7.7,7.7,0,0,0,0,0,0,0,12.5,15,0,8.5,8.5,150,13,16,0,9,9,450,null,"Heat Pump (Air Cooled, Replacing Electric Resistance)",null,null,"Heat Pump (Water Cooled)"]
[null,"Project Information and Energy/Cost Savings",null,null,null,null,null,null,null,null,null,null,null,null,null,null,null,null,null,null,null,null,null,null,null,null,null,null,null,null,null,null,null,null,null,null,null,null,null,null,null,null,null,null,null,"WA","2019-11-22",null,11,"CT",null,"33",3,"WY 58",5.9970000000000002E-2,null,null,4,"Heat Pump (Air Cooled)","Package (3 Phase)",3,0,65000,9.23,13,0,7.7,7.7,0,0,0,0,0,0,0,12,15,0,8.1999999999999993,8.1999999999999993,150,12,16,0,8.1999999999999993,8.1999999999999993,450,null,"Ground-Source Heat Pump (Water-to-Air)",null,null,"Ground-Source Heat Pump (Water-to-Air)"]
[null,"HVAC Type",null,null,"System Type","Cooling Capacity (BTU/Hr)",null,"Eff 1 (EER)","Eff 2\n(SEER, IPLV, or IEER)",null,"Eff 3                                  (HSPF COP)",null,null,"Wet/Dry Bulb (F°)","QTY","Tier",{"$f":"IF(SUM(O17:O23)=0,\"\",IF(H9=\"WA\",CONCATENATE(\"Tier \",CL6,\" = $\",CM6,\"/ton, \",\"Tier \",CL7,\" = $\",CM7,\"/ton.\"),CONCATENATE(\"Tier \",CL5,\" = $\",CM5,\"/ton, \",\"Tier \",CL6,\" = $\",CM6,\"/ton, \",\"Tier \",CL7,\" = $\",CM7,\"/ton.\")))","v":""},null,null,null,null,null,null,null,null,null,null,null,null,null,"Eff1",null,null,null,"Eff2",null,null,null,"Eff3",null,null,null,null,null,null,"WY","2019-11-22",null,12,"DE",null,"40",4,"WY 54",6.6030000000000005E-2,null,null,5,"Heat Pump (Air Cooled)","Split (3 Phase) Package (3 Phase)",3,65000,135000,11,10.199999999999999,11.2,3.3,2.25,0,0,0,0,0,0,0,11.6,0,13.4,3.4,2.4,150,0,0,0,0,0,{"$f":"IF($BL$4=0,0,OFFSET(CI14,$BL$5*$BL$4,0))","v":0},null,"Ground-Source Heat Pump (Water-to-Water)",null,null,"Ground-Source Heat Pump (Water-to-Water)"]
[null,null,null,null,null,null,null,null,null,null,null,null,null,null,null,null,"Incentive",null,"kWh/Yr","kW/Month","Deemed Cost",null,{"$f":"COUNT(SEARCH({\"UT\",\"WY\"},State))","v":1},null,null,null,"For Demand","For Cooling","For heating",null,null,null,null,null,null,null,null,null,null,null,null,null,null,null,null,"Rates for Software 11.22.2019",null,null,13,"FL",null,"46",5,"WY 48T",3.2210000000000003E-2,17.254999999999999,null,6,"Heat Pump (Air Cooled)","Split (3 Phase) Package (3 Phase)",3,135000,240000,10.6,9.5,10.7,3.2,2.0499999999999998,0,0,0,0,0,0,0,10.7,0,12.6,3.3,2.1,150,0,0,0,0,0,0,null,"Ground-Source Heat Pump (DGX)",null,null,"Unitary AC (Water Cooled)"]
[null,null,null,null,null,null,null,null,null,null,null,null,null,null,null,null,null,null,null,null,null,null,"Cooling kWh","Heating kWh","Row","Cap/1000","1/EFF1","1/EFF2","1/EFF3","Cooling Months","Tier","Code","Min",null,"Tier","Code","Min",null,"Tier","Code","Min",null,null,null,null,null,null,null,14,"GA",null,"48T",6,"WY 46",3.3509999999999998E-2,20.279,null,7,"Heat Pump (Air Cooled)","Split (3 Phase) Package (3 Phase)",3,240000,10000000,9.5,9.1999999999999993,9.6,3.2,2.0499999999999998,0,0,0,0,0,0,0,10.1,0,11.6,3.3,2.1,150,0,0,0,0,0,0,null,"Unitary AC (Air Cooled)",null,null,"Unitary AC (Evaporatively Cooled)"]
[null,{"$f":"'HVAC-Tool'!D28","v":0},null,null,{"$f":"IF(OR(HVAC_Type_1=\"Ground-Source Heat Pump\",HVAC_Type_1=\"Groundwater Source Heat Pump\", HVAC_Type_1=\"Heat Pump (Water Cooled)\"),0,'HVAC-Tool'!G28)","v":0},{"$f":"'HVAC-Tool'!O28","v":0},null,{"$f":"'HVAC-Tool'!Q28","v":0},{"$f":"'HVAC-Tool'!R28","v":0},{"$f":"'HVAC-Tool'!S28","v":0},{"$f":"'HVAC-Tool'!T28","v":0},null,{"$f":"'HVAC-Tool'!U28","v":0},{"$f":"IF('HVAC-Tool'!V28=\"\",\"\",'HVAC-Tool'!V28)","v":""},{"$f":"IF('HVAC-Tool'!X28=\"\",\"\",'HVAC-Tool'!X28)","v":""},{"$f":"IF(OR($B17=\"\",$F17=\"\",$H17=\"\",$O17=\"\",IF($B17=HVACType_UnitaryAC_AirCooled,OR($E17=\"\",$I17=\"\",$J17=\"\"),IF($B17=HVACType_HeatPump_WaterCooled,OR($K17=\"\",$M17=\"\"),IF($B17=HVACType_HeatPump_AirCooled,OR($E17=\"\",$I17=\"\",$J17=\"\",$K17=\"\",$M17=\"\",$N17=\"\"),FALSE)))),\"\",MIN($AE17,$AI17,$AM17))","v":""},{"$f":"IF($P17=0,\"Does not qualify\",IF($P17=\"\",\"\",IF(AND(COUNT(SEARCH(\"VRF\",B17)),COUNT(SEARCH({\"UT\"},HVAC!InstallState))),(VLOOKUP(P17,$CL$5:$CM$7,2,FALSE)+50)*(ROUND($F17/12000,1)*$O17),IF(ISNUMBER(SEARCH(\"electric resistance\",B17)),(ROUNDDOWN(200*1.25,0)+(VLOOKUP(P17,$CL$5:$CM$7,2,FALSE)*(P17-1)))*ROUND($F17/12000,1)*$O17,VLOOKUP(P17,$CL$5:$CM$7,2,FALSE)*ROUND($F17/12000,1)*$O17) + IF(AND('HVAC-Tool'!Y28=\"Yes\",ISNUMBER(SEARCH(\"heat pump\",B17))),100,0))))","v":""},null,{"$f":"IF(P17=0,0,IF(P17=\"\",\"\",SUM(W17:X17)*O17))","v":""},{"$f":"IF($P17=0,0,IF($P17=\"\",\"\",Z17*AA17*O17*IF(OR($B17=HVACType_UnitaryAC_AirCooled,$B17=HVACType_UnitaryAC_EvapCooled,$B17=HVACType_UnitaryAC_WaterCooled),$BV$5*$BU$5,1)))","v":""},{"$f":"IF($P17=0,0,IF($P17=\"\",\"\",IF($P17=0,0,$O17*$F17/12000*OFFSET($BQ$9,$Y17,P17*6))))","v":""},null,{"$f":"EFLCH*AB17*NTG*Z17","v":0},{"$f":"$AC17*EFLHH*$Z17/IF($M17=\"COP\",3.412,1)","v":0},{"$f":"IF(OR($B17=\"\",$F17=\"\"),0,SUMPRODUCT($BF$10:$BF$63*($BG$10:$BG$63=$B17)*($F17>=$BJ$10:$BJ$63)*(F17<$BK$10:$BK$63)*(ISNUMBER(FIND($E17,$BH$10:$BH$63)))))","v":0},{"$f":"F17/1000","v":0},{"$f":"IF(ISERROR(1/(OFFSET($BL$9,$Y17,0))-1/($H17)),0,1/(OFFSET($BL$9,$Y17,0))-1/($H17))","v":0},{"$f":"IF(ISERROR(1/(OFFSET($BM$9,$Y17,IF($J17=\"IEER\",1,0)))-1/($I17)),0,1/(OFFSET($BM$9,$Y17,IF($J17=\"IEER\",1,0)))-1/($I17))","v":0},{"$f":"IF(ISERROR((1/OFFSET($BO$9,$Y17,IF($N17=$BK$4,1,0))-1/$K17)),0,(1/OFFSET($BO$9,$Y17,IF($N17=$BK$4,1,0))-1/$K17))","v":0},{"$f":"IF(OR($B17=$CK$14,$B17=$CK$16,$B17=$CK$17),$BW$5,12)","v":12},{"$f":"IF($Y17=0,0,IF(AND(AF17=0),MIN(AI17,AM17),IF(OR(AND($H17>=OFFSET($CD$9,$Y17,0),OFFSET($CD$9,$Y17,0)>0),AND($H17=0,AF17=0)),$CE$6,IF(AND($H17>=OFFSET($BX$9,$Y17,0),OFFSET($BX$9,$Y17,0)>0),$BY$6,IF(AND($H17>=OFFSET($BR$9,$Y17,0),OFFSET($BR$9,$Y17,0)>0),$BS$6,0)))))","v":0},{"$f":"IF($Y17=0,0,OFFSET($BL$9,$Y17,0))","v":0},{"$f":"IF($Y17=0,0,OFFSET($BL$9,$Y17,$AE17*6))","v":0},{"$f":"IF($Y17=0,0,\"EER\")","v":0},{"$f":"IF($Y17=0,0,IF(AND(AJ17=0),3,IF(OR($B17=HVACType_HeatPump_WaterCooled,$B17=HVACType_GroundSourceHeatPump,$B17=HVACType_GroundwaterSourceHeatPump,$B17=HVACType_VRF_HP__Water_Source,AND($I17>=OFFSET($CE$9,$Y17,IF($J17=$BJ$5,1,0)),OFFSET($CE$9,$Y17,IF($J17=$BJ$5,1,0))>0)),$CE$6,IF(AND($I17>=OFFSET($BY$9,$Y17,IF($J17=$BJ$5,1,0)),OFFSET($BY$9,$Y17,IF($J17=$BJ$5,1,0))>0),$BY$6,IF(AND($I17>=OFFSET($BS$9,$Y17,IF($J17=$BJ$5,1,0)),OFFSET($BS$9,$Y17,IF($J17=$BJ$5,1,0))>0),$BS$6,0)))))","v":0},{"$f":"IF($Y17=0,0,OFFSET($BM$9,$Y17,IF($J17=$BJ$5,1,0)))","v":0},{"$f":"IF($Y17=0,0,OFFSET($BM$9,$Y17,$AE17*6+IF($J17=\"IEER\",1,0)))","v":0},{"$f":"$J17","v":0},{"$f":"IF($Y17=0,0,IF(AND(AN17=0),3,IF(OR(OR($B17=HVACType_UnitaryAC_AirCooled,$B17=HVACType_UnitaryAC_EvapCooled,$B17=HVACType_UnitaryAC_WaterCooled),AND($K17>=OFFSET($CG$9,$Y17,IF($N17=$BK$4,1,0)),OFFSET($CG$9,$Y17,IF($N17=$BK$4,1,0))>0)),$CE$6,IF(AND($K17>=OFFSET($CA$9,$Y17,IF($N17=$BK$4,1,0)),OFFSET($CA$9,$Y17,IF($N17=$BK$4,1,0))>0),$BY$6,IF(AND($K17>=OFFSET($BU$9,$Y17,IF($N17=$BK$4,1,0)),OFFSET($BU$9,$Y17,IF($N17=$BK$4,1,0))>0),$BS$6,0)))))","v":0},{"$f":"IF($Y17=0,0,OFFSET($BO$9,$Y17,IF($N17=$BK$4,1,0)))","v":0},{"$f":"IF($Y17=0,0,OFFSET($BO$9,$Y17,$AE17*6+IF($N17=$BK$4,1,0)))","v":0},{"$f":"$M17","v":0},null,null,null,null,null,null,15,"HI",null,"54",7,"WY 40",5.2269999999999997E-2,7.8879999999999999,null,8,"Heat Pump (Water Cooled)",0,0,0,17000,12.2,0,14.029999999999998,4.3,4.3,0,0,0,0,0,0,0,14,0,0,4.5999999999999996,4.5999999999999996,100,0,0,0,0,0,0,null,"Unitary AC (Water Cooled)"]
[null,{"$f":"'HVAC-Tool'!D29","v":0},null,null,{"$f":"IF(OR(HVAC_Type_2=\"Ground-Source Heat Pump\",HVAC_Type_2=\"Groundwater Source Heat Pump\", HVAC_Type_2=\"Heat Pump (Water Cooled)\"),0,'HVAC-Tool'!G29)","v":0},{"$f":"'HVAC-Tool'!O29","v":0},null,{"$f":"'HVAC-Tool'!Q29","v":0},{"$f":"'HVAC-Tool'!R29","v":0},{"$f":"'HVAC-Tool'!S29","v":0},{"$f":"'HVAC-Tool'!T29","v":0},null,{"$f":"'HVAC-Tool'!U29","v":0},{"$f":"IF('HVAC-Tool'!V29=\"\",\"\",'HVAC-Tool'!V29)","v":""},{"$f":"IF('HVAC-Tool'!X29=\"\",\"\",'HVAC-Tool'!X29)","v":""},{"$f":"IF(OR($B18=\"\",$F18=\"\",$H18=\"\",$O18=\"\",IF($B18=HVACType_UnitaryAC_AirCooled,OR($E18=\"\",$I18=\"\",$J18=\"\"),IF($B18=HVACType_HeatPump_WaterCooled,OR($K18=\"\",$M18=\"\"),IF($B18=HVACType_HeatPump_AirCooled,OR($E18=\"\",$I18=\"\",$J18=\"\",$K18=\"\",$M18=\"\",$N18=\"\"),FALSE)))),\"\",MIN($AE18,$AI18,$AM18))","v":""},{"$f":"IF($P18=0,\"Does not qualify\",IF($P18=\"\",\"\",IF(AND(COUNT(SEARCH(\"VRF\",B18)),COUNT(SEARCH({\"UT\"},HVAC!InstallState))),(VLOOKUP(P18,$CL$5:$CM$7,2,FALSE)+50)*(ROUND($F18/12000,1)*$O18),IF(ISNUMBER(SEARCH(\"electric resistance\",B18)),(ROUNDDOWN(200*1.25,0)+(VLOOKUP(P18,$CL$5:$CM$7,2,FALSE)*(P18-1)))*ROUND($F18/12000,1)*$O18,VLOOKUP(P18,$CL$5:$CM$7,2,FALSE)*ROUND($F18/12000,1)*$O18) + IF(AND('HVAC-Tool'!Y29=\"Yes\",ISNUMBER(SEARCH(\"heat pump\",B18))),100,0))))","v":""},null,{"$f":"IF(P18=0,0,IF(P18=\"\",\"\",SUM(W18:X18)*O18))","v":""},"","",null,0,0,0,0,0,0,0,12,{"$f":"IF($Y18=0,0,IF(AND(AF18=0),MIN(AI18,AM18),IF(OR(AND($H18>=OFFSET($CD$9,$Y18,0),OFFSET($CD$9,$Y18,0)>0),AND($H18=0,AF18=0)),$CE$6,IF(AND($H18>=OFFSET($BX$9,$Y18,0),OFFSET($BX$9,$Y18,0)>0),$BY$6,IF(AND($H18>=OFFSET($BR$9,$Y18,0),OFFSET($BR$9,$Y18,0)>0),$BS$6,0)))))","v":0},{"$f":"IF($Y18=0,0,OFFSET($BL$9,$Y18,0))","v":0},{"$f":"IF($Y18=0,0,OFFSET($BL$9,$Y18,$AE18*6))","v":0},{"$f":"IF($Y18=0,0,\"EER\")","v":0},0,0,0,0,0,0,0,0,null,null,null,null,null,null,16,"IA",null,"58",8,"WY 33",3.2849999999999997E-2,null,null,9,"Heat Pump (Water Cooled)",0,0,17000,65000,13,0,14.95,4.3,4.3,0,0,0,0,0,0,0,14,0,0,4.5999999999999996,4.5999999999999996,100,0,0,0,0,0,0,null,"Unitary AC (Evaporatively Cooled)"]
[null,{"$f":"'HVAC-Tool'!D30","v":0},null,null,{"$f":"IF(OR(HVAC_Type_3=\"Ground-Source Heat Pump\",HVAC_Type_3=\"Groundwater Source Heat Pump\", HVAC_Type_3=\"Heat Pump (Water Cooled)\"),0,'HVAC-Tool'!G30)","v":0},{"$f":"'HVAC-Tool'!O30","v":0},null,{"$f":"'HVAC-Tool'!Q30","v":0},{"$f":"'HVAC-Tool'!R30","v":0},{"$f":"'HVAC-Tool'!S30","v":0},{"$f":"'HVAC-Tool'!T30","v":0},null,{"$f":"'HVAC-Tool'!U30","v":0},{"$f":"IF('HVAC-Tool'!V30=\"\",\"\",'HVAC-Tool'!V30)","v":""},{"$f":"IF('HVAC-Tool'!X30=\"\",\"\",'HVAC-Tool'!X30)","v":""},"",{"$f":"IF($P19=0,\"Does not qualify\",IF($P19=\"\",\"\",IF(AND(COUNT(SEARCH(\"VRF\",B19)),COUNT(SEARCH({\"UT\"},HVAC!InstallState))),(VLOOKUP(P19,$CL$5:$CM$7,2,FALSE)+50)*(ROUND($F19/12000,1)*$O19),IF(ISNUMBER(SEARCH(\"electric resistance\",B19)),(ROUNDDOWN(200*1.25,0)+(VLOOKUP(P19,$CL$5:$CM$7,2,FALSE)*(P19-1)))*ROUND($F19/12000,1)*$O19,VLOOKUP(P19,$CL$5:$CM$7,2,FALSE)*ROUND($F19/12000,1)*$O19) + IF(AND('HVAC-Tool'!Y30=\"Yes\",ISNUMBER(SEARCH(\"heat pump\",B19))),100,0))))","v":""},null,{"$f":"IF(P19=0,0,IF(P19=\"\",\"\",SUM(W19:X19)*O19))","v":""},"","",null,0,0,0,0,0,0,0,12,{"$f":"IF($Y19=0,0,IF(AND(AF19=0),MIN(AI19,AM19),IF(OR(AND($H19>=OFFSET($CD$9,$Y19,0),OFFSET($CD$9,$Y19,0)>0),AND($H19=0,AF19=0)),$CE$6,IF(AND($H19>=OFFSET($BX$9,$Y19,0),OFFSET($BX$9,$Y19,0)>0),$BY$6,IF(AND($H19>=OFFSET($BR$9,$Y19,0),OFFSET($BR$9,$Y19,0)>0),$BS$6,0)))))","v":0},0,0,0,0,0,0,0,0,0,0,0,null,null,null,null,null,null,17,"IL",null,"210",9,"WY 28",3.857E-2,17.538,null,10,"Heat Pump (Water Cooled)",0,0,65000,135000,13,0,14.95,4.3,4.3,0,0,0,0,0,0,0,14,0,0,4.5999999999999996,4.5999999999999996,100,0,0,0,0,0,0,null,"VRF HP (Air Cooled)"]
[null,{"$f":"'HVAC-Tool'!D31","v":0},null,null,{"$f":"IF(OR(HVAC_Type_4=\"Ground-Source Heat Pump\",HVAC_Type_4=\"Groundwater Source Heat Pump\", HVAC_Type_4=\"Heat Pump (Water Cooled)\"),0,'HVAC-Tool'!G31)","v":0},{"$f":"'HVAC-Tool'!O31","v":0},null,{"$f":"'HVAC-Tool'!Q31","v":0},{"$f":"'HVAC-Tool'!R31","v":0},{"$f":"'HVAC-Tool'!S31","v":0},{"$f":"'HVAC-Tool'!T31","v":0},null,{"$f":"'HVAC-Tool'!U31","v":0},{"$f":"IF('HVAC-Tool'!V31=\"\",\"\",'HVAC-Tool'!V31)","v":""},{"$f":"IF('HVAC-Tool'!X31=\"\",\"\",'HVAC-Tool'!X31)","v":""},"",{"$f":"IF($P20=0,\"Does not qualify\",IF($P20=\"\",\"\",IF(AND(COUNT(SEARCH(\"VRF\",B20)),COUNT(SEARCH({\"UT\"},HVAC!InstallState))),(VLOOKUP(P20,$CL$5:$CM$7,2,FALSE)+50)*(ROUND($F20/12000,1)*$O20),IF(ISNUMBER(SEARCH(\"electric resistance\",B20)),(ROUNDDOWN(200*1.25,0)+(VLOOKUP(P20,$CL$5:$CM$7,2,FALSE)*(P20-1)))*ROUND($F20/12000,1)*$O20,VLOOKUP(P20,$CL$5:$CM$7,2,FALSE)*ROUND($F20/12000,1)*$O20) + IF(AND('HVAC-Tool'!Y31=\"Yes\",ISNUMBER(SEARCH(\"heat pump\",B20))),100,0))))","v":""},null,"","","",null,0,0,0,0,0,0,0,12,0,0,0,0,0,0,0,0,0,0,0,0,null,null,null,null,null,null,18,"IN",null,"212",10,"WY 25",7.9259999999999997E-2,null,null,11,"Unitary AC (Air Cooled)","Split (1 Phase)",1,0,45000,10.87,13,0,0,0,0,0,0,0,0,0,0,13,16,0,0,0,375,0,0,0,0,0,400,null,"VRF HP (Water Source)"]
[null,{"$f":"'HVAC-Tool'!D32","v":0},null,null,{"$f":"IF(OR(HVAC_Type_5=\"Ground-Source Heat Pump\",HVAC_Type_5=\"Groundwater Source Heat Pump\", HVAC_Type_5=\"Heat Pump (Water Cooled)\"),0,'HVAC-Tool'!G32)","v":0},{"$f":"'HVAC-Tool'!O32","v":0},null,{"$f":"'HVAC-Tool'!Q32","v":0},{"$f":"'HVAC-Tool'!R32","v":0},{"$f":"'HVAC-Tool'!S32","v":0},{"$f":"'HVAC-Tool'!T32","v":0},null,{"$f":"'HVAC-Tool'!U32","v":0},{"$f":"IF('HVAC-Tool'!V32=\"\",\"\",'HVAC-Tool'!V32)","v":""},{"$f":"IF('HVAC-Tool'!X32=\"\",\"\",'HVAC-Tool'!X32)","v":""},"",{"$f":"IF($P21=0,\"Does not qualify\",IF($P21=\"\",\"\",IF(AND(COUNT(SEARCH(\"VRF\",B21)),COUNT(SEARCH({\"UT\"},HVAC!InstallState))),(VLOOKUP(P21,$CL$5:$CM$7,2,FALSE)+50)*(ROUND($F21/12000,1)*$O21),IF(ISNUMBER(SEARCH(\"electric resistance\",B21)),(ROUNDDOWN(200*1.25,0)+(VLOOKUP(P21,$CL$5:$CM$7,2,FALSE)*(P21-1)))*ROUND($F21/12000,1)*$O21,VLOOKUP(P21,$CL$5:$CM$7,2,FALSE)*ROUND($F21/12000,1)*$O21) + IF(AND('HVAC-Tool'!Y32=\"Yes\",ISNUMBER(SEARCH(\"heat pump\",B21))),100,0))))","v":""},null,"","","",null,0,0,0,0,0,0,0,12,0,0,0,0,0,0,0,0,0,0,0,0,null,null,null,null,null,null,19,"KS",null,"","","WA 48T",4.9099999999999998E-2,9.25,null,12,"Unitary AC (Air Cooled)","Split (1 Phase)",1,45000,65000,10.87,13,0,0,0,0,0,0,0,0,0,0,13,16,0,0,0,375,0,0,0,0,0,400]
[null,{"$f":"'HVAC-Tool'!D33","v":0},null,null,{"$f":"IF(OR(HVAC_Type_6=\"Ground-Source Heat Pump\",HVAC_Type_6=\"Groundwater Source Heat Pump\", HVAC_Type_6=\"Heat Pump (Water Cooled)\"),0,'HVAC-Tool'!G33)","v":0},{"$f":"'HVAC-Tool'!O33","v":0},null,{"$f":"'HVAC-Tool'!Q33","v":0},{"$f":"'HVAC-Tool'!R33","v":0},{"$f":"'HVAC-Tool'!S33","v":0},{"$f":"'HVAC-Tool'!T33","v":0},null,{"$f":"'HVAC-Tool'!U33","v":0},{"$f":"IF('HVAC-Tool'!V33=\"\",\"\",'HVAC-Tool'!V33)","v":""},{"$f":"IF('HVAC-Tool'!X33=\"\",\"\",'HVAC-Tool'!X33)","v":""},"",{"$f":"IF($P22=0,\"Does not qualify\",IF($P22=\"\",\"\",IF(AND(COUNT(SEARCH(\"VRF\",B22)),COUNT(SEARCH({\"UT\"},HVAC!InstallState))),(VLOOKUP(P22,$CL$5:$CM$7,2,FALSE)+50)*(ROUND($F22/12000,1)*$O22),IF(ISNUMBER(SEARCH(\"electric resistance\",B22)),(ROUNDDOWN(200*1.25,0)+(VLOOKUP(P22,$CL$5:$CM$7,2,FALSE)*(P22-1)))*ROUND($F22/12000,1)*$O22,VLOOKUP(P22,$CL$5:$CM$7,2,FALSE)*ROUND($F22/12000,1)*$O22) + IF(AND('HVAC-Tool'!Y33=\"Yes\",ISNUMBER(SEARCH(\"heat pump\",B22))),100,0))))","v":""},null,"","","",null,0,0,0,0,0,0,0,12,0,0,0,0,0,0,0,0,0,0,0,0,null,null,null,null,null,null,20,"KY",null,"","","WA 40",6.9510000000000002E-2,2.2200000000000002,null,13,"Unitary AC (Air Cooled)","Package (1 Phase)",1,0,65000,11,14,0,0,0,0,0,0,0,0,0,0,12,16,0,0,0,375,0,0,0,0,0,400,null,"VRF System Type",null,null,"SystemType_UT",null,"LoopType_GSHP"]
[null,{"$f":"'HVAC-Tool'!D34","v":0},null,null,{"$f":"IF(OR(HVAC_Type_7=\"Ground-Source Heat Pump\",HVAC_Type_7=\"Groundwater Source Heat Pump\", HVAC_Type_7=\"Heat Pump (Water Cooled)\"),0,'HVAC-Tool'!G34)","v":0},{"$f":"'HVAC-Tool'!O34","v":0},null,{"$f":"'HVAC-Tool'!Q34","v":0},{"$f":"'HVAC-Tool'!R34","v":0},{"$f":"'HVAC-Tool'!S34","v":0},{"$f":"'HVAC-Tool'!T34","v":0},null,{"$f":"'HVAC-Tool'!U34","v":0},{"$f":"IF('HVAC-Tool'!V34=\"\",\"\",'HVAC-Tool'!V34)","v":""},{"$f":"IF('HVAC-Tool'!X34=\"\",\"\",'HVAC-Tool'!X34)","v":""},"",{"$f":"IF($P23=0,\"Does not qualify\",IF($P23=\"\",\"\",IF(AND(COUNT(SEARCH(\"VRF\",B23)),COUNT(SEARCH({\"UT\"},HVAC!InstallState))),(VLOOKUP(P23,$CL$5:$CM$7,2,FALSE)+50)*(ROUND($F23/12000,1)*$O23),IF(ISNUMBER(SEARCH(\"electric resistance\",B23)),(ROUNDDOWN(200*1.25,0)+(VLOOKUP(P23,$CL$5:$CM$7,2,FALSE)*(P23-1)))*ROUND($F23/12000,1)*$O23,VLOOKUP(P23,$CL$5:$CM$7,2,FALSE)*ROUND($F23/12000,1)*$O23) + IF(AND('HVAC-Tool'!Y34=\"Yes\",ISNUMBER(SEARCH(\"heat pump\",B23))),100,0))))","v":""},null,"","","",null,0,0,0,0,0,0,0,12,0,0,0,0,0,0,0,0,0,0,0,0,null,null,null,null,null,null,21,"LA",null,"","","WA 36",5.8049999999999997E-2,7.1,null,14,"Unitary AC (Air Cooled)","Split (3 Phase)",3,0,65000,9.23,13,0,0,0,0,0,0,0,0,0,0,12.5,15,0,0,0,175,{"$f":"IF($BL$4=0,0,OFFSET(CD23,$BL$5*$BL$4,0))","v":13},16,0,0,0,375,null,"Multi-split System",null,null,"Split (1 Phase)",null,"Closed Loop"]
[null,"Total Project",null,"Baseline Energy Code","Energy Savings (kWh/Yr) ","Demand Savings (kW)","Deemed Cost",null,"Incentive",null,"Monthly Savings",null,"Annual Savings",null,"% of Cost Paid by Incentive",null,"Net Project Cost","Pre-incentive Payback (Yr)",null,"Post-incentive Payback (Yr)",null,null,null,null,null,null,null,null,null,null,null,null,null,null,null,null,null,null,null,null,null,null,null,null,null,null,null,null,22,"MA",null,"","","WA 24",0.10773000000000001,4.84,null,15,"Unitary AC (Air Cooled)","Package (3 Phase)",3,0,65000,9.23,13,0,0,0,0,0,0,0,0,0,0,12,15,0,0,0,175,12,16,0,0,0,375,null,"Multi-split w/Heat Recovery",null,null,"Split (3 Phase)",null,"Open Loop"]
[null,null,null,null,null,null,null,null,null,null,null,null,null,null,null,null,null,null,null,null,null,null,null,null,null,null,null,null,null,null,null,null,null,null,null,null,null,null,null,null,null,null,null,null,null,null,null,null,23,"MD",null,"","",null,null,null,null,16,"Unitary AC (Air Cooled)","Split (3 Phase) Package (3 Phase)",3,65000,135000,11.2,9.8000000000000007,11.399999999999999,0,0,0,0,0,0,0,0,0,12,0,13.8,0,0,150,12,0,14.6,0,0,325]
[null,null,null,{"$f":"$BR$5","v":"IECC 2009, Tables 503.2.3(1) & 503.2.3(2)"},{"$f":"IF(SUM($P$17:$P$23)=0,0,SUM($S$17:$S$23))","v":0},{"$f":"IF(SUM($P$17:$P$23)=0,0,SUM($T$17:$T$23))","v":0},{"$f":"IF(SUM($P$17:$P$23)=0,0,SUM($U$17:$U$23))","v":0},null,{"$f":"IF(SUM($P$17:$P$23)=0,0,SUM($Q$17:$Q$23))","v":0},null,{"$f":"IF(SUM(P17:P23)=0,0,$M$26/12)","v":0},null,{"$f":"IF(SUM(P17:P23)=0,0,$E$26*$BC$9+$BD$9*SUMPRODUCT($T$17:$T$23,$AD$17:$AD$23))","v":0},null,{"$f":"IF(SUM(P17:P23)=0,0,$I$26/$G$26)","v":0},null,{"$f":"IF(SUM(P17:P23)=0,0,$G$26-$I$26)","v":0},{"$f":"IF(SUM(P17:P23)=0,0,$G$26/$M$26)","v":0},null,{"$f":"IF(SUM(P17:P23)=0,0,$Q$26/$M$26)","v":0},null,null,null,null,null,null,null,null,null,null,null,null,null,null,null,null,null,null,null,null,null,null,null,null,null,null,null,null,24,"ME",null,"","","UT 23",6.3700000000000007E-2,8.7539999999999996,null,17,"Unitary AC (Air Cooled)","Split (3 Phase) Package (3 Phase)",3,135000,240000,11,9.6999999999999993,11.2,0,0,0,0,0,0,0,{"$f":"IF($BL$4=0,0,OFFSET(BV26,$BL$5*$BL$4,0))","v":0},0,12,0,13,0,0,125,12,0,14,0,0,225]
[null,null,null,null,null,null,null,null,null,null,null,null,null,null,null,null,null,null,null,null,null,null,null,null,null,null,null,null,null,null,null,null,null,null,null,null,null,null,null,null,null,null,null,null,null,null,null,null,25,"MI",null,"","","UT 10",5.3870000000000001E-2,7.3209999999999997,null,18,{"$f":"IF($BL$4=0,0,OFFSET(BG27,$BL$5*$BL$4,0))","v":"Unitary AC (Air Cooled)"},"Split (3 Phase) Package (3 Phase)",3,240000,760000,10,9.6999999999999993,10.1,0,0,0,0,0,0,0,0,0,10.3,0,12.1,0,0,150,10.6,0,13,0,0,200]
[null,null,null,null,null,null,null,null,null,null,null,null,null,null,null,null,null,null,null,null,null,null,null,null,null,null,null,null,null,null,null,null,null,null,null,null,null,null,null,null,null,null,null,null,null,null,null,null,26,"MN",null,"","","UT 9",4.1140000000000003E-2,14.054,null,19,"Unitary AC (Air Cooled)","Split (3 Phase) Package (3 Phase)",3,760000,10000000,9.6999999999999993,9.4,9.8000000000000007,0,0,0,0,0,0,0,0,0,9.6999999999999993,0,11.4,0,0,75,10.199999999999999,0,12.1,0,0,150]
[null,null,null,"User Input Cells",null,null,null,null,null,null,null,null,null,null,null,null,null,null,null,null,null,null,null,null,null,null,null,null,null,null,null,null,null,null,null,null,null,null,null,null,null,null,null,null,null,null,null,null,27,"MO",null,"","","UT 9A",3.4619999999999998E-2,null,null,20,"Ground-Source Heat Pump (Water-to-Air)","Closed Loop",0,0,10000000,13.4,0,15.409999999999998,3.1,3.1,0,0,0,0,0,0,0,17.100000000000001,0,0,3.6,3.6,150,0,0,0,0,0,0]
[null,null,null,null,null,null,null,null,null,null,null,null,null,null,null,null,null,null,null,null,null,null,null,null,null,null,null,null,null,null,null,null,null,null,null,null,null,null,null,null,null,null,null,null,null,null,null,null,28,"MS",null,"","","UT 8",4.5350000000000001E-2,18.260999999999999,null,21,"Ground-Source Heat Pump (Water-to-Air)","Open Loop",0,0,10000000,13.4,0,15.409999999999998,3.1,3.1,0,0,0,0,0,0,0,21.1,0,0,4.0999999999999996,4.0999999999999996,150,0,0,0,0,0,0]
[null,null,null,null,null,null,null,null,null,null,null,null,null,null,null,null,null,null,null,null,null,null,null,{"$f":"OFFSET($BO$9,$Y19,IF($N19=$BK$4,1,0))","v":"47/43"},null,null,null,null,null,null,null,null,null,null,null,null,null,null,null,null,null,null,null,null,null,null,null,null,29,"MT",null,"","","UT 6",3.6790000000000003E-2,12.82,null,22,"Ground-Source Heat Pump (Water-to-Water)","Closed Loop",0,0,10000000,13.4,0,15.409999999999998,3.1,3.1,0,0,0,0,0,0,0,16.100000000000001,0,0,3.1,3.1,150,0,0,0,0,0,0]
[null,null,null,null,null,null,null,null,null,null,null,null,null,null,null,null,null,null,null,null,null,null,null,null,null,null,null,null,null,null,null,null,null,null,null,null,null,null,null,null,null,null,null,null,null,null,null,null,30,"NC",null,"","","OR 48",0,0,null,23,"Ground-Source Heat Pump (Water-to-Water)","Open Loop",0,0,10000000,13.4,0,15.409999999999998,3.1,3.1,0,0,0,0,0,0,0,20.100000000000001,0,0,3.5,3.5,150,0,0,0,0,0,0]
[null,null,null,null,null,null,null,null,null,null,null,null,null,null,null,null,null,null,null,null,null,null,null,null,null,null,null,null,null,null,null,null,null,null,null,null,null,null,null,null,null,null,null,null,null,null,null,null,31,"ND",null,"","","OR 30",0,0,null,24,"Ground-Source Heat Pump (DGX)",0,0,0,10000000,13.4,0,15.409999999999998,3.1,3.1,0,0,0,0,0,0,0,16,0,0,3.6,3.6,150,0,0,0,0,0,0]
[null,null,null,null,null,null,null,null,null,null,null,null,null,null,null,null,null,null,null,null,null,null,null,null,null,null,null,null,null,null,null,null,null,null,null,null,null,null,null,null,null,null,null,null,null,null,null,null,32,"NE",null,"","","OR 28",0,0,null,25,"Unitary AC (Water Cooled)","Split (1 Phase)",1,0,65000,12.1,0,12.3,0,0,0,0,0,0,0,0,0,14,0,0,0,0,100,{"$f":"IF($BL$4=0,0,OFFSET(CD34,$BL$5*$BL$4,0))","v":0},0,0,0,0,0]
[null,null,null,null,null,null,null,null,null,null,null,null,null,null,null,null,null,null,null,null,null,null,null,null,null,null,null,null,null,null,null,null,null,null,null,null,null,null,null,null,null,null,null,null,null,null,null,null,33,"NH",null,"","","ID 35",5.4780000000000002E-2,16.82,null,26,"Unitary AC (Water Cooled)","Package (1 Phase)",1,0,65000,12.1,0,12.3,0,0,0,0,0,0,0,0,0,14,0,0,0,0,100,0,0,0,0,0,0]
[null,null,null,null,null,null,null,null,null,null,null,null,null,null,null,null,null,null,null,null,null,null,null,null,null,null,null,null,null,null,null,null,null,null,null,null,null,null,null,null,null,null,null,null,null,null,null,null,34,"NJ",null,null,"","ID 23",9.1319999999999998E-2,null,null,27,"Unitary AC (Water Cooled)","Split (3 Phase)",3,0,65000,12.1,0,12.3,0,0,0,0,0,0,0,0,0,14,0,0,0,0,100,0,0,0,0,0,0]
[null,null,null,null,null,null,null,null,null,null,null,null,null,null,null,null,null,null,null,null,null,null,null,null,null,null,null,null,null,null,null,null,null,null,null,null,null,null,null,null,null,null,null,null,null,null,null,null,35,"NM",null,null,"","ID 10",5.1290000000000002E-2,6.1150000000000002,null,28,"Unitary AC (Water Cooled)","Package (3 Phase)",3,0,65000,12.1,0,12.3,0,0,0,0,0,0,0,0,0,14,0,0,0,0,100,0,0,0,0,0,0]
[null,null,null,null,null,null,null,null,null,null,null,null,null,null,null,null,null,null,null,null,null,null,null,null,null,null,null,null,null,null,null,null,null,null,null,null,null,null,null,null,null,null,null,null,null,null,null,null,36,"NV",null,null,"","ID 9",4.4179999999999997E-2,9.2029999999999994,null,29,"Unitary AC (Water Cooled)","Split (3 Phase) Package (3 Phase)",3,65000,135000,12.1,0,12.3,0,0,0,0,0,0,0,0,0,13.8,0,15.1,0,0,100,0,0,0,0,0,0]
[null,null,null,null,null,null,null,null,null,null,null,null,null,null,null,null,null,null,null,null,null,null,null,null,null,null,null,null,null,null,null,null,null,null,null,null,null,null,null,null,null,null,null,null,null,null,null,null,37,"NY",null,null,"","ID 6",4.1799999999999997E-2,13.379,null,30,"Unitary AC (Water Cooled)","Split (3 Phase) Package (3 Phase)",3,135000,240000,12.5,0,12.7,0,0,0,0,0,0,0,0,0,13.8,0,14.6,0,0,100,0,0,0,0,0,0]
[null,null,null,null,null,null,null,null,null,null,null,null,null,null,null,null,null,null,null,null,null,null,null,null,null,null,null,null,null,null,null,null,null,null,null,null,null,null,null,null,null,null,null,null,null,null,null,null,38,"OH",null,null,{"$f":"IF(LEFT(BB40,2)=$H$9,AW32,\"\")","v":""},"ID 6A",4.1799999999999997E-2,13.379,null,31,"Unitary AC (Water Cooled)","Split (3 Phase) Package (3 Phase)",3,240000,760000,12.4,0,12.6,0,0,0,0,0,0,0,0,0,13.8,0,14.6,0,0,100,0,0,0,0,0,0]
[null,null,null,null,null,null,null,null,null,null,null,null,null,null,null,null,null,null,null,null,null,null,null,null,null,null,null,null,null,null,null,null,null,null,null,null,null,null,null,null,null,null,null,null,null,null,null,null,39,"OK",null,null,{"$f":"IF(LEFT(BB41,2)=$H$9,AW33,\"\")","v":""},"CA 48",8.9120000000000005E-2,9.2949999999999999,null,32,"Unitary AC (Water Cooled)","Split (3 Phase) Package (3 Phase)",3,760000,10000000,12,0,12.4,0,0,0,0,0,0,0,0,0,13.8,0,14.6,0,0,100,0,0,0,0,0,0]
[null,null,null,null,null,null,null,null,null,null,null,null,null,null,null,null,null,null,null,null,null,null,null,null,null,null,null,null,null,null,null,null,null,null,null,null,null,null,null,null,null,null,null,null,null,null,null,null,40,"OR",null,null,{"$f":"IF(LEFT(BB42,2)=$H$9,AW34,\"\")","v":""},"CA 36",0.10589999999999999,10.95,null,33,"Unitary AC (Evaporatively Cooled)","Split (1 Phase)",1,0,65000,12.1,0,12.3,0,0,0,0,0,0,0,0,0,14,0,0,0,0,100,0,0,0,0,0,0]
[null,null,null,null,null,null,null,null,null,null,null,null,null,null,null,null,null,null,null,null,null,null,null,null,null,null,null,null,null,null,null,null,null,null,null,null,null,null,null,null,null,null,null,null,null,null,null,null,41,"PA",null,null,null,"CA 32",0.1366,4.95,null,34,"Unitary AC (Evaporatively Cooled)","Package (1 Phase)",1,0,65000,12.1,0,12.3,0,0,0,0,0,0,0,0,0,14,0,0,0,0,100,0,0,0,0,0,0]
[null,null,null,null,null,null,null,null,null,null,null,null,null,null,null,null,null,null,null,null,null,null,null,null,null,null,null,null,null,null,null,null,null,null,null,null,null,null,null,null,null,null,null,null,null,null,null,null,42,"RI",null,{"$f":"IF(ISERROR(MID(VLOOKUP(LARGE($BA$11:$BA$67,AW28),$BA$11:$BB$68,2,),4,5)),\"\",MID(VLOOKUP(LARGE($BA$11:$BA$67,AW28),$BA$11:$BB$68,2,),4,5))","v":""},{"$f":"IF(LEFT(BB36,2)=$H$9,AW28,\"\")","v":""},"CA 25",0.16969999999999999,null,null,35,"Unitary AC (Evaporatively Cooled)","Split (3 Phase)",3,0,65000,12.1,0,12.3,0,0,0,0,0,0,0,0,0,14,0,0,0,0,100,0,0,0,0,0,0]
[null,null,null,null,null,null,null,null,null,null,null,null,null,null,null,null,null,null,null,null,null,null,null,null,null,null,null,null,null,null,null,null,null,null,null,null,null,null,null,null,null,null,null,null,null,null,null,null,43,"SC",null,"","","CA PA20",0.12662000000000001,5.1760000000000002,null,36,"Unitary AC (Evaporatively Cooled)","Package (3 Phase)",3,0,65000,12.1,0,12.3,0,0,0,0,0,0,0,0,0,14,0,0,0,0,100,0,0,0,0,0,0]
[null,null,null,null,null,null,null,null,null,null,null,null,null,null,null,null,null,null,null,null,null,null,null,null,null,null,null,null,null,null,null,null,null,null,null,null,null,null,null,null,null,null,null,null,null,null,null,null,44,"SD",null,"","",null,null,null,null,37,"Unitary AC (Evaporatively Cooled)","Split (3 Phase) Package (3 Phase)",3,65000,135000,12.1,0,12.3,0,0,0,0,0,0,0,0,0,13.8,0,15.1,0,0,100,0,0,0,0,0,0]
[null,null,null,null,null,null,null,null,null,null,null,null,null,null,null,null,null,null,null,null,null,null,null,null,null,null,null,null,null,null,null,null,null,null,null,null,null,null,null,null,null,null,null,null,null,null,null,null,45,"TN",null,"","",null,null,null,null,38,"Unitary AC (Evaporatively Cooled)","Split (3 Phase) Package (3 Phase)",{"$f":"IF($BL$4=0,0,OFFSET(BI47,$BL$5*$BL$4,0))","v":3},135000,240000,12,0,12.2,0,0,0,0,0,0,0,0,0,13.3,{"$f":"IF($BL$4=0,0,OFFSET(BY47,$BL$5*$BL$4,0))","v":0},14.1,0,0,100,0,0,0,0,0,0]
[null,null,null,null,null,null,null,null,null,null,null,null,null,null,null,null,null,null,null,null,null,null,null,null,null,null,null,null,null,null,null,null,null,null,null,null,null,null,null,null,null,null,null,null,null,null,null,null,46,"TX",null,"",{"$f":"IF(LEFT(BB40,2)=$H$9,AW32,\"\")","v":""},null,null,null,null,39,"Unitary AC (Evaporatively Cooled)","Split (3 Phase) Package (3 Phase)",3,240000,760000,11.9,0,12.1,0,0,0,0,0,0,0,0,0,13.3,0,14.1,0,0,100,0,0,0,0,0,0]
[null,null,null,null,null,null,null,null,null,null,null,null,null,null,null,null,null,null,null,null,null,null,null,null,null,null,null,null,null,null,null,null,null,null,null,null,null,null,null,null,null,null,null,null,null,null,null,null,47,"VA",null,"",{"$f":"IF(LEFT(BB41,2)=$H$9,AW33,\"\")","v":""},null,null,null,null,40,"Unitary AC (Evaporatively Cooled)","Split (3 Phase) Package (3 Phase)",3,760000,10000000,11.7,0,11.9,0,0,0,0,0,0,0,0,0,13.3,0,14.1,0,0,100,0,0,0,0,0,0]
[null,null,null,null,null,null,null,null,null,null,null,null,null,null,null,null,null,null,null,null,null,null,null,null,null,null,null,null,null,null,null,null,null,null,null,null,null,null,null,null,null,null,null,null,null,null,null,null,48,"VT",null,"",{"$f":"IF(LEFT(BB42,2)=$H$9,AW34,\"\")","v":""},null,null,null,null,41,"VRF HP (Air Cooled)","Multi-split System",0,0,65000,10.87,13,0,7.7,7.7,0,12.5,15,0,8.5,8.5,400,0,0,0,0,0,0,0,0,0,0,0,0]
[null,null,null,null,null,null,null,null,null,null,null,null,null,null,null,null,null,null,null,null,null,null,null,null,null,null,null,null,null,null,null,null,null,null,null,null,null,null,null,null,null,null,null,null,null,null,null,null,49,"WI",null,"",{"$f":"IF(LEFT(BB51,2)=$H$9,AW35,\"\")","v":""},null,null,null,null,42,"VRF HP (Air Cooled)","Multi-split w/Heat Recovery",0,0,65000,10.87,13,0,7.7,7.7,0,12.5,15,0,8.5,8.5,400,0,0,0,0,0,0,0,0,0,0,0,0]
[null,null,null,null,null,null,null,null,null,null,null,null,null,null,null,null,null,null,null,null,null,null,null,null,null,null,null,null,null,null,null,null,null,null,null,null,null,null,null,null,null,null,null,null,null,null,null,null,50,"WV",null,"",{"$f":"IF(LEFT(BB52,2)=$H$9,AW36,\"\")","v":""},null,null,null,null,43,"VRF HP (Air Cooled)","Multi-split System",0,65000,135000,11,0,12.9,3.3,2.25,0,11.3,0,14.2,3.4,2.4,400,0,0,0,0,0,0,0,0,0,0,0,0]
[null,null,null,null,null,null,null,null,null,null,null,null,null,null,null,null,null,null,null,null,null,null,null,null,null,null,null,null,null,null,null,null,null,null,null,null,null,null,null,null,null,null,null,null,null,null,null,null,null,null,null,"",{"$f":"IF(LEFT(BB53,2)=$H$9,AW37,\"\")","v":""},null,null,null,null,44,"VRF HP (Air Cooled)","Multi-split w/Heat Recovery",0,65000,135000,10.8,0,12.7,3.3,2.25,0,11.1,0,14,3.4,2.4,400,0,0,0,0,0,0,0,0,0,0,0,0]
[null,null,null,null,null,null,null,null,null,null,null,null,null,null,null,null,null,null,null,null,null,null,null,null,null,null,null,null,null,null,null,null,null,null,null,null,null,null,null,null,null,null,null,null,null,null,null,null,null,null,null,"",{"$f":"IF(LEFT(BB54,2)=$H$9,AW38,\"\")","v":""},null,null,null,null,45,"VRF HP (Air Cooled)","Multi-split System",0,135000,240000,10.6,0,12.3,3.2,2.0499999999999998,0,10.9,0,13.7,3.2,2.1,400,0,0,0,0,0,0,0,0,0,0,0,0]
[null,null,null,null,null,null,null,null,null,null,null,null,null,null,null,null,null,null,null,null,null,null,null,null,null,null,null,null,null,null,null,null,null,null,null,null,null,null,null,null,null,null,null,null,null,null,null,null,null,null,null,null,null,null,null,null,null,46,"VRF HP (Air Cooled)","Multi-split w/Heat Recovery",0,135000,240000,10.4,0,12.1,3.2,2.0499999999999998,0,10.7,0,13.5,3.2,2.1,400,0,0,0,0,0,0,0,0,0,0,0,0]
[null,null,null,null,null,null,null,null,null,null,null,null,null,null,null,null,null,null,null,null,null,null,null,null,null,null,null,null,null,null,null,null,null,null,null,null,null,null,null,null,null,null,null,null,null,null,null,null,null,null,null,null,null,null,null,null,null,47,"VRF HP (Air Cooled)","Multi-split System",0,240000,10000000,9.5,0,11,3.2,2.0499999999999998,0,10.3,0,12.5,3.2,2.1,400,0,0,0,0,0,0,0,0,0,0,0,0]
[null,null,null,null,null,null,null,null,null,null,null,null,null,null,null,null,null,null,null,null,null,null,null,null,null,null,null,null,null,null,null,null,null,null,null,null,null,null,null,null,null,null,null,null,null,null,null,null,null,null,null,null,null,null,null,null,null,48,"VRF HP (Air Cooled)","Multi-split w/Heat Recovery",0,240000,10000000,9.3000000000000007,0,10.8,3.2,2.0499999999999998,0,10.1,0,12.3,3.2,2.1,400,0,0,0,0,0,0,0,0,0,0,0,0]
[null,null,null,null,null,null,null,null,null,null,null,null,null,null,null,null,null,null,null,null,null,null,null,null,null,null,null,null,null,null,null,null,null,null,null,null,null,null,null,null,null,null,null,null,null,null,null,null,null,null,null,null,null,null,null,null,null,49,"VRF HP (Water Source)","Multi-split System",0,0,135000,12,0,13.799999999999999,4.2,4.2,0,14,0,0,4.5999999999999996,4.5999999999999996,400,0,0,0,0,0,0,0,0,0,0,0,0]
[null,null,null,null,null,null,null,null,null,null,null,null,null,null,null,null,null,null,null,null,null,null,null,null,null,null,null,null,null,null,null,null,null,null,null,null,null,null,null,null,null,null,null,null,null,null,null,null,null,null,null,null,null,null,null,null,null,50,"VRF HP (Water Source)","Multi-split w/Heat Recovery",0,0,135000,11.8,0,13.57,4.2,4.2,0,13.8,0,0,4.5999999999999996,4.5999999999999996,400,0,0,0,0,0,0,0,0,0,0,0,0]
[null,null,null,null,null,null,null,null,null,null,null,null,null,null,null,null,null,null,null,null,null,null,null,null,null,null,null,null,null,null,null,null,null,null,null,null,null,null,null,null,null,null,null,null,null,null,null,null,null,null,null,null,null,null,null,null,null,51,0,0,0,0,0,0,0,0,0,0,0,0,0,0,0,0,0,0,0,0,0,0,0,0,0,0,0,0,0]
[null,null,null,null,null,null,null,null,null,null,null,null,null,null,null,null,null,null,null,null,null,null,null,null,null,null,null,null,null,null,null,null,null,null,null,null,null,null,null,null,null,null,null,null,null,null,null,null,null,null,null,null,null,null,null,null,null,52,0,0,0,0,0,0,0,0,0,0,0,0,0,0,0,0,0,0,0,0,0,0,0,0,0,0,0,0,0]
[null,null,null,null,null,null,null,null,null,null,null,null,null,null,null,null,null,null,null,null,null,null,null,null,null,null,null,null,null,null,null,null,null,null,null,null,null,null,null,null,null,null,null,null,null,null,null,null,null,null,null,{"$f":"IF(ISERROR(MID(VLOOKUP(LARGE($BA$11:$BA$67,AW39),$BA$11:$BB$68,2,),4,5)),\"\",MID(VLOOKUP(LARGE($BA$11:$BA$67,AW39),$BA$11:$BB$68,2,),4,5))","v":""},{"$f":"IF(LEFT(BB62,2)=$H$9,AW39,\"\")","v":""},"","","",null,53,0,0,0,0,0,0,0,0,0,0,0,0,0,0,0,0,0,0,0,0,0,0,0,0,0,0,0,0,0]
[null,null,null,null,null,null,null,null,null,null,null,null,null,null,null,null,null,null,null,null,null,null,null,null,null,null,null,null,null,null,null,null,null,null,null,null,null,null,null,null,null,null,null,null,null,null,null,null,null,null,null,"","","","","",null,54,0,0,0,{"$f":"IF($BL$4=0,0,OFFSET(BJ63,$BL$5*$BL$4,0))","v":0},0,0,0,0,0,0,0,0,0,0,0,0,0,0,0,0,0,0,0,0,0,0,0,0,0]
[null,null,null,null,null,null,null,null,null,null,null,null,null,null,null,null,null,null,null,null,null,null,null,null,null,null,null,null,null,null,null,null,null,null,null,null,null,null,null,null,null,null,null,null,null,null,null,null,null,null,null,"","","","","",null,"↓ ADD OR CHANGE EFFICIENCY REQUIRMENTS BELOW↓"]
[null,null,null,null,null,null,null,null,null,null,null,null,null,null,null,null,null,null,null,null,null,null,null,null,null,null,null,null,null,null,null,null,null,null,null,null,null,null,null,null,null,null,null,null,null,null,null,null,null,null,null,"","","","","",null,null,null,null,null,null,null,"UT",null,null,null,null,null,"Code","EFLCH","EFLHH","NTG","CF","Cooling Months","Defined in Fed Code","Estimation","Defined in State Code",null,"PTAC Calcs from Deemed Savings",null,"Cost","kW/Unit","Gross kWh/yr","$/ton"]
[null,null,null,null,null,null,null,null,null,null,null,null,null,null,null,null,null,null,null,null,null,null,null,null,null,null,null,null,null,null,null,null,null,null,null,null,null,null,null,null,null,null,null,null,null,null,null,null,null,null,null,"","","","","",null,null,null,null,null,null,null,null,null,null,null,null,null,"IECC 2018, Tables C403.2.3(1) & C403.2.3(2)",953.41,2443,1,1,5,null,"Not Used","Existing in Program",null,null,null,200,9.8000000000000004E-2,400,50]
[null,null,null,null,null,null,null,null,null,null,null,null,null,null,null,null,null,null,null,null,null,null,null,null,null,null,null,null,null,null,null,null,null,null,null,null,null,null,null,null,null,null,null,null,null,null,null,null,null,null,null,"","","","","",null,null,null,null,null,null,null,"Baseline",null,null,null,null,null,"Tier",1,null,25,"per ton",null,"Tier",2,null,50,{"$f":"BV67","v":"per ton"},null,"Tier",3,null,75,{"$f":"CB67","v":"per ton"}]
[null,null,null,null,null,null,null,null,null,null,null,null,null,null,null,null,null,null,null,null,null,null,null,null,null,null,null,null,null,null,null,null,null,null,null,null,null,null,null,null,null,null,null,null,null,null,null,null,null,null,null,null,null,null,null,null,null,null,null,null,null,null,null,"Cooling",null,null,"Heating",null,null,"Cooling",null,null,"Heating",null,"Gross Incremental Cost/Ton","Cooling",null,null,"Heating",null,"Gross Incremental Cost/Ton","Cooling",null,null,"Heating",null,"Gross Incremental Cost/Ton"]
[null,null,null,null,null,null,null,null,null,null,null,null,null,null,null,null,null,null,null,null,null,null,null,null,null,null,null,null,null,null,null,null,null,null,null,null,null,null,null,null,null,null,null,null,null,null,null,null,null,null,null,null,null,null,null,null,null,null,null,null,null,null,null,"EER","SEER IPLV","IEER","HSPF COP @ DB/WB",null,null,"EER","SEER IPLV","IEER","HSPF COP @ DB/WB",null,null,"EER","SEER IPLV","IEER","HSPF COP @ DB/WB",null,null,"EER","SEER IPLV","IEER","HSPF COP @ DB/WB"]
[null,null,null,null,null,null,null,null,null,null,null,null,null,null,null,null,null,null,null,null,null,null,null,null,null,null,null,null,null,null,null,null,null,null,null,null,null,null,null,null,null,null,null,null,null,null,null,null,null,null,null,null,null,null,null,null,null,null,"Equip Type","Category","Phase","Min (>=)","Max (<)",null,null,null,"47/43","17/15",null,null,null,null,"47/43","17/15",null,null,null,null,"47/43","17/15",null,null,null,null,"47/43","17/15"]
[null,null,null,null,null,null,null,null,null,null,null,null,null,null,null,null,null,null,null,null,null,null,null,null,null,null,null,null,null,null,null,null,null,null,null,null,null,null,null,null,null,null,null,null,null,null,null,null,null,null,null,null,null,null,null,null,null,1,"Heat Pump (Air Cooled)","Split (1 Phase)",1,0,65000,null,14,null,8.1999999999999993,8.1999999999999993,null,null,null,null,null,null,null,null,16,null,9,9,150]
[null,null,null,null,null,null,null,null,null,null,null,null,null,null,null,null,null,null,null,null,null,null,null,null,null,null,null,null,null,null,null,null,null,null,null,null,null,null,null,null,null,null,null,null,null,null,null,null,null,null,null,null,null,null,null,null,null,2,"Heat Pump (Air Cooled)","Package (1 Phase)",1,0,65000,null,14,null,8,8,null,null,null,null,null,null,null,null,16,null,8.1999999999999993,8.1999999999999993,150]
[null,null,null,null,null,null,null,null,null,null,null,null,null,null,null,null,null,null,null,null,null,null,null,null,null,null,null,null,null,null,null,null,null,null,null,null,null,null,null,null,null,null,null,null,null,null,null,null,null,null,null,null,null,null,null,null,null,3,"Heat Pump (Air Cooled)","Split (3 Phase)",3,0,65000,null,14,null,8.1999999999999993,8.1999999999999993,null,null,15,null,8.5,8.5,105,null,16,null,9,9,150]
[null,null,null,null,null,null,null,null,null,null,null,null,null,null,null,null,null,null,null,null,null,null,null,null,null,null,null,null,null,null,null,null,null,null,null,null,null,null,null,null,null,null,null,null,null,null,null,null,null,null,null,null,null,null,null,null,null,4,"Heat Pump (Air Cooled)","Package (3 Phase)",3,0,65000,null,14,null,8,8,null,null,15,null,8.1999999999999993,8.1999999999999993,105,null,16,null,8.1999999999999993,8.1999999999999993,150]
[null,null,null,null,null,null,null,null,null,null,null,null,null,null,null,null,null,null,null,null,null,null,null,null,null,null,null,null,null,null,null,null,null,null,null,null,null,null,null,null,null,null,null,null,null,null,null,null,null,null,null,null,null,null,null,null,null,5,"Heat Pump (Air Cooled)","Split (3 Phase) Package (3 Phase)",3,65000,135000,10.8,null,12,3.3,2.25,null,10.8,null,13.4,3.4,2.4,105,null,null,null,null,null,150]
[null,null,null,null,null,null,null,null,null,null,null,null,null,null,null,null,null,null,null,null,null,null,null,null,null,null,null,null,null,null,null,null,null,null,null,null,null,null,null,null,null,null,null,null,null,null,null,null,null,null,null,null,null,null,null,null,null,6,"Heat Pump (Air Cooled)","Split (3 Phase) Package (3 Phase)",3,135000,240000,10.4,null,11.4,3.2,2.0499999999999998,null,10.4,null,12.6,3.3,2.1,105,null,null,null,null,null,150]
[null,null,null,null,null,null,null,null,null,null,null,null,null,null,null,null,null,null,null,null,null,null,null,null,null,null,null,null,null,null,null,null,null,null,null,null,null,null,null,null,null,null,null,null,null,null,null,null,null,null,null,null,null,null,null,null,null,7,"Heat Pump (Air Cooled)","Split (3 Phase) Package (3 Phase)",3,240000,10000000,9.3000000000000007,null,10.4,3.2,2.0499999999999998,null,9.3000000000000007,null,11.6,3.3,2.1,105,null,null,null,null,null,150]
[null,null,null,null,null,null,null,null,null,null,null,null,null,null,null,null,null,null,null,null,null,null,null,null,null,null,null,null,null,null,null,null,null,null,null,null,null,null,null,null,null,null,null,null,null,null,null,null,null,null,null,null,null,null,null,null,null,8,"Heat Pump (Water Cooled)",null,null,0,17000,12.2,null,{"$f":"BL78*1.15","v":14.029999999999998},4.3,4.3,null,null,null,null,null,null,null,14,null,null,4.5999999999999996,4.5999999999999996,100]
[null,null,null,null,null,null,null,null,null,null,null,null,null,null,null,null,null,null,null,null,null,null,null,null,null,null,null,null,null,null,null,null,null,null,null,null,null,null,null,null,null,null,null,null,null,null,null,null,null,null,null,null,null,null,null,null,null,9,"Heat Pump (Water Cooled)",null,null,17000,65000,13,null,{"$f":"BL79*1.15","v":14.95},4.3,4.3,null,null,null,null,null,null,null,14,null,null,4.5999999999999996,4.5999999999999996,100]
[null,null,null,null,null,null,null,null,null,null,null,null,null,null,null,null,null,null,null,null,null,null,null,null,null,null,null,null,null,null,null,null,null,null,null,null,null,null,null,null,null,null,null,null,null,null,null,null,null,null,null,null,null,null,null,null,null,10,"Heat Pump (Water Cooled)",null,null,65000,135000,13,null,{"$f":"BL80*1.15","v":14.95},4.3,4.3,null,null,null,null,null,null,null,14,null,null,4.5999999999999996,4.5999999999999996,100]
[null,null,null,null,null,null,null,null,null,null,null,null,null,null,null,null,null,null,null,null,null,null,null,null,null,null,null,null,null,null,null,null,null,null,null,null,null,null,null,null,null,null,null,null,null,null,null,null,null,null,null,null,null,null,null,null,null,11,"Unitary AC (Air Cooled)","Split (1 Phase)",1,0,45000,11,13,null,null,null,null,null,null,null,null,null,null,11,16,null,null,null,235,11,18,null,null,null,375]
[null,null,null,null,null,null,null,null,null,null,null,null,null,null,null,null,null,null,null,null,null,null,null,null,null,null,null,null,null,null,null,null,null,null,null,null,null,null,null,null,null,null,null,null,null,null,null,null,null,null,null,null,null,null,null,null,null,12,"Unitary AC (Air Cooled)","Split (1 Phase)",1,45000,65000,11,13,null,null,null,null,null,null,null,null,null,null,11,16,null,null,null,235,11,18,null,null,null,375]
[null,null,null,null,null,null,null,null,null,null,null,null,null,null,null,null,null,null,null,null,null,null,null,null,null,null,null,null,null,null,null,null,null,null,null,null,null,null,null,null,null,null,null,null,null,null,null,null,null,null,null,null,null,null,null,null,null,13,"Unitary AC (Air Cooled)","Package (1 Phase)",1,0,65000,11,14,null,null,null,null,null,null,null,null,null,null,10000,10000,null,null,null,235,10000,10000]
[null,null,null,null,null,null,null,null,null,null,null,null,null,null,null,null,null,null,null,null,null,null,null,null,null,null,null,null,null,null,null,null,null,null,null,null,null,null,null,null,null,null,null,null,null,null,null,null,null,null,null,null,null,null,null,null,null,14,"Unitary AC (Air Cooled)","Split (3 Phase)",3,0,65000,11,13,null,null,null,null,null,null,null,null,null,null,11,16,null,null,null,175,11,18,null,null,null,375]
[null,null,null,null,null,null,null,null,null,null,null,null,null,null,null,null,null,null,null,null,null,null,null,null,null,null,null,null,null,null,null,null,null,null,null,null,null,null,null,null,null,null,null,null,null,null,null,null,null,null,null,null,null,null,null,null,null,15,"Unitary AC (Air Cooled)","Package (3 Phase)",3,0,65000,11,14,null,null,null,null,null,null,null,null,null,null,10000,10000,null,null,null,175,10000,10000]
[null,null,null,null,null,null,null,null,null,null,null,null,null,null,null,null,null,null,null,null,null,null,null,null,null,null,null,null,null,null,null,null,null,null,null,null,null,null,null,null,null,null,null,null,null,null,null,null,null,null,null,null,null,null,null,null,null,16,"Unitary AC (Air Cooled)","Split (3 Phase)",3,65000,135000,11,10000,12.7,null,null,null,null,null,null,null,null,null,11,null,14.6,null,null,150,11,null,17.8,null,null,300]
[null,null,null,null,null,null,null,null,null,null,null,null,null,null,null,null,null,null,null,null,null,null,null,null,null,null,null,null,null,null,null,null,null,null,null,null,null,null,null,null,null,null,null,null,null,null,null,null,null,null,null,null,null,null,null,null,null,17,"Unitary AC (Air Cooled)","Split (3 Phase) Package (3 Phase)",3,135000,240000,10.8,10000,12.2,null,null,null,null,null,null,null,null,null,10.8,null,14,null,null,125,10.8,null,16.8,null,null,205]
[null,null,null,null,null,null,null,null,null,null,null,null,null,null,null,null,null,null,null,null,null,null,null,null,null,null,null,null,null,null,null,null,null,null,null,null,null,null,null,null,null,null,null,null,null,null,null,null,null,null,null,null,null,null,null,null,null,18,"Unitary AC (Air Cooled)","Split (3 Phase) Package (3 Phase)",3,240000,760000,9.8000000000000007,10000,11.4,null,null,null,null,null,null,null,null,null,9.8000000000000007,null,13,null,null,95,9.8000000000000007,null,14.3,null,null,185]
[null,null,null,null,null,null,null,null,null,null,null,null,null,null,null,null,null,null,null,null,null,null,null,null,null,null,null,null,null,null,null,null,null,null,null,null,null,null,null,null,null,null,null,null,null,null,null,null,null,null,null,null,null,null,null,null,null,19,"Unitary AC (Air Cooled)","Split (3 Phase) Package (3 Phase)",3,760000,10000000,9.5,10000,11,null,null,null,null,null,null,null,null,null,9.5,null,12.1,null,null,160]
[null,null,null,null,null,null,null,null,null,null,null,null,null,null,null,null,null,null,null,null,null,null,null,null,null,null,null,null,null,null,null,null,null,null,null,null,null,null,null,null,null,null,null,null,null,null,null,null,null,null,null,null,null,null,null,null,null,20,"Ground-Source Heat Pump",null,null,0,10000000,14.1,null,{"$f":"BL90*1.15","v":16.215},3.2,3.2,null,null,null,null,null,null,null,17.100000000000001,null,null,3.6,3.6,150]
[null,null,null,null,null,null,null,null,null,null,null,null,null,null,null,null,null,null,null,null,null,null,null,null,null,null,null,null,null,null,null,null,null,null,null,null,null,null,null,null,null,null,null,null,null,null,null,null,null,null,null,null,null,null,null,null,null,21,"Groundwater Source Heat Pump",null,null,0,10000000,18,null,{"$f":"BL91*1.15","v":20.7},3.7,3.7,null,null,null,null,null,null,null,21.1,null,null,4.0999999999999996,4.0999999999999996,150]
[null,null,null,null,null,null,null,null,null,null,null,null,null,null,null,null,null,null,null,null,null,null,null,null,null,null,null,null,null,null,null,null,null,null,null,null,null,null,null,null,null,null,null,null,null,null,null,null,null,null,null,null,null,null,null,null,null,22,"Unitary AC (Water Cooled)","Split (1 Phase)",1,0,65000,12.1,null,12.3,null,null,null,null,null,null,null,null,null,14,null,null,null,null,100]
[null,null,null,null,null,null,null,null,null,null,null,null,null,null,null,null,null,null,null,null,null,null,null,null,null,null,null,null,null,null,null,null,null,null,null,null,null,null,null,null,null,null,null,null,null,null,null,null,null,null,null,null,null,null,null,null,null,23,"Unitary AC (Water Cooled)","Package (1 Phase)",1,0,65000,12.1,null,12.3,null,null,null,null,null,null,null,null,null,14,null,null,null,null,100]
[null,null,null,null,null,null,null,null,null,null,null,null,null,null,null,null,null,null,null,null,null,null,null,null,null,null,null,null,null,null,null,null,null,null,null,null,null,null,null,null,null,null,null,null,null,null,null,null,null,null,null,null,null,null,null,null,null,24,"Unitary AC (Water Cooled)","Split (3 Phase)",3,0,65000,12.1,null,12.3,null,null,null,null,null,null,null,null,null,14,null,null,null,null,100]
[null,null,null,null,null,null,null,null,null,null,null,null,null,null,null,null,null,null,null,null,null,null,null,null,null,null,null,null,null,null,null,null,null,null,null,null,null,null,null,null,null,null,null,null,null,null,null,null,null,null,null,null,null,null,null,null,null,25,"Unitary AC (Water Cooled)","Package (3 Phase)",3,0,65000,12.1,null,12.3,null,null,null,null,null,null,null,null,null,14,null,null,null,null,100]
[null,null,null,null,null,null,null,null,null,null,null,null,null,null,null,null,null,null,null,null,null,null,null,null,null,null,null,null,null,null,null,null,null,null,null,null,null,null,null,null,null,null,null,null,null,null,null,null,null,null,null,null,null,null,null,null,null,26,"Unitary AC (Water Cooled)","Split (3 Phase) Package (3 Phase)",3,65000,135000,11.9,10000,13.7,null,null,null,null,null,null,null,null,null,11.9,null,15.1,null,null,100]
[null,null,null,null,null,null,null,null,null,null,null,null,null,null,null,null,null,null,null,null,null,null,null,null,null,null,null,null,null,null,null,null,null,null,null,null,null,null,null,null,null,null,null,null,null,null,null,null,null,null,null,null,null,null,null,null,null,27,"Unitary AC (Water Cooled)","Split (3 Phase) Package (3 Phase)",3,135000,240000,12.3,10000,13.7,null,null,null,null,null,null,null,null,null,12.3,null,14.6,null,null,100]
[null,null,null,null,null,null,null,null,null,null,null,null,null,null,null,null,null,null,null,null,null,null,null,null,null,null,null,null,null,null,null,null,null,null,null,null,null,null,null,null,null,null,null,null,null,null,null,null,null,null,null,null,null,null,null,null,null,28,"Unitary AC (Water Cooled)","Split (3 Phase) Package (3 Phase)",3,240000,760000,12.2,10000,13.4,null,null,null,null,null,null,null,null,null,12.3,null,14.6,null,null,100]
[null,null,null,null,null,null,null,null,null,null,null,null,null,null,null,null,null,null,null,null,null,null,null,null,null,null,null,null,null,null,null,null,null,null,null,null,null,null,null,null,null,null,null,null,null,null,null,null,null,null,null,null,null,null,null,null,null,29,"Unitary AC (Water Cooled)","Split (3 Phase) Package (3 Phase)",3,760000,10000000,12,10000,13.3,null,null,null,null,null,null,null,null,null,12.3,null,14.6,null,null,100]
[null,null,null,null,null,null,null,null,null,null,null,null,null,null,null,null,null,null,null,null,null,null,null,null,null,null,null,null,null,null,null,null,null,null,null,null,null,null,null,null,null,null,null,null,null,null,null,null,null,null,null,null,null,null,null,null,null,30,"Unitary AC (Evaporatively Cooled)","Split (1 Phase)",1,0,65000,12.1,null,12.3,null,null,null,null,null,null,null,null,null,14,null,null,null,null,100]
[null,null,null,null,null,null,null,null,null,null,null,null,null,null,null,null,null,null,null,null,null,null,null,null,null,null,null,null,null,null,null,null,null,null,null,null,null,null,null,null,null,null,null,null,null,null,null,null,null,null,null,null,null,null,null,null,null,31,"Unitary AC (Evaporatively Cooled)","Package (1 Phase)",1,0,65000,12.1,null,12.3,null,null,null,null,null,null,null,null,null,14,null,null,null,null,100]
[null,null,null,null,null,null,null,null,null,null,null,null,null,null,null,null,null,null,null,null,null,null,null,null,null,null,null,null,null,null,null,null,null,null,null,null,null,null,null,null,null,null,null,null,null,null,null,null,null,null,null,null,null,null,null,null,null,32,"Unitary AC (Evaporatively Cooled)","Split (3 Phase)",3,0,65000,12.1,null,12.3,null,null,null,null,null,null,null,null,null,14,null,null,null,null,100]
[null,null,null,null,null,null,null,null,null,null,null,null,null,null,null,null,null,null,null,null,null,null,null,null,null,null,null,null,null,null,null,null,null,null,null,null,null,null,null,null,null,null,null,null,null,null,null,null,null,null,null,null,null,null,null,null,null,33,"Unitary AC (Evaporatively Cooled)","Package (3 Phase)",3,0,65000,12.1,null,12.3,null,null,null,null,null,null,null,null,null,14,null,null,null,null,100]
[null,null,null,null,null,null,null,null,null,null,null,null,null,null,null,null,null,null,null,null,null,null,null,null,null,null,null,null,null,null,null,null,null,null,null,null,null,null,null,null,null,null,null,null,null,null,null,null,null,null,null,null,null,null,null,null,null,34,"Unitary AC (Evaporatively Cooled)","Split (3 Phase) Package (3 Phase)",3,65000,135000,11.9,10000,12.1,null,null,null,null,null,null,null,null,null,11.9,null,15.1,null,null,100]
[null,null,null,null,null,null,null,null,null,null,null,null,null,null,null,null,null,null,null,null,null,null,null,null,null,null,null,null,null,null,null,null,null,null,null,null,null,null,null,null,null,null,null,null,null,null,null,null,null,null,null,null,null,null,null,null,null,35,"Unitary AC (Evaporatively Cooled)","Split (3 Phase) Package (3 Phase)",3,135000,240000,11.8,10000,12,null,null,null,null,null,null,null,null,null,11.8,null,14.1,null,null,100]
[null,null,null,null,null,null,null,null,null,null,null,null,null,null,null,null,null,null,null,null,null,null,null,null,null,null,null,null,null,null,null,null,null,null,null,null,null,null,null,null,null,null,null,null,null,null,null,null,null,null,null,null,null,null,null,null,null,36,"Unitary AC (Evaporatively Cooled)","Split (3 Phase) Package (3 Phase)",3,240000,760000,11.7,10000,11.9,null,null,null,null,null,null,null,null,null,11.8,null,14.1,null,null,100]
[null,null,null,null,null,null,null,null,null,null,null,null,null,null,null,null,null,null,null,null,null,null,null,null,null,null,null,null,null,null,null,null,null,null,null,null,null,null,null,null,null,null,null,null,null,null,null,null,null,null,null,null,null,null,null,null,null,37,"Unitary AC (Evaporatively Cooled)","Split (3 Phase) Package (3 Phase)",3,760000,10000000,11.5,10000,11.7,null,null,null,null,null,null,null,null,null,11.8,null,14.1,null,null,100]
[null,null,null,null,null,null,null,null,null,null,null,null,null,null,null,null,null,null,null,null,null,null,null,null,null,null,null,null,null,null,null,null,null,null,null,null,null,null,null,null,null,null,null,null,null,null,null,null,null,null,null,null,null,null,null,null,null,38,"VRF HP (Air Cooled)","Multi-split System",null,0,65000,11,13,null,7.7,7.7,null,null,null,null,null,null,null,null,null,null,null,null,null,1,15,null,8.5,8.5,535]
[null,null,null,null,null,null,null,null,null,null,null,null,null,null,null,null,null,null,null,null,null,null,null,null,null,null,null,null,null,null,null,null,null,null,null,null,null,null,null,null,null,null,null,null,null,null,null,null,null,null,null,null,null,null,null,null,null,39,"VRF HP (Air Cooled)","Multi-split w/Heat Recovery",null,0,65000,11,13,null,7.7,7.7,null,null,null,null,null,null,null,null,null,null,null,null,null,1,15,null,8.5,8.5,535]
[null,null,null,null,null,null,null,null,null,null,null,null,null,null,null,null,null,null,null,null,null,null,null,null,null,null,null,null,null,null,null,null,null,null,null,null,null,null,null,null,null,null,null,null,null,null,null,null,null,null,null,null,null,null,null,null,null,40,"VRF HP (Air Cooled)","Multi-split System",null,65000,135000,11,10000,12.9,3.3,2.25,null,null,null,null,null,null,null,null,null,null,null,null,null,10.8,null,14.2,3.4,2.4,535]
[null,null,null,null,null,null,null,null,null,null,null,null,null,null,null,null,null,null,null,null,null,null,null,null,null,null,null,null,null,null,null,null,null,null,null,null,null,null,null,null,null,null,null,null,null,null,null,null,null,null,null,null,null,null,null,null,null,41,"VRF HP (Air Cooled)","Multi-split w/Heat Recovery",null,65000,135000,10.8,10000,12.7,3.3,2.25,null,null,null,null,null,null,null,null,null,null,null,null,null,10.8,null,14,3.4,2.4,775]
[null,null,null,null,null,null,null,null,null,null,null,null,null,null,null,null,null,null,null,null,null,null,null,null,null,null,null,null,null,null,null,null,null,null,null,null,null,null,null,null,null,null,null,null,null,null,null,null,null,null,null,null,null,null,null,null,null,42,"VRF HP (Air Cooled)","Multi-split System",null,135000,240000,10.6,10000,12.3,3.2,2.0499999999999998,null,null,null,null,null,null,null,null,null,null,null,null,null,10.4,null,13.7,3.2,2.1,560]
[null,null,null,null,null,null,null,null,null,null,null,null,null,null,null,null,null,null,null,null,null,null,null,null,null,null,null,null,null,null,null,null,null,null,null,null,null,null,null,null,null,null,null,null,null,null,null,null,null,null,null,null,null,null,null,null,null,43,"VRF HP (Air Cooled)","Multi-split w/Heat Recovery",null,135000,240000,10.4,10000,12.1,3.2,2.0499999999999998,null,null,null,null,null,null,null,null,null,null,null,null,null,10.4,null,13.5,3.2,2.1,735]
[null,null,null,null,null,null,null,null,null,null,null,null,null,null,null,null,null,null,null,null,null,null,null,null,null,null,null,null,null,null,null,null,null,null,null,null,null,null,null,null,null,null,null,null,null,null,null,null,null,null,null,null,null,null,null,null,null,44,"VRF HP (Air Cooled)","Multi-split System",null,240000,10000000,9.5,10000,11,3.2,2.0499999999999998,null,null,null,null,null,null,null,null,null,null,null,null,null,9.3000000000000007,null,12.5,3.2,2.1,525]
[null,null,null,null,null,null,null,null,null,null,null,null,null,null,null,null,null,null,null,null,null,null,null,null,null,null,null,null,null,null,null,null,null,null,null,null,null,null,null,null,null,null,null,null,null,null,null,null,null,null,null,null,null,null,null,null,null,45,"VRF HP (Air Cooled)","Multi-split w/Heat Recovery",null,240000,10000000,9.3000000000000007,10000,10.8,3.2,2.0499999999999998,null,null,null,null,null,null,null,null,null,null,null,null,null,9.3000000000000007,null,12.3,3.2,2.1,800]
[null,null,null,null,null,null,null,null,null,null,null,null,null,null,null,null,null,null,null,null,null,null,null,null,null,null,null,null,null,null,null,null,null,null,null,null,null,null,null,null,null,null,null,null,null,null,null,null,null,null,null,null,null,null,null,null,null,46,"VRF HP (Water Source)","Multi-split System",null,0,760000,12,null,{"$f":"BL116*1.15","v":13.799999999999999},4.2,4.2,null,null,null,null,null,null,null,null,null,null,null,null,null,14,null,null,4.5999999999999996,4.5999999999999996,535]
[null,null,null,null,null,null,null,null,null,null,null,null,null,null,null,null,null,null,null,null,null,null,null,null,null,null,null,null,null,null,null,null,null,null,null,null,null,null,null,null,null,null,null,null,null,null,null,null,null,null,null,null,null,null,null,null,null,47,"VRF HP (Water Source)","Multi-split w/Heat Recovery",null,0,760000,11.8,null,{"$f":"BL117*1.15","v":13.57},4.2,4.2,null,null,null,null,null,null,null,null,null,null,null,null,null,13.8,null,null,4.5999999999999996,4.5999999999999996,775]
[null,null,null,null,null,null,null,null,null,null,null,null,null,null,null,null,null,null,null,null,null,null,null,null,null,null,null,null,null,null,null,null,null,null,null,null,null,null,null,null,null,null,null,null,null,null,null,null,null,null,null,null,null,null,null,null,null,48]
[null,null,null,null,null,null,null,null,null,null,null,null,null,null,null,null,null,null,null,null,null,null,null,null,null,null,null,null,null,null,null,null,null,null,null,null,null,null,null,null,null,null,null,null,null,null,null,null,null,null,null,null,null,null,null,null,null,49]
[null,null,null,null,null,null,null,null,null,null,null,null,null,null,null,null,null,null,null,null,null,null,null,null,null,null,null,null,null,null,null,null,null,null,null,null,null,null,null,null,null,null,null,null,null,null,null,null,null,null,null,null,null,null,null,null,null,50]
[null,null,null,null,null,null,null,null,null,null,null,null,null,null,null,null,null,null,null,null,null,null,null,null,null,null,null,null,null,null,null,null,null,null,null,null,null,null,null,null,null,null,null,null,null,null,null,null,null,null,null,null,null,null,null,null,null,51]
[null,null,null,null,null,null,null,null,null,null,null,null,null,null,null,null,null,null,null,null,null,null,null,null,null,null,null,null,null,null,null,null,null,null,null,null,null,null,null,null,null,null,null,null,null,null,null,null,null,null,null,null,null,null,null,null,null,52]
[null,null,null,null,null,null,null,null,null,null,null,null,null,null,null,null,null,null,null,null,null,null,null,null,null,null,null,null,null,null,null,null,null,null,null,null,null,null,null,null,null,null,null,null,null,null,null,null,null,null,null,null,null,null,null,null,null,53]
[null,null,null,null,null,null,null,null,null,null,null,null,null,null,null,null,null,null,null,null,null,null,null,null,null,null,null,null,null,null,null,null,null,null,null,null,null,null,null,null,null,null,null,null,null,null,null,null,null,null,null,null,null,null,null,null,null,54]
[]
[null,null,null,null,null,null,null,null,null,null,null,null,null,null,null,null,null,null,null,null,null,null,null,null,null,null,null,null,null,null,null,null,null,null,null,null,null,null,null,null,null,null,null,null,null,null,null,null,null,null,null,null,null,null,null,null,null,null,null,null,null,null,null,"WA",null,null,null,null,null,"Code","EFLCH","EFLHH","NTG","CF","Cooling Months","Defined in Fed Code","Estimation","Defined in Code",null,"PTAC Calcs from Deemed Savings",null,"Cost","kW/Unit","Gross kWh/yr","$/ton"]
[null,null,null,null,null,null,null,null,null,null,null,null,null,null,null,null,null,null,null,null,null,null,null,null,null,null,null,null,null,null,null,null,null,null,null,null,null,null,null,null,null,null,null,null,null,null,null,null,null,null,null,null,null,null,null,null,null,null,null,null,null,null,null,null,null,null,null,null,null,"WSEC 2015, Tables C403.2.3(1)A, C403.2.3(1)D, C403.2.3(2)",710.21,2201,1,1,5,null,"Not Used","Existing in Program",null,null,null,200,9.8000000000000004E-2,377,50]
[null,null,null,null,null,null,null,null,null,null,null,null,null,null,null,null,null,null,null,null,null,null,null,null,null,null,null,null,null,null,null,null,null,null,null,null,null,null,null,null,null,null,null,null,null,null,null,null,null,null,null,null,null,null,null,null,null,null,null,null,null,null,null,"Baseline",null,null,null,null,null,"Tier",1,null,31,"per ton",null,"Tier",2,null,62,{"$f":"BV128","v":"per ton"},null,"Tier",3,null,93,{"$f":"CB128","v":"per ton"}]
[null,null,null,null,null,null,null,null,null,null,null,null,null,null,null,null,null,null,null,null,null,null,null,null,null,null,null,null,null,null,null,null,null,null,null,null,null,null,null,null,null,null,null,null,null,null,null,null,null,null,null,null,null,null,null,null,null,null,null,null,null,null,null,"Cooling",null,null,"Heating",null,null,"Cooling",null,null,"Heating",null,"Gross Incremental Cost/Ton","Cooling",null,null,"Heating",null,"Gross Incremental Cost/Ton","Cooling",null,null,"Heating",null,"Gross Incremental Cost/Ton"]
[null,null,null,null,null,null,null,null,null,null,null,null,null,null,null,null,null,null,null,null,null,null,null,null,null,null,null,null,null,null,null,null,null,null,null,null,null,null,null,null,null,null,null,null,null,null,null,null,null,null,null,null,null,null,null,null,null,null,null,null,null,null,null,"EER","SEER IPLV","IEER","HSPF COP @ DB/WB",null,null,"EER","SEER IPLV","IEER","HSPF COP @ DB/WB",null,null,"EER","SEER IPLV","IEER","HSPF COP @ DB/WB",null,null,"EER","SEER IPLV","IEER","HSPF COP @ DB/WB"]
[null,null,null,null,null,null,null,null,null,null,null,null,null,null,null,null,null,null,null,null,null,null,null,null,null,null,null,null,null,null,null,null,null,null,null,null,null,null,null,null,null,null,null,null,null,null,null,null,null,null,null,null,null,null,null,null,null,null,"Equip Type","Category","Phase","Min (>=)","Max (<)",null,null,null,"47/43","17/15",null,null,null,null,"47/43","17/15",null,null,null,null,"47/43","17/15",null,null,null,null,"47/43","17/15"]
[null,null,null,null,null,null,null,null,null,null,null,null,null,null,null,null,null,null,null,null,null,null,null,null,null,null,null,null,null,null,null,null,null,null,null,null,null,null,null,null,null,null,null,null,null,null,null,null,null,null,null,null,null,null,null,null,null,1,"Heat Pump (Air Cooled)","Split (1 Phase)",1,0,65000,null,14,null,8.1999999999999993,8.1999999999999993,null,null,null,null,null,null,105,null,16,null,9,9,450]
[null,null,null,null,null,null,null,null,null,null,null,null,null,null,null,null,null,null,null,null,null,null,null,null,null,null,null,null,null,null,null,null,null,null,null,null,null,null,null,null,null,null,null,null,null,null,null,null,null,null,null,null,null,null,null,null,null,2,"Heat Pump (Air Cooled)","Package (1 Phase)",1,0,65000,null,14,null,8,8,null,null,null,null,null,null,105,null,16,null,8.1999999999999993,8.1999999999999993,450]
[null,null,null,null,null,null,null,null,null,null,null,null,null,null,null,null,null,null,null,null,null,null,null,null,null,null,null,null,null,null,null,null,null,null,null,null,null,null,null,null,null,null,null,null,null,null,null,null,null,null,null,null,null,null,null,null,null,3,"Heat Pump (Air Cooled)","Split (3 Phase)",3,0,65000,null,14,null,8.1999999999999993,8.1999999999999993,null,null,15,null,8.5,8.5,105,null,16,null,9,9,150]
[null,null,null,null,null,null,null,null,null,null,null,null,null,null,null,null,null,null,null,null,null,null,null,null,null,null,null,null,null,null,null,null,null,null,null,null,null,null,null,null,null,null,null,null,null,null,null,null,null,null,null,null,null,null,null,null,null,4,"Heat Pump (Air Cooled)","Package (3 Phase)",3,0,65000,null,14,null,8,8,null,null,15,null,8.1999999999999993,8.1999999999999993,105,null,16,null,8.1999999999999993,8.1999999999999993,150]
[null,null,null,null,null,null,null,null,null,null,null,null,null,null,null,null,null,null,null,null,null,null,null,null,null,null,null,null,null,null,null,null,null,null,null,null,null,null,null,null,null,null,null,null,null,null,null,null,null,null,null,null,null,null,null,null,null,5,"Heat Pump (Air Cooled)","Split (1 Phase) Package (1 Phase) Split (3 Phase) Package (3 Phase)",3,65000,135000,10.8,null,12,3.3,2.25,null,10.8,null,13.4,3.4,2.4,105,null,null,null,null,null,150]
[null,null,null,null,null,null,null,null,null,null,null,null,null,null,null,null,null,null,null,null,null,null,null,null,null,null,null,null,null,null,null,null,null,null,null,null,null,null,null,null,null,null,null,null,null,null,null,null,null,null,null,null,null,null,null,null,null,6,"Heat Pump (Air Cooled)","Split (1 Phase) Package (1 Phase) Split (3 Phase) Package (3 Phase)",3,135000,240000,10.4,null,11.4,3.2,2.0499999999999998,null,10.4,null,12.6,3.2,2.1,105,null,null,null,null,null,150]
[null,null,null,null,null,null,null,null,null,null,null,null,null,null,null,null,null,null,null,null,null,null,null,null,null,null,null,null,null,null,null,null,null,null,null,null,null,null,null,null,null,null,null,null,null,null,null,null,null,null,null,null,null,null,null,null,null,7,"Heat Pump (Air Cooled)","Split (1 Phase) Package (1 Phase) Split (3 Phase) Package (3 Phase)",3,240000,760000,9.3000000000000007,null,10.4,3.2,2.0499999999999998,null,9.3000000000000007,null,11.6,3.2,2.1,105,null,null,null,null,null,150]
[null,null,null,null,null,null,null,null,null,null,null,null,null,null,null,null,null,null,null,null,null,null,null,null,null,null,null,null,null,null,null,null,null,null,null,null,null,null,null,null,null,null,null,null,null,null,null,null,null,null,null,null,null,null,null,null,null,8,"Heat Pump (Air Cooled, Replacing Electric Resistance)","Split (1 Phase)",1,0,65000,10.87,14,null,8.1999999999999993,8.1999999999999993,null,null,15,null,8.5,8.5,105,null,16,null,9,9,450]
[null,null,null,null,null,null,null,null,null,null,null,null,null,null,null,null,null,null,null,null,null,null,null,null,null,null,null,null,null,null,null,null,null,null,null,null,null,null,null,null,null,null,null,null,null,null,null,null,null,null,null,null,null,null,null,null,null,9,"Heat Pump (Air Cooled, Replacing Electric Resistance)","Package (1 Phase)",1,0,65000,10.87,14,null,8,8,null,null,15,null,8.1999999999999993,8.1999999999999993,105,null,16,null,8.1999999999999993,8.1999999999999993,450]
[null,null,null,null,null,null,null,null,null,null,null,null,null,null,null,null,null,null,null,null,null,null,null,null,null,null,null,null,null,null,null,null,null,null,null,null,null,null,null,null,null,null,null,null,null,null,null,null,null,null,null,null,null,null,null,null,null,10,"Heat Pump (Air Cooled, Replacing Electric Resistance)","Split (3 Phase)",3,0,65000,9.23,14,null,8.1999999999999993,8.1999999999999993,null,null,15,null,8.5,8.5,105,null,16,null,9,9,150]
[null,null,null,null,null,null,null,null,null,null,null,null,null,null,null,null,null,null,null,null,null,null,null,null,null,null,null,null,null,null,null,null,null,null,null,null,null,null,null,null,null,null,null,null,null,null,null,null,null,null,null,null,null,null,null,null,null,11,"Heat Pump (Air Cooled, Replacing Electric Resistance)","Package (3 Phase)",3,0,65000,9.23,14,null,8,8,null,null,15,null,8.1999999999999993,8.1999999999999993,105,null,16,null,8.1999999999999993,8.1999999999999993,150]
[null,null,null,null,null,null,null,null,null,null,null,null,null,null,null,null,null,null,null,null,null,null,null,null,null,null,null,null,null,null,null,null,null,null,null,null,null,null,null,null,null,null,null,null,null,null,null,null,null,null,null,null,null,null,null,null,null,12,"Heat Pump (Air Cooled, Replacing Electric Resistance)","Split (1 Phase) Package (1 Phase) Split (3 Phase) Package (3 Phase)",3,65000,135000,10.8,null,12,3.3,2.25,null,11,null,13.6,3.4,2.4,105,null,null,null,null,null,150]
[null,null,null,null,null,null,null,null,null,null,null,null,null,null,null,null,null,null,null,null,null,null,null,null,null,null,null,null,null,null,null,null,null,null,null,null,null,null,null,null,null,null,null,null,null,null,null,null,null,null,null,null,null,null,null,null,null,13,"Heat Pump (Air Cooled, Replacing Electric Resistance)","Split (1 Phase) Package (1 Phase) Split (3 Phase) Package (3 Phase)",3,135000,240000,10.4,null,11.4,3.2,2.0499999999999998,null,10.6,null,12.8,3.3,2.1,105,null,null,null,null,null,150]
[null,null,null,null,null,null,null,null,null,null,null,null,null,null,null,null,null,null,null,null,null,null,null,null,null,null,null,null,null,null,null,null,null,null,null,null,null,null,null,null,null,null,null,null,null,null,null,null,null,null,null,null,null,null,null,null,null,14,"Heat Pump (Air Cooled, Replacing Electric Resistance)","Split (1 Phase) Package (1 Phase) Split (3 Phase) Package (3 Phase)",3,240000,760000,9.3000000000000007,null,10.4,3.2,2.0499999999999998,null,9.5,null,11.8,3.3,2.1,105,null,null,null,null,null,150]
[null,null,null,null,null,null,null,null,null,null,null,null,null,null,null,null,null,null,null,null,null,null,null,null,null,null,null,null,null,null,null,null,null,null,null,null,null,null,null,null,null,null,null,null,null,null,null,null,null,null,null,null,null,null,null,null,null,15,"Heat Pump (Water Cooled)",null,null,0,17000,12.2,null,{"$f":"BL146*1.15","v":14.029999999999998},4.3,4.3,null,null,null,null,null,null,null,14,null,null,4.5999999999999996,4.5999999999999996,100]
[null,null,null,null,null,null,null,null,null,null,null,null,null,null,null,null,null,null,null,null,null,null,null,null,null,null,null,null,null,null,null,null,null,null,null,null,null,null,null,null,null,null,null,null,null,null,null,null,null,null,null,null,null,null,null,null,null,16,"Heat Pump (Water Cooled)",null,null,17000,65000,13,null,{"$f":"BL147*1.15","v":14.95},4.3,4.3,null,null,null,null,null,null,null,14,null,null,4.5999999999999996,4.5999999999999996,100]
[null,null,null,null,null,null,null,null,null,null,null,null,null,null,null,null,null,null,null,null,null,null,null,null,null,null,null,null,null,null,null,null,null,null,null,null,null,null,null,null,null,null,null,null,null,null,null,null,null,null,null,null,null,null,null,null,null,17,"Heat Pump (Water Cooled)",null,null,65000,135000,13,null,{"$f":"BL148*1.15","v":14.95},4.3,4.3,null,null,null,null,null,null,null,14,null,null,4.5999999999999996,4.5999999999999996,100]
[null,null,null,null,null,null,null,null,null,null,null,null,null,null,null,null,null,null,null,null,null,null,null,null,null,null,null,null,null,null,null,null,null,null,null,null,null,null,null,null,null,null,null,null,null,null,null,null,null,null,null,null,null,null,null,null,null,18,"Unitary AC (Air Cooled)","Split (1 Phase)",1,0,45000,11,13,null,null,null,null,null,null,null,null,null,null,11,16,null,null,null,375,11,18,null,null,null,400]
[null,null,null,null,null,null,null,null,null,null,null,null,null,null,null,null,null,null,null,null,null,null,null,null,null,null,null,null,null,null,null,null,null,null,null,null,null,null,null,null,null,null,null,null,null,null,null,null,null,null,null,null,null,null,null,null,null,19,"Unitary AC (Air Cooled)","Split (1 Phase)",1,45000,65000,11,13,null,null,null,null,null,null,null,null,null,null,11,16,null,null,null,375,11,18,null,null,null,400]
[null,null,null,null,null,null,null,null,null,null,null,null,null,null,null,null,null,null,null,null,null,null,null,null,null,null,null,null,null,null,null,null,null,null,null,null,null,null,null,null,null,null,null,null,null,null,null,null,null,null,null,null,null,null,null,null,null,20,"Unitary AC (Air Cooled)","Package (1 Phase)",1,0,65000,11,14,null,null,null,null,null,null,null,null,null,null,11,16,null,null,null,375,11,17,null,null,null,400]
[null,null,null,null,null,null,null,null,null,null,null,null,null,null,null,null,null,null,null,null,null,null,null,null,null,null,null,null,null,null,null,null,null,null,null,null,null,null,null,null,null,null,null,null,null,null,null,null,null,null,null,null,null,null,null,null,null,21,"Unitary AC (Air Cooled)","Split (3 Phase)",3,0,65000,11,13,null,null,null,null,null,null,null,null,null,null,11,16,null,null,null,175,11,18,null,null,null,375]
[null,null,null,null,null,null,null,null,null,null,null,null,null,null,null,null,null,null,null,null,null,null,null,null,null,null,null,null,null,null,null,null,null,null,null,null,null,null,null,null,null,null,null,null,null,null,null,null,null,null,null,null,null,null,null,null,null,22,"Unitary AC (Air Cooled)","Package (3 Phase)",3,0,65000,11,14,null,null,null,null,null,null,null,null,null,null,11,16,null,null,null,175,11,17,null,null,null,375]
[null,null,null,null,null,null,null,null,null,null,null,null,null,null,null,null,null,null,null,null,null,null,null,null,null,null,null,null,null,null,null,null,null,null,null,null,null,null,null,null,null,null,null,null,null,null,null,null,null,null,null,null,null,null,null,null,null,23,"Unitary AC (Air Cooled)","Split (3 Phase) Package (3 Phase)",3,65000,135000,11,null,12.7,null,null,null,null,null,null,null,null,null,11,null,14.6,null,null,150,11,null,17.8,null,null,300]
[null,null,null,null,null,null,null,null,null,null,null,null,null,null,null,null,null,null,null,null,null,null,null,null,null,null,null,null,null,null,null,null,null,null,null,null,null,null,null,null,null,null,null,null,null,null,null,null,null,null,null,null,null,null,null,null,null,24,"Unitary AC (Air Cooled)","Split (3 Phase) Package (3 Phase)",3,135000,240000,10.8,null,12.2,null,null,null,null,null,null,null,null,null,10.8,null,14,null,null,125,10.8,null,16.8,null,null,205]
[null,null,null,null,null,null,null,null,null,null,null,null,null,null,null,null,null,null,null,null,null,null,null,null,null,null,null,null,null,null,null,null,null,null,null,null,null,null,null,null,null,null,null,null,null,null,null,null,null,null,null,null,null,null,null,null,null,25,"Unitary AC (Air Cooled)","Split (3 Phase) Package (3 Phase)",3,240000,760000,9.8000000000000007,null,11.4,null,null,null,null,null,null,null,null,null,9.8000000000000007,null,13,null,null,150,9.8000000000000007,null,14.3,null,null,185]
[null,null,null,null,null,null,null,null,null,null,null,null,null,null,null,null,null,null,null,null,null,null,null,null,null,null,null,null,null,null,null,null,null,null,null,null,null,null,null,null,null,null,null,null,null,null,null,null,null,null,null,null,null,null,null,null,null,26,"Unitary AC (Air Cooled)","Split (3 Phase) Package (3 Phase)",3,760000,10000000,9.5,null,11.6,null,null,null,null,null,null,null,null,null,9.5,null,12.1,null,null,75]
[null,null,null,null,null,null,null,null,null,null,null,null,null,null,null,null,null,null,null,null,null,null,null,null,null,null,null,null,null,null,null,null,null,null,null,null,null,null,null,null,null,null,null,null,null,null,null,null,null,null,null,null,null,null,null,null,null,27,"Ground-Source Heat Pump",null,null,0,10000000,14.1,null,{"$f":"BL158*1.15","v":16.215},3.2,3.2,null,null,null,null,null,null,null,17.100000000000001,null,null,3.6,3.6,100]
[null,null,null,null,null,null,null,null,null,null,null,null,null,null,null,null,null,null,null,null,null,null,null,null,null,null,null,null,null,null,null,null,null,null,null,null,null,null,null,null,null,null,null,null,null,null,null,null,null,null,null,null,null,null,null,null,null,28,"Groundwater Source Heat Pump",null,null,0,10000000,18,null,{"$f":"BL159*1.15","v":20.7},3.7,3.7,null,null,null,null,null,null,null,21.1,null,null,4.0999999999999996,4.0999999999999996,100]
[null,null,null,null,null,null,null,null,null,null,null,null,null,null,null,null,null,null,null,null,null,null,null,null,null,null,null,null,null,null,null,null,null,null,null,null,null,null,null,null,null,null,null,null,null,null,null,null,null,null,null,null,null,null,null,null,null,29,"Unitary AC (Water Cooled)","Split (1 Phase)",1,0,65000,12.1,null,12.3,null,null,null,14,null,12.3,null,null,100]
[null,null,null,null,null,null,null,null,null,null,null,null,null,null,null,null,null,null,null,null,null,null,null,null,null,null,null,null,null,null,null,null,null,null,null,null,null,null,null,null,null,null,null,null,null,null,null,null,null,null,null,null,null,null,null,null,null,30,"Unitary AC (Water Cooled)","Package (1 Phase)",1,0,65000,12.1,null,12.3,null,null,null,14,null,12.3,null,null,100]
[null,null,null,null,null,null,null,null,null,null,null,null,null,null,null,null,null,null,null,null,null,null,null,null,null,null,null,null,null,null,null,null,null,null,null,null,null,null,null,null,null,null,null,null,null,null,null,null,null,null,null,null,null,null,null,null,null,31,"Unitary AC (Water Cooled)","Split (3 Phase)",3,0,65000,12.1,null,12.3,null,null,null,14,null,12.3,null,null,100]
[null,null,null,null,null,null,null,null,null,null,null,null,null,null,null,null,null,null,null,null,null,null,null,null,null,null,null,null,null,null,null,null,null,null,null,null,null,null,null,null,null,null,null,null,null,null,null,null,null,null,null,null,null,null,null,null,null,32,"Unitary AC (Water Cooled)","Package (3 Phase)",3,0,65000,12.1,null,12.3,null,null,null,14,null,12.3,null,null,100]
[null,null,null,null,null,null,null,null,null,null,null,null,null,null,null,null,null,null,null,null,null,null,null,null,null,null,null,null,null,null,null,null,null,null,null,null,null,null,null,null,null,null,null,null,null,null,null,null,null,null,null,null,null,null,null,null,null,33,"Unitary AC (Water Cooled)","Split (3 Phase) Package (3 Phase)",3,65000,135000,11.9,null,13.7,null,null,null,11.9,null,15.1,null,null,100]
[null,null,null,null,null,null,null,null,null,null,null,null,null,null,null,null,null,null,null,null,null,null,null,null,null,null,null,null,null,null,null,null,null,null,null,null,null,null,null,null,null,null,null,null,null,null,null,null,null,null,null,null,null,null,null,null,null,34,"Unitary AC (Water Cooled)","Split (3 Phase) Package (3 Phase)",3,135000,240000,12.3,null,13.7,null,null,null,12.3,null,14.6,null,null,100]
[null,null,null,null,null,null,null,null,null,null,null,null,null,null,null,null,null,null,null,null,null,null,null,null,null,null,null,null,null,null,null,null,null,null,null,null,null,null,null,null,null,null,null,null,null,null,null,null,null,null,null,null,null,null,null,null,null,35,"Unitary AC (Water Cooled)","Split (3 Phase) Package (3 Phase)",3,240000,760000,12.2,null,13.4,null,null,null,12.3,null,14.6,null,null,100]
[null,null,null,null,null,null,null,null,null,null,null,null,null,null,null,null,null,null,null,null,null,null,null,null,null,null,null,null,null,null,null,null,null,null,null,null,null,null,null,null,null,null,null,null,null,null,null,null,null,null,null,null,null,null,null,null,null,36,"Unitary AC (Water Cooled)","Split (3 Phase) Package (3 Phase)",3,760000,10000000,12,null,13.3,null,null,null,12.3,null,14.6,null,null,100]
[null,null,null,null,null,null,null,null,null,null,null,null,null,null,null,null,null,null,null,null,null,null,null,null,null,null,null,null,null,null,null,null,null,null,null,null,null,null,null,null,null,null,null,null,null,null,null,null,null,null,null,null,null,null,null,null,null,37,"Unitary AC (Evaporatively Cooled)","Split (1 Phase)",1,0,65000,12.1,null,12.3,null,null,null,null,null,null,null,null,null,14,null,12.3,null,null,100]
[null,null,null,null,null,null,null,null,null,null,null,null,null,null,null,null,null,null,null,null,null,null,null,null,null,null,null,null,null,null,null,null,null,null,null,null,null,null,null,null,null,null,null,null,null,null,null,null,null,null,null,null,null,null,null,null,null,38,"Unitary AC (Evaporatively Cooled)","Package (1 Phase)",1,0,65000,12.1,null,12.3,null,null,null,null,null,null,null,null,null,14,null,12.3,null,null,100]
[null,null,null,null,null,null,null,null,null,null,null,null,null,null,null,null,null,null,null,null,null,null,null,null,null,null,null,null,null,null,null,null,null,null,null,null,null,null,null,null,null,null,null,null,null,null,null,null,null,null,null,null,null,null,null,null,null,39,"Unitary AC (Evaporatively Cooled)","Split (3 Phase)",3,0,65000,12.1,null,12.3,null,null,null,null,null,null,null,null,null,14,null,12.3,null,null,100]
[null,null,null,null,null,null,null,null,null,null,null,null,null,null,null,null,null,null,null,null,null,null,null,null,null,null,null,null,null,null,null,null,null,null,null,null,null,null,null,null,null,null,null,null,null,null,null,null,null,null,null,null,null,null,null,null,null,40,"Unitary AC (Evaporatively Cooled)","Package (3 Phase)",3,0,65000,12.1,null,12.3,null,null,null,null,null,null,null,null,null,14,null,12.3,null,null,100]
[null,null,null,null,null,null,null,null,null,null,null,null,null,null,null,null,null,null,null,null,null,null,null,null,null,null,null,null,null,null,null,null,null,null,null,null,null,null,null,null,null,null,null,null,null,null,null,null,null,null,null,null,null,null,null,null,null,41,"Unitary AC (Evaporatively Cooled)","Split (1 Phase) Package (1 Phase) Split (3 Phase) Package (3 Phase)",3,65000,135000,11.9,null,12.1,null,null,null,null,null,null,null,null,null,11.9,null,15.1,null,null,100]
[null,null,null,null,null,null,null,null,null,null,null,null,null,null,null,null,null,null,null,null,null,null,null,null,null,null,null,null,null,null,null,null,null,null,null,null,null,null,null,null,null,null,null,null,null,null,null,null,null,null,null,null,null,null,null,null,null,42,"Unitary AC (Evaporatively Cooled)","Split (1 Phase) Package (1 Phase) Split (3 Phase) Package (3 Phase)",3,135000,240000,11.8,null,12,null,null,null,null,null,null,null,null,null,11.8,null,14.1,null,null,100]
[null,null,null,null,null,null,null,null,null,null,null,null,null,null,null,null,null,null,null,null,null,null,null,null,null,null,null,null,null,null,null,null,null,null,null,null,null,null,null,null,null,null,null,null,null,null,null,null,null,null,null,null,null,null,null,null,null,43,"Unitary AC (Evaporatively Cooled)","Split (1 Phase) Package (1 Phase) Split (3 Phase) Package (3 Phase)",3,240000,760000,11.7,null,11.9,null,null,null,null,null,null,null,null,null,11.8,null,14.1,null,null,100]
[null,null,null,null,null,null,null,null,null,null,null,null,null,null,null,null,null,null,null,null,null,null,null,null,null,null,null,null,null,null,null,null,null,null,null,null,null,null,null,null,null,null,null,null,null,null,null,null,null,null,null,null,null,null,null,null,null,44,"Unitary AC (Evaporatively Cooled)","Split (1 Phase) Package (1 Phase) Split (3 Phase) Package (3 Phase)",3,760000,10000000,11.5,null,11.7,null,null,null,null,null,null,null,null,null,11.8,null,14.1,null,null,100]
[null,null,null,null,null,null,null,null,null,null,null,null,null,null,null,null,null,null,null,null,null,null,null,null,null,null,null,null,null,null,null,null,null,null,null,null,null,null,null,null,null,null,null,null,null,null,null,null,null,null,null,null,null,null,null,null,null,45,"VRF HP (Air Cooled)","Multi-split System",null,0,65000,10.87,13,null,8.1999999999999993,8.1999999999999993,null,null,null,null,null,null,null,null,null,null,null,null,null,12.5,15,null,8.5,8.5,400]
[null,null,null,null,null,null,null,null,null,null,null,null,null,null,null,null,null,null,null,null,null,null,null,null,null,null,null,null,null,null,null,null,null,null,null,null,null,null,null,null,null,null,null,null,null,null,null,null,null,null,null,null,null,null,null,null,null,46,"VRF HP (Air Cooled)","Multi-split w/Heat Recovery",null,0,65000,10.87,13,null,8.1999999999999993,8.1999999999999993,null,null,null,null,null,null,null,null,null,null,null,null,null,12.5,15,null,8.5,8.5,400]
[null,null,null,null,null,null,null,null,null,null,null,null,null,null,null,null,null,null,null,null,null,null,null,null,null,null,null,null,null,null,null,null,null,null,null,null,null,null,null,null,null,null,null,null,null,null,null,null,null,null,null,null,null,null,null,null,null,47,"VRF HP (Air Cooled)","Multi-split System",null,65000,135000,11,null,12.7,3.3,2.25,null,null,null,null,null,null,null,null,null,null,null,null,null,11.5,null,16,3.4,2.4,400]
[null,null,null,null,null,null,null,null,null,null,null,null,null,null,null,null,null,null,null,null,null,null,null,null,null,null,null,null,null,null,null,null,null,null,null,null,null,null,null,null,null,null,null,null,null,null,null,null,null,null,null,null,null,null,null,null,null,48,"VRF HP (Air Cooled)","Multi-split w/Heat Recovery",null,65000,135000,11,null,12.7,3.3,2.25,null,null,null,null,null,null,null,null,null,null,null,null,null,11.5,null,16,3.4,2.4,400]
[null,null,null,null,null,null,null,null,null,null,null,null,null,null,null,null,null,null,null,null,null,null,null,null,null,null,null,null,null,null,null,null,null,null,null,null,null,null,null,null,null,null,null,null,null,null,null,null,null,null,null,null,null,null,null,null,null,49,"VRF HP (Air Cooled)","Multi-split System",null,135000,240000,10.8,null,12.2,3.2,2.0499999999999998,null,null,null,null,null,null,null,null,null,null,null,null,null,10.9,null,15.4,3.2,2.5,400]
[null,null,null,null,null,null,null,null,null,null,null,null,null,null,null,null,null,null,null,null,null,null,null,null,null,null,null,null,null,null,null,null,null,null,null,null,null,null,null,null,null,null,null,null,null,null,null,null,null,null,null,null,null,null,null,null,null,50,"VRF HP (Air Cooled)","Multi-split w/Heat Recovery",null,135000,240000,10.8,null,12.2,3.2,2.0499999999999998,null,null,null,null,null,null,null,null,null,null,null,null,null,10.9,null,15.4,3.2,2.5,400]
[null,null,null,null,null,null,null,null,null,null,null,null,null,null,null,null,null,null,null,null,null,null,null,null,null,null,null,null,null,null,null,null,null,null,null,null,null,null,null,null,null,null,null,null,null,null,null,null,null,null,null,null,null,null,null,null,null,51,"VRF HP (Air Cooled)","Multi-split System",null,240000,10000000,9.8000000000000007,null,11.4,3.2,2.0499999999999998,null,null,null,null,null,null,null,null,null,null,null,null,null,9.6,null,14.3,3.2,2.5,400]
[null,null,null,null,null,null,null,null,null,null,null,null,null,null,null,null,null,null,null,null,null,null,null,null,null,null,null,null,null,null,null,null,null,null,null,null,null,null,null,null,null,null,null,null,null,null,null,null,null,null,null,null,null,null,null,null,null,52,"VRF HP (Air Cooled)","Multi-split w/Heat Recovery",null,240000,10000000,9.8000000000000007,null,11.4,3.2,2.0499999999999998,null,null,null,null,null,null,null,null,null,null,null,null,null,9.6,null,14.3,3.2,2.5,400]
[null,null,null,null,null,null,null,null,null,null,null,null,null,null,null,null,null,null,null,null,null,null,null,null,null,null,null,null,null,null,null,null,null,null,null,null,null,null,null,null,null,null,null,null,null,null,null,null,null,null,null,null,null,null,null,null,null,53,"VRF HP (Water Source)","Multi-split System",null,0,135000,12,null,{"$f":"BL184*1.15","v":13.799999999999999},4.2,4.2,null,null,null,null,null,null,null,null,null,null,null,null,null,14,null,16,4.5999999999999996,4.5999999999999996,400]
[null,null,null,null,null,null,null,null,null,null,null,null,null,null,null,null,null,null,null,null,null,null,null,null,null,null,null,null,null,null,null,null,null,null,null,null,null,null,null,null,null,null,null,null,null,null,null,null,null,null,null,null,null,null,null,null,null,54,"VRF HP (Water Source)","Multi-split w/Heat Recovery",null,0,135000,11.8,null,{"$f":"BL185*1.15","v":13.57},4.2,4.2,null,null,null,null,null,null,null,null,null,null,null,null,null,13.8,null,15.8,4.5999999999999996,4.5999999999999996,400]
[]
[null,null,null,null,null,null,null,null,null,null,null,null,null,null,null,null,null,null,null,null,null,null,null,null,null,null,null,null,null,null,null,null,null,null,null,null,null,null,null,null,null,null,null,null,null,null,null,null,null,null,null,null,null,null,null,null,null,null,null,null,null,null,null,"CA",null,null,null,null,null,"Code","EFLCH","EFLHH","NTG","CF","Cooling Months","Defined in Fed Code","Estimation","Defined in Code",null,"PTAC Calcs from Deemed Savings",null,"Cost","kW/Unit","Gross kWh/yr","$/ton"]
[null,null,null,null,null,null,null,null,null,null,null,null,null,null,null,null,null,null,null,null,null,null,null,null,null,null,null,null,null,null,null,null,null,null,null,null,null,null,null,null,null,null,null,null,null,null,null,null,null,null,null,null,null,null,null,null,null,null,null,null,null,null,null,null,null,null,null,null,null,"Title 24 - 2013, Table 110.2-A, 110.2-B, 110.2-I",837.93,2016,1,1,5,null,"Not Used","Existing in Program",null,null,null,200,9.8000000000000004E-2,313,50]
[null,null,null,null,null,null,null,null,null,null,null,null,null,null,null,null,null,null,null,null,null,null,null,null,null,null,null,null,null,null,null,null,null,null,null,null,null,null,null,null,null,null,null,null,null,null,null,null,null,null,null,null,null,null,null,null,null,null,null,null,null,null,null,"Baseline",null,null,null,null,null,"Tier",1,null,null,"per ton",null,"Tier",2,null,50,"per ton",null,"Tier",3,null,50,"per ton"]
[null,null,null,null,null,null,null,null,null,null,null,null,null,null,null,null,null,null,null,null,null,null,null,null,null,null,null,null,null,null,null,null,null,null,null,null,null,null,null,null,null,null,null,null,null,null,null,null,null,null,null,null,null,null,null,null,null,null,null,null,null,null,null,"Cooling",null,null,"Heating",null,null,"Cooling",null,null,"Heating",null,"Gross Incremental Cost/Ton","Cooling",null,null,"Heating",null,"Gross Incremental Cost/Ton","Cooling",null,null,"Heating",null,"Gross Incremental Cost/Ton"]
[null,null,null,null,null,null,null,null,null,null,null,null,null,null,null,null,null,null,null,null,null,null,null,null,null,null,null,null,null,null,null,null,null,null,null,null,null,null,null,null,null,null,null,null,null,null,null,null,null,null,null,null,null,null,null,null,null,null,null,null,null,null,null,"EER","SEER IPLV","IEER","HSPF COP @ DB/WB",null,null,"EER","SEER IPLV","IEER","HSPF COP @ DB/WB",null,null,"EER","SEER IPLV","IEER","HSPF COP @ DB/WB",null,null,"EER","SEER IPLV","IEER","HSPF COP @ DB/WB"]
[null,null,null,null,null,null,null,null,null,null,null,null,null,null,null,null,null,null,null,null,null,null,null,null,null,null,null,null,null,null,null,null,null,null,null,null,null,null,null,null,null,null,null,null,null,null,null,null,null,null,null,null,null,null,null,null,null,null,"Equip Type","Category","Phase","Min (>=)","Max (<)",null,null,null,"47/43","17/15",null,null,null,null,"47/43","17/15",null,null,null,null,"47/43","17/15",null,null,null,null,"47/43","17/15"]
[null,null,null,null,null,null,null,null,null,null,null,null,null,null,null,null,null,null,null,null,null,null,null,null,null,null,null,null,null,null,null,null,null,null,null,null,null,null,null,null,null,null,null,null,null,null,null,null,null,null,null,null,null,null,null,null,null,1,"Heat Pump (Air Cooled)","Split (1 Phase)",1,0,65000,10.87,14,null,8.1999999999999993,8.1999999999999993,null,10000,10000,10000,10000,10000,null,10000,10000,10000,10000,10000,450,10000,10000,10000,10000,10000]
[null,null,null,null,null,null,null,null,null,null,null,null,null,null,null,null,null,null,null,null,null,null,null,null,null,null,null,null,null,null,null,null,null,null,null,null,null,null,null,null,null,null,null,null,null,null,null,null,null,null,null,null,null,null,null,null,null,2,"Heat Pump (Air Cooled)","Package (1 Phase)",1,0,65000,10.87,14,null,8,8,null,10000,10000,10000,10000,10000,null,10000,10000,10000,10000,10000,450,10000,10000,10000,10000,10000]
[null,null,null,null,null,null,null,null,null,null,null,null,null,null,null,null,null,null,null,null,null,null,null,null,null,null,null,null,null,null,null,null,null,null,null,null,null,null,null,null,null,null,null,null,null,null,null,null,null,null,null,null,null,null,null,null,null,3,"Heat Pump (Air Cooled)","Split (3 Phase)",3,0,65000,9.23,14,null,7.7,7.7,null,10000,10000,10000,10000,10000,null,10000,10000,10000,10000,10000,150,10000,10000,10000,10000,10000,450]
[null,null,null,null,null,null,null,null,null,null,null,null,null,null,null,null,null,null,null,null,null,null,null,null,null,null,null,null,null,null,null,null,null,null,null,null,null,null,null,null,null,null,null,null,null,null,null,null,null,null,null,null,null,null,null,null,null,4,"Heat Pump (Air Cooled)","Package (3 Phase)",3,0,65000,9.23,14,null,7.7,7.7,null,10000,10000,10000,10000,10000,null,10000,10000,10000,10000,10000,150,10000,10000,10000,10000,10000,450]
[null,null,null,null,null,null,null,null,null,null,null,null,null,null,null,null,null,null,null,null,null,null,null,null,null,null,null,null,null,null,null,null,null,null,null,null,null,null,null,null,null,null,null,null,null,null,null,null,null,null,null,null,null,null,null,null,null,5,"Heat Pump (Air Cooled)","Split (3 Phase) Package (3 Phase)",3,65000,135000,11,10.199999999999999,12.2,3.3,2.25,null,10000,10000,10000,10000,10000,null,10000,10000,10000,10000,10000,150,10000,10000,10000,10000,10000]
[null,null,null,null,null,null,null,null,null,null,null,null,null,null,null,null,null,null,null,null,null,null,null,null,null,null,null,null,null,null,null,null,null,null,null,null,null,null,null,null,null,null,null,null,null,null,null,null,null,null,null,null,null,null,null,null,null,6,"Heat Pump (Air Cooled)","Split (3 Phase) Package (3 Phase)",3,135000,240000,10.6,9.5,11.6,3.2,2.0499999999999998,null,10000,10000,10000,10000,10000,null,10000,10000,10000,10000,10000,150,10000,10000,10000,10000,10000]
[null,null,null,null,null,null,null,null,null,null,null,null,null,null,null,null,null,null,null,null,null,null,null,null,null,null,null,null,null,null,null,null,null,null,null,null,null,null,null,null,null,null,null,null,null,null,null,null,null,null,null,null,null,null,null,null,null,7,"Heat Pump (Air Cooled)","Split (3 Phase) Package (3 Phase)",3,240000,10000000,9.5,9.1999999999999993,10.6,3.2,2.0499999999999998,null,10000,10000,10000,10000,10000,null,10000,10000,10000,10000,10000,150,10000,10000,10000,10000,10000]
[null,null,null,null,null,null,null,null,null,null,null,null,null,null,null,null,null,null,null,null,null,null,null,null,null,null,null,null,null,null,null,null,null,null,null,null,null,null,null,null,null,null,null,null,null,null,null,null,null,null,null,null,null,null,null,null,null,8,"Heat Pump (Air Cooled, Replacing Electric Resistance)","Split (1 Phase)",1,0,65000,10.87,14,null,8.1999999999999993,8.1999999999999993,null,10000,10000,10000,10000,10000,null,10.87,15,null,8.5,8.5,105,10.87,16,null,9,9,450]
[null,null,null,null,null,null,null,null,null,null,null,null,null,null,null,null,null,null,null,null,null,null,null,null,null,null,null,null,null,null,null,null,null,null,null,null,null,null,null,null,null,null,null,null,null,null,null,null,null,null,null,null,null,null,null,null,null,9,"Heat Pump (Air Cooled, Replacing Electric Resistance)","Package (1 Phase)",1,0,65000,10.87,14,null,8,8,null,10000,10000,10000,10000,10000,null,10.87,15,null,8.1999999999999993,8.1999999999999993,105,10.87,16,null,8.1999999999999993,8.1999999999999993,450]
[null,null,null,null,null,null,null,null,null,null,null,null,null,null,null,null,null,null,null,null,null,null,null,null,null,null,null,null,null,null,null,null,null,null,null,null,null,null,null,null,null,null,null,null,null,null,null,null,null,null,null,null,null,null,null,null,null,10,"Heat Pump (Air Cooled, Replacing Electric Resistance)","Split (3 Phase)",3,0,65000,9.23,14,null,7.7,7.7,null,10000,10000,10000,10000,10000,null,9.23,15,null,8.5,8.5,105,9.23,16,null,9,9,150]
[null,null,null,null,null,null,null,null,null,null,null,null,null,null,null,null,null,null,null,null,null,null,null,null,null,null,null,null,null,null,null,null,null,null,null,null,null,null,null,null,null,null,null,null,null,null,null,null,null,null,null,null,null,null,null,null,null,11,"Heat Pump (Air Cooled, Replacing Electric Resistance)","Package (3 Phase)",3,0,65000,9.23,14,null,7.7,7.7,null,10000,10000,10000,10000,10000,null,9.23,15,null,8.1999999999999993,8.1999999999999993,105,9.23,16,null,8.1999999999999993,8.1999999999999993,150]
[null,null,null,null,null,null,null,null,null,null,null,null,null,null,null,null,null,null,null,null,null,null,null,null,null,null,null,null,null,null,null,null,null,null,null,null,null,null,null,null,null,null,null,null,null,null,null,null,null,null,null,null,null,null,null,null,null,12,"Heat Pump (Air Cooled, Replacing Electric Resistance)","Split (1 Phase) Package (1 Phase) Split (3 Phase) Package (3 Phase)",3,65000,135000,11,10.199999999999999,12.2,3.3,2.25,null,10000,10000,10000,10000,10000,null,11,null,13.6,3.4,2.4,105,null,null,null,null,null,150]
[null,null,null,null,null,null,null,null,null,null,null,null,null,null,null,null,null,null,null,null,null,null,null,null,null,null,null,null,null,null,null,null,null,null,null,null,null,null,null,null,null,null,null,null,null,null,null,null,null,null,null,null,null,null,null,null,null,13,"Heat Pump (Air Cooled, Replacing Electric Resistance)","Split (1 Phase) Package (1 Phase) Split (3 Phase) Package (3 Phase)",3,135000,240000,10.6,9.5,11.6,3.2,2.0499999999999998,null,10000,10000,10000,10000,10000,null,10.6,null,12.8,3.3,2.1,105,null,null,null,null,null,150]
[null,null,null,null,null,null,null,null,null,null,null,null,null,null,null,null,null,null,null,null,null,null,null,null,null,null,null,null,null,null,null,null,null,null,null,null,null,null,null,null,null,null,null,null,null,null,null,null,null,null,null,null,null,null,null,null,null,14,"Heat Pump (Air Cooled, Replacing Electric Resistance)","Split (1 Phase) Package (1 Phase) Split (3 Phase) Package (3 Phase)",3,240000,760000,9.5,9.1999999999999993,10.6,3.2,2.0499999999999998,null,10000,10000,10000,10000,10000,null,9.5,null,11.8,3.3,2.1,105,null,null,null,null,null,150]
[null,null,null,null,null,null,null,null,null,null,null,null,null,null,null,null,null,null,null,null,null,null,null,null,null,null,null,null,null,null,null,null,null,null,null,null,null,null,null,null,null,null,null,null,null,null,null,null,null,null,null,null,null,null,null,null,null,15,"Heat Pump (Water Cooled)",null,null,0,17000,12.2,null,{"$f":"BL207*1.15","v":14.029999999999998},4.3,4.3,null,10000,10000,10000,10000,10000,null,10000,10000,10000,10000,10000,100,10000,10000,10000,10000,10000]
[null,null,null,null,null,null,null,null,null,null,null,null,null,null,null,null,null,null,null,null,null,null,null,null,null,null,null,null,null,null,null,null,null,null,null,null,null,null,null,null,null,null,null,null,null,null,null,null,null,null,null,null,null,null,null,null,null,16,"Heat Pump (Water Cooled)",null,null,17000,65000,13,null,{"$f":"BL208*1.15","v":14.95},4.3,4.3,null,10000,10000,10000,10000,10000,null,10000,10000,10000,10000,10000,100,10000,10000,10000,10000,10000]
[null,null,null,null,null,null,null,null,null,null,null,null,null,null,null,null,null,null,null,null,null,null,null,null,null,null,null,null,null,null,null,null,null,null,null,null,null,null,null,null,null,null,null,null,null,null,null,null,null,null,null,null,null,null,null,null,null,17,"Heat Pump (Water Cooled)",null,null,65000,135000,13,null,{"$f":"BL209*1.15","v":14.95},4.3,4.3,null,10000,10000,10000,10000,10000,null,10000,10000,10000,10000,10000,100,10000,10000,10000,10000,10000]
[null,null,null,null,null,null,null,null,null,null,null,null,null,null,null,null,null,null,null,null,null,null,null,null,null,null,null,null,null,null,null,null,null,null,null,null,null,null,null,null,null,null,null,null,null,null,null,null,null,null,null,null,null,null,null,null,null,18,"Unitary AC (Air Cooled)","Split (1 Phase)",1,0,45000,12.2,14,null,null,null,null,10000,10000,10000,10000,10000,null,10000,10000,10000,10000,10000,375,10000,10000,10000,10000,10000,400]
[null,null,null,null,null,null,null,null,null,null,null,null,null,null,null,null,null,null,null,null,null,null,null,null,null,null,null,null,null,null,null,null,null,null,null,null,null,null,null,null,null,null,null,null,null,null,null,null,null,null,null,null,null,null,null,null,null,19,"Unitary AC (Air Cooled)","Split (1 Phase)",1,45000,65000,11.7,14,null,null,null,null,10000,10000,10000,10000,10000,null,10000,10000,10000,10000,10000,375,10000,10000,10000,10000,10000,400]
[null,null,null,null,null,null,null,null,null,null,null,null,null,null,null,null,null,null,null,null,null,null,null,null,null,null,null,null,null,null,null,null,null,null,null,null,null,null,null,null,null,null,null,null,null,null,null,null,null,null,null,null,null,null,null,null,null,20,"Unitary AC (Air Cooled)","Package (1 Phase)",1,0,65000,11,14,null,null,null,null,10000,10000,10000,10000,10000,null,10000,10000,10000,10000,10000,375,10000,10000,10000,10000,10000,400]
[null,null,null,null,null,null,null,null,null,null,null,null,null,null,null,null,null,null,null,null,null,null,null,null,null,null,null,null,null,null,null,null,null,null,null,null,null,null,null,null,null,null,null,null,null,null,null,null,null,null,null,null,null,null,null,null,null,21,"Unitary AC (Air Cooled)","Split (3 Phase)",3,0,65000,9.23,13,null,null,null,null,10000,10000,10000,10000,10000,null,10000,10000,10000,10000,10000,175,10000,10000,10000,10000,10000,375]
[null,null,null,null,null,null,null,null,null,null,null,null,null,null,null,null,null,null,null,null,null,null,null,null,null,null,null,null,null,null,null,null,null,null,null,null,null,null,null,null,null,null,null,null,null,null,null,null,null,null,null,null,null,null,null,null,null,22,"Unitary AC (Air Cooled)","Package (3 Phase)",3,0,65000,9.23,13,null,null,null,null,10000,10000,10000,10000,10000,null,10000,10000,10000,10000,10000,175,10000,10000,10000,10000,10000,375]
[null,null,null,null,null,null,null,null,null,null,null,null,null,null,null,null,null,null,null,null,null,null,null,null,null,null,null,null,null,null,null,null,null,null,null,null,null,null,null,null,null,null,null,null,null,null,null,null,null,null,null,null,null,null,null,null,null,23,"Unitary AC (Air Cooled)","Split (3 Phase) Package (3 Phase)",3,65000,135000,11.2,11.2,11.399999999999999,null,null,null,10000,10000,10000,10000,10000,null,10000,10000,10000,10000,10000,150,10000,10000,10000,10000,10000,325]
[null,null,null,null,null,null,null,null,null,null,null,null,null,null,null,null,null,null,null,null,null,null,null,null,null,null,null,null,null,null,null,null,null,null,null,null,null,null,null,null,null,null,null,null,null,null,null,null,null,null,null,null,null,null,null,null,null,24,"Unitary AC (Air Cooled)","Split (3 Phase) Package (3 Phase)",3,135000,240000,11,11,11.2,null,null,null,10000,10000,10000,10000,10000,null,10000,10000,10000,10000,10000,125,10000,10000,10000,10000,10000,225]
[null,null,null,null,null,null,null,null,null,null,null,null,null,null,null,null,null,null,null,null,null,null,null,null,null,null,null,null,null,null,null,null,null,null,null,null,null,null,null,null,null,null,null,null,null,null,null,null,null,null,null,null,null,null,null,null,null,25,"Unitary AC (Air Cooled)","Split (3 Phase) Package (3 Phase)",3,240000,760000,10,9.6999999999999993,10.1,null,null,null,10000,10000,10000,10000,10000,null,10000,10000,10000,10000,10000,150,10000,10000,10000,10000,10000,200]
[null,null,null,null,null,null,null,null,null,null,null,null,null,null,null,null,null,null,null,null,null,null,null,null,null,null,null,null,null,null,null,null,null,null,null,null,null,null,null,null,null,null,null,null,null,null,null,null,null,null,null,null,null,null,null,null,null,26,"Unitary AC (Air Cooled)","Split (3 Phase) Package (3 Phase)",3,760000,10000000,9.6999999999999993,9.4,9.8000000000000007,null,null,null,10000,10000,10000,10000,10000,null,10000,10000,10000,10000,10000,75,10000,10000,10000,10000,10000,150]
[null,null,null,null,null,null,null,null,null,null,null,null,null,null,null,null,null,null,null,null,null,null,null,null,null,null,null,null,null,null,null,null,null,null,null,null,null,null,null,null,null,null,null,null,null,null,null,null,null,null,null,null,null,null,null,null,null,27,"Ground-Source Heat Pump",null,null,0,10000000,13.4,null,{"$f":"BL219*1.15","v":15.409999999999998},3.1,3.1,null,10000,10000,10000,10000,10000,null,10000,10000,10000,10000,10000,100,10000,10000,10000,10000,10000]
[null,null,null,null,null,null,null,null,null,null,null,null,null,null,null,null,null,null,null,null,null,null,null,null,null,null,null,null,null,null,null,null,null,null,null,null,null,null,null,null,null,null,null,null,null,null,null,null,null,null,null,null,null,null,null,null,null,28,"Groundwater Source Heat Pump",null,null,0,10000000,16.2,null,{"$f":"BL220*1.15","v":18.63},3.6,3.6,null,10000,10000,10000,10000,10000,null,10000,10000,10000,10000,10000,100,10000,10000,10000,10000,10000]
[null,null,null,null,null,null,null,null,null,null,null,null,null,null,null,null,null,null,null,null,null,null,null,null,null,null,null,null,null,null,null,null,null,null,null,null,null,null,null,null,null,null,null,null,null,null,null,null,null,null,null,null,null,null,null,null,null,29,"Unitary AC (Water Cooled)","Split (1 Phase)",1,0,65000,12.1,null,12.3,null,null,null,10000,10000,10000,10000,10000,null,10000,10000,10000,10000,10000,100,10000,10000,10000,10000,10000]
[null,null,null,null,null,null,null,null,null,null,null,null,null,null,null,null,null,null,null,null,null,null,null,null,null,null,null,null,null,null,null,null,null,null,null,null,null,null,null,null,null,null,null,null,null,null,null,null,null,null,null,null,null,null,null,null,null,30,"Unitary AC (Water Cooled)","Package (1 Phase)",1,0,65000,12.1,null,12.3,null,null,null,10000,10000,10000,10000,10000,null,10000,10000,10000,10000,10000,100,10000,10000,10000,10000,10000]
[null,null,null,null,null,null,null,null,null,null,null,null,null,null,null,null,null,null,null,null,null,null,null,null,null,null,null,null,null,null,null,null,null,null,null,null,null,null,null,null,null,null,null,null,null,null,null,null,null,null,null,null,null,null,null,null,null,31,"Unitary AC (Water Cooled)","Split (3 Phase)",3,0,65000,12.1,null,12.3,null,null,null,10000,10000,10000,10000,10000,null,10000,10000,10000,10000,10000,100,10000,10000,10000,10000,10000]
[null,null,null,null,null,null,null,null,null,null,null,null,null,null,null,null,null,null,null,null,null,null,null,null,null,null,null,null,null,null,null,null,null,null,null,null,null,null,null,null,null,null,null,null,null,null,null,null,null,null,null,null,null,null,null,null,null,32,"Unitary AC (Water Cooled)","Package (3 Phase)",3,0,65000,12.1,null,12.3,null,null,null,10000,10000,10000,10000,10000,null,10000,10000,10000,10000,10000,100,10000,10000,10000,10000,10000]
[null,null,null,null,null,null,null,null,null,null,null,null,null,null,null,null,null,null,null,null,null,null,null,null,null,null,null,null,null,null,null,null,null,null,null,null,null,null,null,null,null,null,null,null,null,null,null,null,null,null,null,null,null,null,null,null,null,33,"Unitary AC (Water Cooled)","Split (3 Phase) Package (3 Phase)",3,65000,135000,12.1,null,12.5,null,null,null,10000,10000,10000,10000,10000,null,10000,10000,10000,10000,10000,100,10000,10000,10000,10000,10000]
[null,null,null,null,null,null,null,null,null,null,null,null,null,null,null,null,null,null,null,null,null,null,null,null,null,null,null,null,null,null,null,null,null,null,null,null,null,null,null,null,null,null,null,null,null,null,null,null,null,null,null,null,null,null,null,null,null,34,"Unitary AC (Water Cooled)","Split (3 Phase) Package (3 Phase)",3,135000,240000,12.5,null,12.7,null,null,null,10000,10000,10000,10000,10000,null,10000,10000,10000,10000,10000,100,10000,10000,10000,10000,10000]
[null,null,null,null,null,null,null,null,null,null,null,null,null,null,null,null,null,null,null,null,null,null,null,null,null,null,null,null,null,null,null,null,null,null,null,null,null,null,null,null,null,null,null,null,null,null,null,null,null,null,null,null,null,null,null,null,null,35,"Unitary AC (Water Cooled)","Split (3 Phase) Package (3 Phase)",3,240000,760000,12.4,null,12.6,null,null,null,10000,10000,10000,10000,10000,null,10000,10000,10000,10000,10000,100,10000,10000,10000,10000,10000]
[null,null,null,null,null,null,null,null,null,null,null,null,null,null,null,null,null,null,null,null,null,null,null,null,null,null,null,null,null,null,null,null,null,null,null,null,null,null,null,null,null,null,null,null,null,null,null,null,null,null,null,null,null,null,null,null,null,36,"Unitary AC (Water Cooled)","Split (3 Phase) Package (3 Phase)",3,760000,10000000,12.2,null,12.4,null,null,null,10000,10000,10000,10000,10000,null,10000,10000,10000,10000,10000,100,10000,10000,10000,10000,10000]
[null,null,null,null,null,null,null,null,null,null,null,null,null,null,null,null,null,null,null,null,null,null,null,null,null,null,null,null,null,null,null,null,null,null,null,null,null,null,null,null,null,null,null,null,null,null,null,null,null,null,null,null,null,null,null,null,null,37,"Unitary AC (Evaporatively Cooled)","Split (1 Phase)",1,0,65000,12.1,null,12.3,null,null,null,10000,10000,10000,10000,10000,null,10000,10000,10000,10000,10000,100,10000,10000,10000,10000,10000]
[null,null,null,null,null,null,null,null,null,null,null,null,null,null,null,null,null,null,null,null,null,null,null,null,null,null,null,null,null,null,null,null,null,null,null,null,null,null,null,null,null,null,null,null,null,null,null,null,null,null,null,null,null,null,null,null,null,38,"Unitary AC (Evaporatively Cooled)","Package (1 Phase)",1,0,65000,12.1,null,12.3,null,null,null,10000,10000,10000,10000,10000,null,10000,10000,10000,10000,10000,100,10000,10000,10000,10000,10000]
[null,null,null,null,null,null,null,null,null,null,null,null,null,null,null,null,null,null,null,null,null,null,null,null,null,null,null,null,null,null,null,null,null,null,null,null,null,null,null,null,null,null,null,null,null,null,null,null,null,null,null,null,null,null,null,null,null,39,"Unitary AC (Evaporatively Cooled)","Split (3 Phase)",3,0,65000,12.1,null,12.3,null,null,null,10000,10000,10000,10000,10000,null,10000,10000,10000,10000,10000,100,10000,10000,10000,10000,10000]
[null,null,null,null,null,null,null,null,null,null,null,null,null,null,null,null,null,null,null,null,null,null,null,null,null,null,null,null,null,null,null,null,null,null,null,null,null,null,null,null,null,null,null,null,null,null,null,null,null,null,null,null,null,null,null,null,null,40,"Unitary AC (Evaporatively Cooled)","Package (3 Phase)",3,0,65000,12.1,null,12.3,null,null,null,10000,10000,10000,10000,10000,null,10000,10000,10000,10000,10000,100,10000,10000,10000,10000,10000]
[null,null,null,null,null,null,null,null,null,null,null,null,null,null,null,null,null,null,null,null,null,null,null,null,null,null,null,null,null,null,null,null,null,null,null,null,null,null,null,null,null,null,null,null,null,null,null,null,null,null,null,null,null,null,null,null,null,41,"Unitary AC (Evaporatively Cooled)","Split (3 Phase) Package (3 Phase)",3,65000,135000,12.1,null,12.3,null,null,null,10000,10000,10000,10000,10000,null,10000,10000,10000,10000,10000,100,10000,10000,10000,10000,10000]
[null,null,null,null,null,null,null,null,null,null,null,null,null,null,null,null,null,null,null,null,null,null,null,null,null,null,null,null,null,null,null,null,null,null,null,null,null,null,null,null,null,null,null,null,null,null,null,null,null,null,null,null,null,null,null,null,null,42,"Unitary AC (Evaporatively Cooled)","Split (3 Phase) Package (3 Phase)",3,135000,240000,12,null,12.2,null,null,null,10000,10000,10000,10000,10000,null,10000,10000,10000,10000,10000,100,10000,10000,10000,10000,10000]
[null,null,null,null,null,null,null,null,null,null,null,null,null,null,null,null,null,null,null,null,null,null,null,null,null,null,null,null,null,null,null,null,null,null,null,null,null,null,null,null,null,null,null,null,null,null,null,null,null,null,null,null,null,null,null,null,null,43,"Unitary AC (Evaporatively Cooled)","Split (3 Phase) Package (3 Phase)",3,240000,760000,11.9,null,12.1,null,null,null,10000,10000,10000,10000,10000,null,10000,10000,10000,10000,10000,100,10000,10000,10000,10000,10000]
[null,null,null,null,null,null,null,null,null,null,null,null,null,null,null,null,null,null,null,null,null,null,null,null,null,null,null,null,null,null,null,null,null,null,null,null,null,null,null,null,null,null,null,null,null,null,null,null,null,null,null,null,null,null,null,null,null,44,"Unitary AC (Evaporatively Cooled)","Split (3 Phase) Package (3 Phase)",3,760000,10000000,11.7,null,11.9,null,null,null,10000,10000,10000,10000,10000,null,10000,10000,10000,10000,10000,100,10000,10000,10000,10000,10000]
[null,null,null,null,null,null,null,null,null,null,null,null,null,null,null,null,null,null,null,null,null,null,null,null,null,null,null,null,null,null,null,null,null,null,null,null,null,null,null,null,null,null,null,null,null,null,null,null,null,null,null,null,null,null,null,null,null,45,"VRF HP (Air Cooled)","Multi-split System",null,0,65000,10.87,13,null,7.7,7.7,null,10000,10000,10000,10000,10000,null,10000,10000,10000,10000,10000,null,10000,10000,10000,10000,10000,400]
[null,null,null,null,null,null,null,null,null,null,null,null,null,null,null,null,null,null,null,null,null,null,null,null,null,null,null,null,null,null,null,null,null,null,null,null,null,null,null,null,null,null,null,null,null,null,null,null,null,null,null,null,null,null,null,null,null,46,"VRF HP (Air Cooled)","Multi-split w/Heat Recovery",null,0,65000,10.87,13,null,7.7,7.7,null,10000,10000,10000,10000,10000,null,10000,10000,10000,10000,10000,null,10000,10000,10000,10000,10000,400]
[null,null,null,null,null,null,null,null,null,null,null,null,null,null,null,null,null,null,null,null,null,null,null,null,null,null,null,null,null,null,null,null,null,null,null,null,null,null,null,null,null,null,null,null,null,null,null,null,null,null,null,null,null,null,null,null,null,47,"VRF HP (Air Cooled)","Multi-split System",null,65000,135000,11,null,12.9,3.3,2.25,null,10000,10000,10000,10000,10000,null,10000,10000,10000,10000,10000,null,10000,10000,10000,10000,10000,400]
[null,null,null,null,null,null,null,null,null,null,null,null,null,null,null,null,null,null,null,null,null,null,null,null,null,null,null,null,null,null,null,null,null,null,null,null,null,null,null,null,null,null,null,null,null,null,null,null,null,null,null,null,null,null,null,null,null,48,"VRF HP (Air Cooled)","Multi-split w/Heat Recovery",null,65000,135000,10.8,null,12.7,3.3,2.25,null,10000,10000,10000,10000,10000,null,10000,10000,10000,10000,10000,null,10000,10000,10000,10000,10000,400]
[null,null,null,null,null,null,null,null,null,null,null,null,null,null,null,null,null,null,null,null,null,null,null,null,null,null,null,null,null,null,null,null,null,null,null,null,null,null,null,null,null,null,null,null,null,null,null,null,null,null,null,null,null,null,null,null,null,49,"VRF HP (Air Cooled)","Multi-split System",null,135000,240000,10.6,null,12.3,3.2,2.0499999999999998,null,10000,10000,10000,10000,10000,null,10000,10000,10000,10000,10000,null,10000,10000,10000,10000,10000,400]
[null,null,null,null,null,null,null,null,null,null,null,null,null,null,null,null,null,null,null,null,null,null,null,null,null,null,null,null,null,null,null,null,null,null,null,null,null,null,null,null,null,null,null,null,null,null,null,null,null,null,null,null,null,null,null,null,null,50,"VRF HP (Air Cooled)","Multi-split w/Heat Recovery",null,135000,240000,10.4,null,12.1,3.2,2.0499999999999998,null,10000,10000,10000,10000,10000,null,10000,10000,10000,10000,10000,null,10000,10000,10000,10000,10000,400]
[null,null,null,null,null,null,null,null,null,null,null,null,null,null,null,null,null,null,null,null,null,null,null,null,null,null,null,null,null,null,null,null,null,null,null,null,null,null,null,null,null,null,null,null,null,null,null,null,null,null,null,null,null,null,null,null,null,51,"VRF HP (Air Cooled)","Multi-split System",null,240000,10000000,9.5,null,11,3.2,2.0499999999999998,null,10000,10000,10000,10000,10000,null,10000,10000,10000,10000,10000,null,10000,10000,10000,10000,10000,400]
[null,null,null,null,null,null,null,null,null,null,null,null,null,null,null,null,null,null,null,null,null,null,null,null,null,null,null,null,null,null,null,null,null,null,null,null,null,null,null,null,null,null,null,null,null,null,null,null,null,null,null,null,null,null,null,null,null,52,"VRF HP (Air Cooled)","Multi-split w/Heat Recovery",null,240000,10000000,9.3000000000000007,null,10.8,3.2,2.0499999999999998,null,10000,10000,10000,10000,10000,null,10000,10000,10000,10000,10000,null,10000,10000,10000,10000,10000,400]
[null,null,null,null,null,null,null,null,null,null,null,null,null,null,null,null,null,null,null,null,null,null,null,null,null,null,null,null,null,null,null,null,null,null,null,null,null,null,null,null,null,null,null,null,null,null,null,null,null,null,null,null,null,null,null,null,null,53,"VRF HP (Water Source)","Multi-split System",null,0,135000,12,null,{"$f":"BL245*1.15","v":13.799999999999999},4.2,4.2,null,10000,10000,10000,10000,10000,null,10000,10000,10000,10000,10000,null,10000,10000,10000,10000,10000,400]
[null,null,null,null,null,null,null,null,null,null,null,null,null,null,null,null,null,null,null,null,null,null,null,null,null,null,null,null,null,null,null,null,null,null,null,null,null,null,null,null,null,null,null,null,null,null,null,null,null,null,null,null,null,null,null,null,null,54,"VRF HP (Water Source)","Multi-split w/Heat Recovery",null,0,135000,11.8,null,{"$f":"BL246*1.15","v":13.57},4.2,4.2,null,10000,10000,10000,10000,10000,null,10000,10000,10000,10000,10000,null,10000,10000,10000,10000,10000,400]
[]
[null,null,null,null,null,null,null,null,null,null,null,null,null,null,null,null,null,null,null,null,null,null,null,null,null,null,null,null,null,null,null,null,null,null,null,null,null,null,null,null,null,null,null,null,null,null,null,null,null,null,null,null,null,null,null,null,null,null,null,null,null,null,null,"ID",null,null,null,null,null,"Code","EFLCH","EFLHH","NTG","CF","Cooling Months","Defined in Fed Code","Estimation","Defined in Code",null,"PTAC Calcs from Deemed Savings",null,"Cost","kW/Unit","Gross kWh/yr","$/ton"]
[null,null,null,null,null,null,null,null,null,null,null,null,null,null,null,null,null,null,null,null,null,null,null,null,null,null,null,null,null,null,null,null,null,null,null,null,null,null,null,null,null,null,null,null,null,null,null,null,null,null,null,null,null,null,null,null,null,null,null,null,null,null,null,null,null,null,null,null,null,"IECC 2015, Tables C403.2.3(1) & C403.2.3(2)",697.2,2590,1,1,6,null,"Not Used","Existing in Program",null,null,null,200,9.8000000000000004E-2,446,50]
[null,null,null,null,null,null,null,null,null,null,null,null,null,null,null,null,null,null,null,null,null,null,null,null,null,null,null,null,null,null,null,null,null,null,null,null,null,null,null,null,null,null,null,null,null,null,null,null,null,null,null,null,null,null,null,null,null,null,null,null,null,null,null,"Baseline",null,null,null,null,null,"Tier",1,null,25,"per ton",null,"Tier",2,null,50,{"$f":"BV250","v":"per ton"},null,"Tier",3,null,75,{"$f":"CB250","v":"per ton"}]
[null,null,null,null,null,null,null,null,null,null,null,null,null,null,null,null,null,null,null,null,null,null,null,null,null,null,null,null,null,null,null,null,null,null,null,null,null,null,null,null,null,null,null,null,null,null,null,null,null,null,null,null,null,null,null,null,null,null,null,null,null,null,null,"Cooling",null,null,"Heating",null,null,"Cooling",null,null,"Heating",null,"Gross Incremental Cost/Ton","Cooling",null,null,"Heating",null,"Gross Incremental Cost/Ton","Cooling",null,null,"Heating",null,"Gross Incremental Cost/Ton"]
[null,null,null,null,null,null,null,null,null,null,null,null,null,null,null,null,null,null,null,null,null,null,null,null,null,null,null,null,null,null,null,null,null,null,null,null,null,null,null,null,null,null,null,null,null,null,null,null,null,null,null,null,null,null,null,null,null,null,null,null,null,null,null,"EER","SEER IPLV","IEER","HSPF COP @ DB/WB",null,null,"EER","SEER IPLV","IEER","HSPF COP @ DB/WB",null,null,"EER","SEER IPLV","IEER","HSPF COP @ DB/WB",null,null,"EER","SEER IPLV","IEER","HSPF COP @ DB/WB"]
[null,null,null,null,null,null,null,null,null,null,null,null,null,null,null,null,null,null,null,null,null,null,null,null,null,null,null,null,null,null,null,null,null,null,null,null,null,null,null,null,null,null,null,null,null,null,null,null,null,null,null,null,null,null,null,null,null,null,"Equip Type","Category","Phase","Min (>=)","Max (<)",null,null,null,"47/43","17/15",null,null,null,null,"47/43","17/15",null,null,null,null,"47/43","17/15",null,null,null,null,"47/43","17/15"]
[null,null,null,null,null,null,null,null,null,null,null,null,null,null,null,null,null,null,null,null,null,null,null,null,null,null,null,null,null,null,null,null,null,null,null,null,null,null,null,null,null,null,null,null,null,null,null,null,null,null,null,null,null,null,null,null,null,1,"Heat Pump (Air Cooled)","Split (1 Phase)",1,0,65000,10.87,14,null,8.1999999999999993,8.1999999999999993,null,null,null,null,null,null,null,13,16,null,9,9,150]
[null,null,null,null,null,null,null,null,null,null,null,null,null,null,null,null,null,null,null,null,null,null,null,null,null,null,null,null,null,null,null,null,null,null,null,null,null,null,null,null,null,null,null,null,null,null,null,null,null,null,null,null,null,null,null,null,null,2,"Heat Pump (Air Cooled)","Package (1 Phase)",1,0,65000,10.87,14,null,8,8,null,null,null,null,null,null,null,12,16,null,8.1999999999999993,8.1999999999999993,150]
[null,null,null,null,null,null,null,null,null,null,null,null,null,null,null,null,null,null,null,null,null,null,null,null,null,null,null,null,null,null,null,null,null,null,null,null,null,null,null,null,null,null,null,null,null,null,null,null,null,null,null,null,null,null,null,null,null,3,"Heat Pump (Air Cooled)","Split (3 Phase)",3,0,65000,9.23,13,null,7.7,7.7,null,12.5,15,null,8.5,8.5,105,13,16,null,9,9,150]
[null,null,null,null,null,null,null,null,null,null,null,null,null,null,null,null,null,null,null,null,null,null,null,null,null,null,null,null,null,null,null,null,null,null,null,null,null,null,null,null,null,null,null,null,null,null,null,null,null,null,null,null,null,null,null,null,null,4,"Heat Pump (Air Cooled)","Package (3 Phase)",3,0,65000,9.23,13,null,7.7,7.7,null,12,15,null,8.1999999999999993,8.1999999999999993,105,12,16,null,8.1999999999999993,8.1999999999999993,150]
[null,null,null,null,null,null,null,null,null,null,null,null,null,null,null,null,null,null,null,null,null,null,null,null,null,null,null,null,null,null,null,null,null,null,null,null,null,null,null,null,null,null,null,null,null,null,null,null,null,null,null,null,null,null,null,null,null,5,"Heat Pump (Air Cooled)","Split (3 Phase) Package (3 Phase)",3,65000,135000,11,10.199999999999999,{"$f":"BL258+0.2","v":11.2},3.3,2.25,null,11.1,11.9,12,3.4,2.4,105,11.6,null,13.4,3.4,2.4,150]
[null,null,null,null,null,null,null,null,null,null,null,null,null,null,null,null,null,null,null,null,null,null,null,null,null,null,null,null,null,null,null,null,null,null,null,null,null,null,null,null,null,null,null,null,null,null,null,null,null,null,null,null,null,null,null,null,null,6,"Heat Pump (Air Cooled)","Split (3 Phase) Package (3 Phase)",3,135000,240000,10.6,9.5,10.7,3.2,2.0499999999999998,null,10.7,11.9,11.4,3.2,2.1,105]
[null,null,null,null,null,null,null,null,null,null,null,null,null,null,null,null,null,null,null,null,null,null,null,null,null,null,null,null,null,null,null,null,null,null,null,null,null,null,null,null,null,null,null,null,null,null,null,null,null,null,null,null,null,null,null,null,null,7,"Heat Pump (Air Cooled)","Split (3 Phase) Package (3 Phase)",3,240000,10000000,9.5,9.1999999999999993,9.6,3.2,2.0499999999999998,null,10.1,10.9,10.4,3.2,2.1,105]
[null,null,null,null,null,null,null,null,null,null,null,null,null,null,null,null,null,null,null,null,null,null,null,null,null,null,null,null,null,null,null,null,null,null,null,null,null,null,null,null,null,null,null,null,null,null,null,null,null,null,null,null,null,null,null,null,null,8,"Heat Pump (Water Cooled)",null,null,0,17000,12.2,null,{"$f":"BL261*1.15","v":14.029999999999998},4.3,4.3,null,null,null,null,null,null,null,14,null,null,4.5999999999999996,4.5999999999999996,100]
[null,null,null,null,null,null,null,null,null,null,null,null,null,null,null,null,null,null,null,null,null,null,null,null,null,null,null,null,null,null,null,null,null,null,null,null,null,null,null,null,null,null,null,null,null,null,null,null,null,null,null,null,null,null,null,null,null,9,"Heat Pump (Water Cooled)",null,null,17000,65000,13,null,{"$f":"BL262*1.15","v":14.95},4.3,4.3,null,null,null,null,null,null,null,14,null,null,4.5999999999999996,4.5999999999999996,100]
[null,null,null,null,null,null,null,null,null,null,null,null,null,null,null,null,null,null,null,null,null,null,null,null,null,null,null,null,null,null,null,null,null,null,null,null,null,null,null,null,null,null,null,null,null,null,null,null,null,null,null,null,null,null,null,null,null,10,"Heat Pump (Water Cooled)",null,null,65000,135000,13,null,{"$f":"BL263*1.15","v":14.95},4.3,4.3,null,null,null,null,null,null,null,14,null,null,4.5999999999999996,4.5999999999999996,100]
[null,null,null,null,null,null,null,null,null,null,null,null,null,null,null,null,null,null,null,null,null,null,null,null,null,null,null,null,null,null,null,null,null,null,null,null,null,null,null,null,null,null,null,null,null,null,null,null,null,null,null,null,null,null,null,null,null,11,"Unitary AC (Air Cooled)","Split (1 Phase)",1,0,45000,10.87,13,null,null,null,null,null,null,null,null,null,null,13,16,null,null,null,375,13,18,null,null,null,400]
[null,null,null,null,null,null,null,null,null,null,null,null,null,null,null,null,null,null,null,null,null,null,null,null,null,null,null,null,null,null,null,null,null,null,null,null,null,null,null,null,null,null,null,null,null,null,null,null,null,null,null,null,null,null,null,null,null,12,"Unitary AC (Air Cooled)","Split (1 Phase)",1,45000,65000,10.87,13,null,null,null,null,null,null,null,null,null,null,13,16,null,null,null,375,13,18,null,null,null,400]
[null,null,null,null,null,null,null,null,null,null,null,null,null,null,null,null,null,null,null,null,null,null,null,null,null,null,null,null,null,null,null,null,null,null,null,null,null,null,null,null,null,null,null,null,null,null,null,null,null,null,null,null,null,null,null,null,null,13,"Unitary AC (Air Cooled)","Package (1 Phase)",1,0,65000,11,14,null,null,null,null,null,null,null,null,null,null,12,16,null,null,null,375,12.5,17,null,null,null,400]
[null,null,null,null,null,null,null,null,null,null,null,null,null,null,null,null,null,null,null,null,null,null,null,null,null,null,null,null,null,null,null,null,null,null,null,null,null,null,null,null,null,null,null,null,null,null,null,null,null,null,null,null,null,null,null,null,null,14,"Unitary AC (Air Cooled)","Split (3 Phase)",3,0,65000,9.23,13,null,null,null,null,null,null,null,null,null,null,13,16,null,null,null,175,13,18,null,null,null,375]
[null,null,null,null,null,null,null,null,null,null,null,null,null,null,null,null,null,null,null,null,null,null,null,null,null,null,null,null,null,null,null,null,null,null,null,null,null,null,null,null,null,null,null,null,null,null,null,null,null,null,null,null,null,null,null,null,null,15,"Unitary AC (Air Cooled)","Package (3 Phase)",3,0,65000,9.23,13,null,null,null,null,null,null,null,null,null,null,12,16,null,null,null,175,12.5,17,null,null,null,375]
[null,null,null,null,null,null,null,null,null,null,null,null,null,null,null,null,null,null,null,null,null,null,null,null,null,null,null,null,null,null,null,null,null,null,null,null,null,null,null,null,null,null,null,null,null,null,null,null,null,null,null,null,null,null,null,null,null,16,"Unitary AC (Air Cooled)","Split (3 Phase) Package (3 Phase)",3,65000,135000,11.2,9.8000000000000007,{"$f":"BL269+0.2","v":11.399999999999999},null,null,null,null,null,null,null,null,null,12,12.4,13.8,null,null,150,12.4,12.4,17.8,null,null,325]
[null,null,null,null,null,null,null,null,null,null,null,null,null,null,null,null,null,null,null,null,null,null,null,null,null,null,null,null,null,null,null,null,null,null,null,null,null,null,null,null,null,null,null,null,null,null,null,null,null,null,null,null,null,null,null,null,null,17,"Unitary AC (Air Cooled)","Split (3 Phase) Package (3 Phase)",3,135000,240000,11,9.6999999999999993,{"$f":"BL270+0.2","v":11.2},null,null,null,null,null,null,null,null,null,12,12.4,13,null,null,125,12,12.4,16.8,null,null,225]
[null,null,null,null,null,null,null,null,null,null,null,null,null,null,null,null,null,null,null,null,null,null,null,null,null,null,null,null,null,null,null,null,null,null,null,null,null,null,null,null,null,null,null,null,null,null,null,null,null,null,null,null,null,null,null,null,null,18,"Unitary AC (Air Cooled)","Split (3 Phase) Package (3 Phase)",3,240000,760000,10,9.6999999999999993,10.1,null,null,null,null,null,null,null,null,null,10.6,12,12.1,null,null,150,10.6,12,13.3,null,null,200]
[null,null,null,null,null,null,null,null,null,null,null,null,null,null,null,null,null,null,null,null,null,null,null,null,null,null,null,null,null,null,null,null,null,null,null,null,null,null,null,null,null,null,null,null,null,null,null,null,null,null,null,null,null,null,null,null,null,19,"Unitary AC (Air Cooled)","Split (3 Phase) Package (3 Phase)",3,760000,10000000,9.6999999999999993,9.4,9.8000000000000007,null,null,null,null,null,null,null,null,null,10.199999999999999,11,11.4,null,null,75]
[null,null,null,null,null,null,null,null,null,null,null,null,null,null,null,null,null,null,null,null,null,null,null,null,null,null,null,null,null,null,null,null,null,null,null,null,null,null,null,null,null,null,null,null,null,null,null,null,null,null,null,null,null,null,null,null,null,20,"Ground-Source Heat Pump",null,null,0,10000000,13.4,null,{"$f":"BL273*1.15","v":15.409999999999998},3.1,3.1,null,null,null,null,null,null,null,17.100000000000001,null,null,3.6,3.6,150]
[null,null,null,null,null,null,null,null,null,null,null,null,null,null,null,null,null,null,null,null,null,null,null,null,null,null,null,null,null,null,null,null,null,null,null,null,null,null,null,null,null,null,null,null,null,null,null,null,null,null,null,null,null,null,null,null,null,21,"Groundwater Source Heat Pump",null,null,0,10000000,16.2,null,{"$f":"BL274*1.15","v":18.63},3.6,3.6,null,null,null,null,null,null,null,21.1,null,null,4.0999999999999996,4.0999999999999996,150]
[null,null,null,null,null,null,null,null,null,null,null,null,null,null,null,null,null,null,null,null,null,null,null,null,null,null,null,null,null,null,null,null,null,null,null,null,null,null,null,null,null,null,null,null,null,null,null,null,null,null,null,null,null,null,null,null,null,22,"Unitary AC (Water Cooled)","Split (1 Phase)",1,0,65000,12.1,null,12.3,null,null,null,null,null,null,null,null,null,14,null,null,null,null,100]
[null,null,null,null,null,null,null,null,null,null,null,null,null,null,null,null,null,null,null,null,null,null,null,null,null,null,null,null,null,null,null,null,null,null,null,null,null,null,null,null,null,null,null,null,null,null,null,null,null,null,null,null,null,null,null,null,null,23,"Unitary AC (Water Cooled)","Package (1 Phase)",1,0,65000,12.1,null,12.3,null,null,null,null,null,null,null,null,null,14,null,null,null,null,100]
[null,null,null,null,null,null,null,null,null,null,null,null,null,null,null,null,null,null,null,null,null,null,null,null,null,null,null,null,null,null,null,null,null,null,null,null,null,null,null,null,null,null,null,null,null,null,null,null,null,null,null,null,null,null,null,null,null,24,"Unitary AC (Water Cooled)","Split (3 Phase)",3,0,65000,12.1,null,12.3,null,null,null,null,null,null,null,null,null,14,null,null,null,null,100]
[null,null,null,null,null,null,null,null,null,null,null,null,null,null,null,null,null,null,null,null,null,null,null,null,null,null,null,null,null,null,null,null,null,null,null,null,null,null,null,null,null,null,null,null,null,null,null,null,null,null,null,null,null,null,null,null,null,25,"Unitary AC (Water Cooled)","Package (3 Phase)",3,0,65000,12.1,null,12.3,null,null,null,null,null,null,null,null,null,14,null,null,null,null,100]
[null,null,null,null,null,null,null,null,null,null,null,null,null,null,null,null,null,null,null,null,null,null,null,null,null,null,null,null,null,null,null,null,null,null,null,null,null,null,null,null,null,null,null,null,null,null,null,null,null,null,null,null,null,null,null,null,null,26,"Unitary AC (Water Cooled)","Split (3 Phase) Package (3 Phase)",3,65000,135000,12.1,null,12.3,null,null,null,null,null,null,null,null,null,13.8,null,15.1,null,null,100]
[null,null,null,null,null,null,null,null,null,null,null,null,null,null,null,null,null,null,null,null,null,null,null,null,null,null,null,null,null,null,null,null,null,null,null,null,null,null,null,null,null,null,null,null,null,null,null,null,null,null,null,null,null,null,null,null,null,27,"Unitary AC (Water Cooled)","Split (3 Phase) Package (3 Phase)",3,135000,240000,12.5,null,12.7,null,null,null,null,null,null,null,null,null,13.8,null,14.6,null,null,100]
[null,null,null,null,null,null,null,null,null,null,null,null,null,null,null,null,null,null,null,null,null,null,null,null,null,null,null,null,null,null,null,null,null,null,null,null,null,null,null,null,null,null,null,null,null,null,null,null,null,null,null,null,null,null,null,null,null,28,"Unitary AC (Water Cooled)","Split (3 Phase) Package (3 Phase)",3,240000,760000,12.4,null,12.6,null,null,null,null,null,null,null,null,null,13.8,null,14.6,null,null,100]
[null,null,null,null,null,null,null,null,null,null,null,null,null,null,null,null,null,null,null,null,null,null,null,null,null,null,null,null,null,null,null,null,null,null,null,null,null,null,null,null,null,null,null,null,null,null,null,null,null,null,null,null,null,null,null,null,null,29,"Unitary AC (Water Cooled)","Split (3 Phase) Package (3 Phase)",3,760000,10000000,12,null,12.4,null,null,null,null,null,null,null,null,null,13.8,null,14.6,null,null,100]
[null,null,null,null,null,null,null,null,null,null,null,null,null,null,null,null,null,null,null,null,null,null,null,null,null,null,null,null,null,null,null,null,null,null,null,null,null,null,null,null,null,null,null,null,null,null,null,null,null,null,null,null,null,null,null,null,null,30,"Unitary AC (Evaporatively Cooled)","Split (1 Phase)",1,0,65000,12.1,null,12.3,null,null,null,null,null,null,null,null,null,14,null,null,null,null,100]
[null,null,null,null,null,null,null,null,null,null,null,null,null,null,null,null,null,null,null,null,null,null,null,null,null,null,null,null,null,null,null,null,null,null,null,null,null,null,null,null,null,null,null,null,null,null,null,null,null,null,null,null,null,null,null,null,null,31,"Unitary AC (Evaporatively Cooled)","Package (1 Phase)",1,0,65000,12.1,null,12.3,null,null,null,null,null,null,null,null,null,14,null,null,null,null,100]
[null,null,null,null,null,null,null,null,null,null,null,null,null,null,null,null,null,null,null,null,null,null,null,null,null,null,null,null,null,null,null,null,null,null,null,null,null,null,null,null,null,null,null,null,null,null,null,null,null,null,null,null,null,null,null,null,null,32,"Unitary AC (Evaporatively Cooled)","Split (3 Phase)",3,0,65000,12.1,null,12.3,null,null,null,null,null,null,null,null,null,14,null,null,null,null,100]
[null,null,null,null,null,null,null,null,null,null,null,null,null,null,null,null,null,null,null,null,null,null,null,null,null,null,null,null,null,null,null,null,null,null,null,null,null,null,null,null,null,null,null,null,null,null,null,null,null,null,null,null,null,null,null,null,null,33,"Unitary AC (Evaporatively Cooled)","Package (3 Phase)",3,0,65000,12.1,null,12.3,null,null,null,null,null,null,null,null,null,14,null,null,null,null,100]
[null,null,null,null,null,null,null,null,null,null,null,null,null,null,null,null,null,null,null,null,null,null,null,null,null,null,null,null,null,null,null,null,null,null,null,null,null,null,null,null,null,null,null,null,null,null,null,null,null,null,null,null,null,null,null,null,null,34,"Unitary AC (Evaporatively Cooled)","Split (3 Phase) Package (3 Phase)",3,65000,135000,12.1,null,12.3,null,null,null,null,null,null,null,null,null,13.8,null,15.1,null,null,100]
[null,null,null,null,null,null,null,null,null,null,null,null,null,null,null,null,null,null,null,null,null,null,null,null,null,null,null,null,null,null,null,null,null,null,null,null,null,null,null,null,null,null,null,null,null,null,null,null,null,null,null,null,null,null,null,null,null,35,"Unitary AC (Evaporatively Cooled)","Split (3 Phase) Package (3 Phase)",3,135000,240000,12,null,12.2,null,null,null,null,null,null,null,null,null,13.3,null,14.1,null,null,100]
[null,null,null,null,null,null,null,null,null,null,null,null,null,null,null,null,null,null,null,null,null,null,null,null,null,null,null,null,null,null,null,null,null,null,null,null,null,null,null,null,null,null,null,null,null,null,null,null,null,null,null,null,null,null,null,null,null,36,"Unitary AC (Evaporatively Cooled)","Split (3 Phase) Package (3 Phase)",3,240000,760000,11.9,null,12.1,null,null,null,null,null,null,null,null,null,13.3,null,14.1,null,null,100]
[null,null,null,null,null,null,null,null,null,null,null,null,null,null,null,null,null,null,null,null,null,null,null,null,null,null,null,null,null,null,null,null,null,null,null,null,null,null,null,null,null,null,null,null,null,null,null,null,null,null,null,null,null,null,null,null,null,37,"Unitary AC (Evaporatively Cooled)","Split (3 Phase) Package (3 Phase)",3,760000,10000000,11.7,null,11.9,null,null,null,null,null,null,null,null,null,13.3,null,14.1,null,null,100]
[null,null,null,null,null,null,null,null,null,null,null,null,null,null,null,null,null,null,null,null,null,null,null,null,null,null,null,null,null,null,null,null,null,null,null,null,null,null,null,null,null,null,null,null,null,null,null,null,null,null,null,null,null,null,null,null,null,38,"VRF HP (Air Cooled)","Multi-split System",null,0,65000,10.87,13,null,7.7,7.7,null,null,null,null,null,null,null,null,null,null,null,null,null,12.5,15,null,8.5,8.5,535]
[null,null,null,null,null,null,null,null,null,null,null,null,null,null,null,null,null,null,null,null,null,null,null,null,null,null,null,null,null,null,null,null,null,null,null,null,null,null,null,null,null,null,null,null,null,null,null,null,null,null,null,null,null,null,null,null,null,39,"VRF HP (Air Cooled)","Multi-split w/Heat Recovery",null,0,65000,10.87,13,null,7.7,7.7,null,null,null,null,null,null,null,null,null,null,null,null,null,12.5,15,null,8.5,8.5,535]
[null,null,null,null,null,null,null,null,null,null,null,null,null,null,null,null,null,null,null,null,null,null,null,null,null,null,null,null,null,null,null,null,null,null,null,null,null,null,null,null,null,null,null,null,null,null,null,null,null,null,null,null,null,null,null,null,null,40,"VRF HP (Air Cooled)","Multi-split System",null,65000,135000,11,null,12.9,3.3,2.25,null,null,null,null,null,null,null,null,null,null,null,null,null,11.3,null,14.2,3.4,2.4,535]
[null,null,null,null,null,null,null,null,null,null,null,null,null,null,null,null,null,null,null,null,null,null,null,null,null,null,null,null,null,null,null,null,null,null,null,null,null,null,null,null,null,null,null,null,null,null,null,null,null,null,null,null,null,null,null,null,null,41,"VRF HP (Air Cooled)","Multi-split w/Heat Recovery",null,65000,135000,10.8,null,12.7,3.3,2.25,null,null,null,null,null,null,null,null,null,null,null,null,null,11.1,null,14,3.4,2.4,775]
[null,null,null,null,null,null,null,null,null,null,null,null,null,null,null,null,null,null,null,null,null,null,null,null,null,null,null,null,null,null,null,null,null,null,null,null,null,null,null,null,null,null,null,null,null,null,null,null,null,null,null,null,null,null,null,null,null,42,"VRF HP (Air Cooled)","Multi-split System",null,135000,240000,10.6,null,12.3,3.2,2.0499999999999998,null,null,null,null,null,null,null,null,null,null,null,null,null,10.9,null,13.7,3.2,2.1,560]
[null,null,null,null,null,null,null,null,null,null,null,null,null,null,null,null,null,null,null,null,null,null,null,null,null,null,null,null,null,null,null,null,null,null,null,null,null,null,null,null,null,null,null,null,null,null,null,null,null,null,null,null,null,null,null,null,null,43,"VRF HP (Air Cooled)","Multi-split w/Heat Recovery",null,135000,240000,10.4,null,12.1,3.2,2.0499999999999998,null,null,null,null,null,null,null,null,null,null,null,null,null,10.7,null,13.5,3.2,2.1,735]
[null,null,null,null,null,null,null,null,null,null,null,null,null,null,null,null,null,null,null,null,null,null,null,null,null,null,null,null,null,null,null,null,null,null,null,null,null,null,null,null,null,null,null,null,null,null,null,null,null,null,null,null,null,null,null,null,null,44,"VRF HP (Air Cooled)","Multi-split System",null,240000,10000000,9.5,null,11,3.2,2.0499999999999998,null,null,null,null,null,null,null,null,null,null,null,null,null,10.3,null,12.5,3.2,2.1,525]
[null,null,null,null,null,null,null,null,null,null,null,null,null,null,null,null,null,null,null,null,null,null,null,null,null,null,null,null,null,null,null,null,null,null,null,null,null,null,null,null,null,null,null,null,null,null,null,null,null,null,null,null,null,null,null,null,null,45,"VRF HP (Air Cooled)","Multi-split w/Heat Recovery",null,240000,10000000,9.3000000000000007,null,10.8,3.2,2.0499999999999998,null,null,null,null,null,null,null,null,null,null,null,null,null,10.1,null,12.3,3.2,2.1,800]
[null,null,null,null,null,null,null,null,null,null,null,null,null,null,null,null,null,null,null,null,null,null,null,null,null,null,null,null,null,null,null,null,null,null,null,null,null,null,null,null,null,null,null,null,null,null,null,null,null,null,null,null,null,null,null,null,null,46,"VRF HP (Water Source)","Multi-split System",null,0,135000,12,null,{"$f":"BL299*1.15","v":13.799999999999999},4.2,4.2,null,null,null,null,null,null,null,null,null,null,null,null,null,14,null,null,4.5999999999999996,4.5999999999999996,535]
[null,null,null,null,null,null,null,null,null,null,null,null,null,null,null,null,null,null,null,null,null,null,null,null,null,null,null,null,null,null,null,null,null,null,null,null,null,null,null,null,null,null,null,null,null,null,null,null,null,null,null,null,null,null,null,null,null,47,"VRF HP (Water Source)","Multi-split w/Heat Recovery",null,0,135000,11.8,null,{"$f":"BL300*1.15","v":13.57},4.2,4.2,null,null,null,null,null,null,null,null,null,null,null,null,null,13.8,null,null,4.5999999999999996,4.5999999999999996,775]
[null,null,null,null,null,null,null,null,null,null,null,null,null,null,null,null,null,null,null,null,null,null,null,null,null,null,null,null,null,null,null,null,null,null,null,null,null,null,null,null,null,null,null,null,null,null,null,null,null,null,null,null,null,null,null,null,null,48]
[null,null,null,null,null,null,null,null,null,null,null,null,null,null,null,null,null,null,null,null,null,null,null,null,null,null,null,null,null,null,null,null,null,null,null,null,null,null,null,null,null,null,null,null,null,null,null,null,null,null,null,null,null,null,null,null,null,49]
[null,null,null,null,null,null,null,null,null,null,null,null,null,null,null,null,null,null,null,null,null,null,null,null,null,null,null,null,null,null,null,null,null,null,null,null,null,null,null,null,null,null,null,null,null,null,null,null,null,null,null,null,null,null,null,null,null,50]
[null,null,null,null,null,null,null,null,null,null,null,null,null,null,null,null,null,null,null,null,null,null,null,null,null,null,null,null,null,null,null,null,null,null,null,null,null,null,null,null,null,null,null,null,null,null,null,null,null,null,null,null,null,null,null,null,null,51]
[null,null,null,null,null,null,null,null,null,null,null,null,null,null,null,null,null,null,null,null,null,null,null,null,null,null,null,null,null,null,null,null,null,null,null,null,null,null,null,null,null,null,null,null,null,null,null,null,null,null,null,null,null,null,null,null,null,52]
[null,null,null,null,null,null,null,null,null,null,null,null,null,null,null,null,null,null,null,null,null,null,null,null,null,null,null,null,null,null,null,null,null,null,null,null,null,null,null,null,null,null,null,null,null,null,null,null,null,null,null,null,null,null,null,null,null,53]
[null,null,null,null,null,null,null,null,null,null,null,null,null,null,null,null,null,null,null,null,null,null,null,null,null,null,null,null,null,null,null,null,null,null,null,null,null,null,null,null,null,null,null,null,null,null,null,null,null,null,null,null,null,null,null,null,null,54]
[]
[null,null,null,null,null,null,null,null,null,null,null,null,null,null,null,null,null,null,null,null,null,null,null,null,null,null,null,null,null,null,null,null,null,null,null,null,null,null,null,null,null,null,null,null,null,null,null,null,null,null,null,null,null,null,null,null,null,null,null,null,null,null,null,"WY",null,null,null,null,null,"Code","EFLCH","EFLHH","NTG","CF","Cooling Months","Defined in Fed Code","Estimation","Defined in Code",null,"PTAC Calcs from Deemed Savings",null,"Cost","kW/Unit","Gross kWh/yr","$/ton"]
[null,null,null,null,null,null,null,null,null,null,null,null,null,null,null,null,null,null,null,null,null,null,null,null,null,null,null,null,null,null,null,null,null,null,null,null,null,null,null,null,null,null,null,null,null,null,null,null,null,null,null,null,null,null,null,null,null,null,null,null,null,null,null,null,null,null,null,null,null,"IECC 2009, Tables 503.2.3(1) & 503.2.3(2)",666.89,2588,1,1,5,null,"Not Used","Existing in Program",null,null,null,200,9.8000000000000004E-2,400,50]
[null,null,null,null,null,null,null,null,null,null,null,null,null,null,null,null,null,null,null,null,null,null,null,null,null,null,null,null,null,null,null,null,null,null,null,null,null,null,null,null,null,null,null,null,null,null,null,null,null,null,null,null,null,null,null,null,null,null,null,null,null,null,null,"Baseline",null,null,null,null,null,"Tier",1,null,125,"per ton",null,"Tier",2,null,62,{"$f":"BV311","v":"per ton"},null,"Tier",3,null,75,{"$f":"CB311","v":"per ton"}]
[null,null,null,null,null,null,null,null,null,null,null,null,null,null,null,null,null,null,null,null,null,null,null,null,null,null,null,null,null,null,null,null,null,null,null,null,null,null,null,null,null,null,null,null,null,null,null,null,null,null,null,null,null,null,null,null,null,null,null,null,null,null,null,"Cooling",null,null,"Heating",null,null,"Cooling",null,null,"Heating",null,"Gross Incremental Cost/Ton","Cooling",null,null,"Heating",null,"Gross Incremental Cost/Ton","Cooling",null,null,"Heating",null,"Gross Incremental Cost/Ton"]
[null,null,null,null,null,null,null,null,null,null,null,null,null,null,null,null,null,null,null,null,null,null,null,null,null,null,null,null,null,null,null,null,null,null,null,null,null,null,null,null,null,null,null,null,null,null,null,null,null,null,null,null,null,null,null,null,null,null,null,null,null,null,null,"EER","SEER IPLV","IEER","HSPF COP @ DB/WB",null,null,"EER","SEER IPLV","IEER","HSPF COP @ DB/WB",null,null,"EER","SEER IPLV","IEER","HSPF COP @ DB/WB",null,null,"EER","SEER IPLV","IEER","HSPF COP @ DB/WB"]
[null,null,null,null,null,null,null,null,null,null,null,null,null,null,null,null,null,null,null,null,null,null,null,null,null,null,null,null,null,null,null,null,null,null,null,null,null,null,null,null,null,null,null,null,null,null,null,null,null,null,null,null,null,null,null,null,null,null,"Equip Type","Category","Phase","Min (>=)","Max (<)",null,null,null,"47/43","17/15",null,null,null,null,"47/43","17/15",null,null,null,null,"47/43","17/15",null,null,null,null,"47/43","17/15"]
[null,null,null,null,null,null,null,null,null,null,null,null,null,null,null,null,null,null,null,null,null,null,null,null,null,null,null,null,null,null,null,null,null,null,null,null,null,null,null,null,null,null,null,null,null,null,null,null,null,null,null,null,null,null,null,null,null,1,"Heat Pump (Air Cooled)","Split (1 Phase)",1,0,65000,10.87,14,null,8.1999999999999993,8.1999999999999993,null,null,null,null,null,null,null,13,16,null,9,9,450]
[null,null,null,null,null,null,null,null,null,null,null,null,null,null,null,null,null,null,null,null,null,null,null,null,null,null,null,null,null,null,null,null,null,null,null,null,null,null,null,null,null,null,null,null,null,null,null,null,null,null,null,null,null,null,null,null,null,2,"Heat Pump (Air Cooled)","Package (1 Phase)",1,0,65000,10.87,14,null,8,8,null,null,null,null,null,null,null,12,16,null,8.1999999999999993,8.1999999999999993,450]
[null,null,null,null,null,null,null,null,null,null,null,null,null,null,null,null,null,null,null,null,null,null,null,null,null,null,null,null,null,null,null,null,null,null,null,null,null,null,null,null,null,null,null,null,null,null,null,null,null,null,null,null,null,null,null,null,null,3,"Heat Pump (Air Cooled)","Split (3 Phase)",3,0,65000,9.23,13,null,7.7,7.7,null,null,null,null,null,null,null,12.5,15,null,8.5,8.5,150,13,16,null,9,9,450]
[null,null,null,null,null,null,null,null,null,null,null,null,null,null,null,null,null,null,null,null,null,null,null,null,null,null,null,null,null,null,null,null,null,null,null,null,null,null,null,null,null,null,null,null,null,null,null,null,null,null,null,null,null,null,null,null,null,4,"Heat Pump (Air Cooled)","Package (3 Phase)",3,0,65000,9.23,13,null,7.7,7.7,null,null,null,null,null,null,null,12,15,null,8.1999999999999993,8.1999999999999993,150,12,16,null,8.1999999999999993,8.1999999999999993,450]
[null,null,null,null,null,null,null,null,null,null,null,null,null,null,null,null,null,null,null,null,null,null,null,null,null,null,null,null,null,null,null,null,null,null,null,null,null,null,null,null,null,null,null,null,null,null,null,null,null,null,null,null,null,null,null,null,null,5,"Heat Pump (Air Cooled)","Split (3 Phase) Package (3 Phase)",3,65000,135000,11,10.199999999999999,{"$f":"BL319+0.2","v":11.2},3.3,2.25,null,null,null,null,null,null,null,11.6,null,13.4,3.4,2.4,150]
[null,null,null,null,null,null,null,null,null,null,null,null,null,null,null,null,null,null,null,null,null,null,null,null,null,null,null,null,null,null,null,null,null,null,null,null,null,null,null,null,null,null,null,null,null,null,null,null,null,null,null,null,null,null,null,null,null,6,"Heat Pump (Air Cooled)","Split (3 Phase) Package (3 Phase)",3,135000,240000,10.6,9.5,10.7,3.2,2.0499999999999998,null,null,null,null,null,null,null,10.7,null,12.6,3.3,2.1,150]
[null,null,null,null,null,null,null,null,null,null,null,null,null,null,null,null,null,null,null,null,null,null,null,null,null,null,null,null,null,null,null,null,null,null,null,null,null,null,null,null,null,null,null,null,null,null,null,null,null,null,null,null,null,null,null,null,null,7,"Heat Pump (Air Cooled)","Split (3 Phase) Package (3 Phase)",3,240000,10000000,9.5,9.1999999999999993,9.6,3.2,2.0499999999999998,null,null,null,null,null,null,null,10.1,null,11.6,3.3,2.1,150]
[null,null,null,null,null,null,null,null,null,null,null,null,null,null,null,null,null,null,null,null,null,null,null,null,null,null,null,null,null,null,null,null,null,null,null,null,null,null,null,null,null,null,null,null,null,null,null,null,null,null,null,null,null,null,null,null,null,8,"Heat Pump (Water Cooled)",null,null,0,17000,12.2,null,{"$f":"BL322*1.15","v":14.029999999999998},4.3,4.3,null,null,null,null,null,null,null,14,null,null,4.5999999999999996,4.5999999999999996,100]
[null,null,null,null,null,null,null,null,null,null,null,null,null,null,null,null,null,null,null,null,null,null,null,null,null,null,null,null,null,null,null,null,null,null,null,null,null,null,null,null,null,null,null,null,null,null,null,null,null,null,null,null,null,null,null,null,null,9,"Heat Pump (Water Cooled)",null,null,17000,65000,13,null,{"$f":"BL323*1.15","v":14.95},4.3,4.3,null,null,null,null,null,null,null,14,null,null,4.5999999999999996,4.5999999999999996,100]
[null,null,null,null,null,null,null,null,null,null,null,null,null,null,null,null,null,null,null,null,null,null,null,null,null,null,null,null,null,null,null,null,null,null,null,null,null,null,null,null,null,null,null,null,null,null,null,null,null,null,null,null,null,null,null,null,null,10,"Heat Pump (Water Cooled)",null,null,65000,135000,13,null,{"$f":"BL324*1.15","v":14.95},4.3,4.3,null,null,null,null,null,null,null,14,null,null,4.5999999999999996,4.5999999999999996,100]
[null,null,null,null,null,null,null,null,null,null,null,null,null,null,null,null,null,null,null,null,null,null,null,null,null,null,null,null,null,null,null,null,null,null,null,null,null,null,null,null,null,null,null,null,null,null,null,null,null,null,null,null,null,null,null,null,null,11,"Unitary AC (Air Cooled)","Split (1 Phase)",1,0,45000,10.87,13,null,null,null,null,null,null,null,null,null,null,13,16,null,null,null,375,null,null,null,null,null,400]
[null,null,null,null,null,null,null,null,null,null,null,null,null,null,null,null,null,null,null,null,null,null,null,null,null,null,null,null,null,null,null,null,null,null,null,null,null,null,null,null,null,null,null,null,null,null,null,null,null,null,null,null,null,null,null,null,null,12,"Unitary AC (Air Cooled)","Split (1 Phase)",1,45000,65000,10.87,13,null,null,null,null,null,null,null,null,null,null,13,16,null,null,null,375,null,null,null,null,null,400]
[null,null,null,null,null,null,null,null,null,null,null,null,null,null,null,null,null,null,null,null,null,null,null,null,null,null,null,null,null,null,null,null,null,null,null,null,null,null,null,null,null,null,null,null,null,null,null,null,null,null,null,null,null,null,null,null,null,13,"Unitary AC (Air Cooled)","Package (1 Phase)",1,0,65000,11,14,null,null,null,null,null,null,null,null,null,null,12,16,null,null,null,375,null,null,null,null,null,400]
[null,null,null,null,null,null,null,null,null,null,null,null,null,null,null,null,null,null,null,null,null,null,null,null,null,null,null,null,null,null,null,null,null,null,null,null,null,null,null,null,null,null,null,null,null,null,null,null,null,null,null,null,null,null,null,null,null,14,"Unitary AC (Air Cooled)","Split (3 Phase)",3,0,65000,9.23,13,null,null,null,null,null,null,null,null,null,null,12.5,15,null,null,null,175,13,16,null,null,null,375]
[null,null,null,null,null,null,null,null,null,null,null,null,null,null,null,null,null,null,null,null,null,null,null,null,null,null,null,null,null,null,null,null,null,null,null,null,null,null,null,null,null,null,null,null,null,null,null,null,null,null,null,null,null,null,null,null,null,15,"Unitary AC (Air Cooled)","Package (3 Phase)",3,0,65000,9.23,13,null,null,null,null,null,null,null,null,null,null,12,15,null,null,null,175,12,16,null,null,null,375]
[null,null,null,null,null,null,null,null,null,null,null,null,null,null,null,null,null,null,null,null,null,null,null,null,null,null,null,null,null,null,null,null,null,null,null,null,null,null,null,null,null,null,null,null,null,null,null,null,null,null,null,null,null,null,null,null,null,16,"Unitary AC (Air Cooled)","Split (3 Phase) Package (3 Phase)",3,65000,135000,11.2,9.8000000000000007,{"$f":"BL330+0.2","v":11.399999999999999},null,null,null,null,null,null,null,null,null,12,null,13.8,null,null,150,12,null,14.6,null,null,325]
[null,null,null,null,null,null,null,null,null,null,null,null,null,null,null,null,null,null,null,null,null,null,null,null,null,null,null,null,null,null,null,null,null,null,null,null,null,null,null,null,null,null,null,null,null,null,null,null,null,null,null,null,null,null,null,null,null,17,"Unitary AC (Air Cooled)","Split (3 Phase) Package (3 Phase)",3,135000,240000,11,9.6999999999999993,{"$f":"BL331+0.2","v":11.2},null,null,null,null,null,null,null,null,null,12,null,13,null,null,125,12,null,14,null,null,225]
[null,null,null,null,null,null,null,null,null,null,null,null,null,null,null,null,null,null,null,null,null,null,null,null,null,null,null,null,null,null,null,null,null,null,null,null,null,null,null,null,null,null,null,null,null,null,null,null,null,null,null,null,null,null,null,null,null,18,"Unitary AC (Air Cooled)","Split (3 Phase) Package (3 Phase)",3,240000,760000,10,9.6999999999999993,10.1,null,null,null,null,null,null,null,null,null,10.3,null,12.1,null,null,150,10.6,null,13,null,null,200]
[null,null,null,null,null,null,null,null,null,null,null,null,null,null,null,null,null,null,null,null,null,null,null,null,null,null,null,null,null,null,null,null,null,null,null,null,null,null,null,null,null,null,null,null,null,null,null,null,null,null,null,null,null,null,null,null,null,19,"Unitary AC (Air Cooled)","Split (3 Phase) Package (3 Phase)",3,760000,10000000,9.6999999999999993,9.4,9.8000000000000007,null,null,null,null,null,null,null,null,null,9.6999999999999993,null,11.4,null,null,75,10.199999999999999,null,12.1,null,null,150]
[null,null,null,null,null,null,null,null,null,null,null,null,null,null,null,null,null,null,null,null,null,null,null,null,null,null,null,null,null,null,null,null,null,null,null,null,null,null,null,null,null,null,null,null,null,null,null,null,null,null,null,null,null,null,null,null,null,20,"Ground-Source Heat Pump (Water-to-Air)","Closed Loop",null,0,10000000,13.4,null,{"$f":"BL334*1.15","v":15.409999999999998},3.1,3.1,null,null,null,null,null,null,null,17.100000000000001,null,null,3.6,3.6,150]
[null,null,null,null,null,null,null,null,null,null,null,null,null,null,null,null,null,null,null,null,null,null,null,null,null,null,null,null,null,null,null,null,null,null,null,null,null,null,null,null,null,null,null,null,null,null,null,null,null,null,null,null,null,null,null,null,null,21,"Ground-Source Heat Pump (Water-to-Air)","Open Loop",null,0,10000000,13.4,null,{"$f":"BL335*1.15","v":15.409999999999998},3.1,3.1,null,null,null,null,null,null,null,21.1,null,null,4.0999999999999996,4.0999999999999996,150]
[null,null,null,null,null,null,null,null,null,null,null,null,null,null,null,null,null,null,null,null,null,null,null,null,null,null,null,null,null,null,null,null,null,null,null,null,null,null,null,null,null,null,null,null,null,null,null,null,null,null,null,null,null,null,null,null,null,22,"Ground-Source Heat Pump (Water-to-Water)","Closed Loop",null,0,10000000,13.4,null,{"$f":"BL336*1.15","v":15.409999999999998},3.1,3.1,null,null,null,null,null,null,null,16.100000000000001,null,null,3.1,3.1,150]
[null,null,null,null,null,null,null,null,null,null,null,null,null,null,null,null,null,null,null,null,null,null,null,null,null,null,null,null,null,null,null,null,null,null,null,null,null,null,null,null,null,null,null,null,null,null,null,null,null,null,null,null,null,null,null,null,null,23,"Ground-Source Heat Pump (Water-to-Water)","Open Loop",null,0,10000000,13.4,null,{"$f":"BL337*1.15","v":15.409999999999998},3.1,3.1,null,null,null,null,null,null,null,20.100000000000001,null,null,3.5,3.5,150]
[null,null,null,null,null,null,null,null,null,null,null,null,null,null,null,null,null,null,null,null,null,null,null,null,null,null,null,null,null,null,null,null,null,null,null,null,null,null,null,null,null,null,null,null,null,null,null,null,null,null,null,null,null,null,null,null,null,24,"Ground-Source Heat Pump (DGX)",null,null,0,10000000,13.4,null,{"$f":"BL338*1.15","v":15.409999999999998},3.1,3.1,null,null,null,null,null,null,null,16,null,null,3.6,3.6,150]
[null,null,null,null,null,null,null,null,null,null,null,null,null,null,null,null,null,null,null,null,null,null,null,null,null,null,null,null,null,null,null,null,null,null,null,null,null,null,null,null,null,null,null,null,null,null,null,null,null,null,null,null,null,null,null,null,null,25,"Unitary AC (Water Cooled)","Split (1 Phase)",1,0,65000,12.1,null,12.3,null,null,null,null,null,null,null,null,null,14,null,null,null,null,100]
[null,null,null,null,null,null,null,null,null,null,null,null,null,null,null,null,null,null,null,null,null,null,null,null,null,null,null,null,null,null,null,null,null,null,null,null,null,null,null,null,null,null,null,null,null,null,null,null,null,null,null,null,null,null,null,null,null,26,"Unitary AC (Water Cooled)","Package (1 Phase)",1,0,65000,12.1,null,12.3,null,null,null,null,null,null,null,null,null,14,null,null,null,null,100]
[null,null,null,null,null,null,null,null,null,null,null,null,null,null,null,null,null,null,null,null,null,null,null,null,null,null,null,null,null,null,null,null,null,null,null,null,null,null,null,null,null,null,null,null,null,null,null,null,null,null,null,null,null,null,null,null,null,27,"Unitary AC (Water Cooled)","Split (3 Phase)",3,0,65000,12.1,null,12.3,null,null,null,null,null,null,null,null,null,14,null,null,null,null,100]
[null,null,null,null,null,null,null,null,null,null,null,null,null,null,null,null,null,null,null,null,null,null,null,null,null,null,null,null,null,null,null,null,null,null,null,null,null,null,null,null,null,null,null,null,null,null,null,null,null,null,null,null,null,null,null,null,null,28,"Unitary AC (Water Cooled)","Package (3 Phase)",3,0,65000,12.1,null,12.3,null,null,null,null,null,null,null,null,null,14,null,null,null,null,100]
[null,null,null,null,null,null,null,null,null,null,null,null,null,null,null,null,null,null,null,null,null,null,null,null,null,null,null,null,null,null,null,null,null,null,null,null,null,null,null,null,null,null,null,null,null,null,null,null,null,null,null,null,null,null,null,null,null,29,"Unitary AC (Water Cooled)","Split (3 Phase) Package (3 Phase)",3,65000,135000,12.1,null,12.3,null,null,null,null,null,null,null,null,null,13.8,null,15.1,null,null,100]
[null,null,null,null,null,null,null,null,null,null,null,null,null,null,null,null,null,null,null,null,null,null,null,null,null,null,null,null,null,null,null,null,null,null,null,null,null,null,null,null,null,null,null,null,null,null,null,null,null,null,null,null,null,null,null,null,null,30,"Unitary AC (Water Cooled)","Split (3 Phase) Package (3 Phase)",3,135000,240000,12.5,null,12.7,null,null,null,null,null,null,null,null,null,13.8,null,14.6,null,null,100]
[null,null,null,null,null,null,null,null,null,null,null,null,null,null,null,null,null,null,null,null,null,null,null,null,null,null,null,null,null,null,null,null,null,null,null,null,null,null,null,null,null,null,null,null,null,null,null,null,null,null,null,null,null,null,null,null,null,31,"Unitary AC (Water Cooled)","Split (3 Phase) Package (3 Phase)",3,240000,760000,12.4,null,12.6,null,null,null,null,null,null,null,null,null,13.8,null,14.6,null,null,100]
[null,null,null,null,null,null,null,null,null,null,null,null,null,null,null,null,null,null,null,null,null,null,null,null,null,null,null,null,null,null,null,null,null,null,null,null,null,null,null,null,null,null,null,null,null,null,null,null,null,null,null,null,null,null,null,null,null,32,"Unitary AC (Water Cooled)","Split (3 Phase) Package (3 Phase)",3,760000,10000000,12,null,12.4,null,null,null,null,null,null,null,null,null,13.8,null,14.6,null,null,100]
[null,null,null,null,null,null,null,null,null,null,null,null,null,null,null,null,null,null,null,null,null,null,null,null,null,null,null,null,null,null,null,null,null,null,null,null,null,null,null,null,null,null,null,null,null,null,null,null,null,null,null,null,null,null,null,null,null,33,"Unitary AC (Evaporatively Cooled)","Split (1 Phase)",1,0,65000,12.1,null,12.3,null,null,null,null,null,null,null,null,null,14,null,null,null,null,100]
[null,null,null,null,null,null,null,null,null,null,null,null,null,null,null,null,null,null,null,null,null,null,null,null,null,null,null,null,null,null,null,null,null,null,null,null,null,null,null,null,null,null,null,null,null,null,null,null,null,null,null,null,null,null,null,null,null,34,"Unitary AC (Evaporatively Cooled)","Package (1 Phase)",1,0,65000,12.1,null,12.3,null,null,null,null,null,null,null,null,null,14,null,null,null,null,100]
[null,null,null,null,null,null,null,null,null,null,null,null,null,null,null,null,null,null,null,null,null,null,null,null,null,null,null,null,null,null,null,null,null,null,null,null,null,null,null,null,null,null,null,null,null,null,null,null,null,null,null,null,null,null,null,null,null,35,"Unitary AC (Evaporatively Cooled)","Split (3 Phase)",3,0,65000,12.1,null,12.3,null,null,null,null,null,null,null,null,null,14,null,null,null,null,100]
[null,null,null,null,null,null,null,null,null,null,null,null,null,null,null,null,null,null,null,null,null,null,null,null,null,null,null,null,null,null,null,null,null,null,null,null,null,null,null,null,null,null,null,null,null,null,null,null,null,null,null,null,null,null,null,null,null,36,"Unitary AC (Evaporatively Cooled)","Package (3 Phase)",3,0,65000,12.1,null,12.3,null,null,null,null,null,null,null,null,null,14,null,null,null,null,100]
[null,null,null,null,null,null,null,null,null,null,null,null,null,null,null,null,null,null,null,null,null,null,null,null,null,null,null,null,null,null,null,null,null,null,null,null,null,null,null,null,null,null,null,null,null,null,null,null,null,null,null,null,null,null,null,null,null,37,"Unitary AC (Evaporatively Cooled)","Split (3 Phase) Package (3 Phase)",3,65000,135000,12.1,null,12.3,null,null,null,null,null,null,null,null,null,13.8,null,15.1,null,null,100]
[null,null,null,null,null,null,null,null,null,null,null,null,null,null,null,null,null,null,null,null,null,null,null,null,null,null,null,null,null,null,null,null,null,null,null,null,null,null,null,null,null,null,null,null,null,null,null,null,null,null,null,null,null,null,null,null,null,38,"Unitary AC (Evaporatively Cooled)","Split (3 Phase) Package (3 Phase)",3,135000,240000,12,null,12.2,null,null,null,null,null,null,null,null,null,13.3,null,14.1,null,null,100]
[null,null,null,null,null,null,null,null,null,null,null,null,null,null,null,null,null,null,null,null,null,null,null,null,null,null,null,null,null,null,null,null,null,null,null,null,null,null,null,null,null,null,null,null,null,null,null,null,null,null,null,null,null,null,null,null,null,39,"Unitary AC (Evaporatively Cooled)","Split (3 Phase) Package (3 Phase)",3,240000,760000,11.9,null,12.1,null,null,null,null,null,null,null,null,null,13.3,null,14.1,null,null,100]
[null,null,null,null,null,null,null,null,null,null,null,null,null,null,null,null,null,null,null,null,null,null,null,null,null,null,null,null,null,null,null,null,null,null,null,null,null,null,null,null,null,null,null,null,null,null,null,null,null,null,null,null,null,null,null,null,null,40,"Unitary AC (Evaporatively Cooled)","Split (3 Phase) Package (3 Phase)",3,760000,10000000,11.7,null,11.9,null,null,null,null,null,null,null,null,null,13.3,null,14.1,null,null,100]
[null,null,null,null,null,null,null,null,null,null,null,null,null,null,null,null,null,null,null,null,null,null,null,null,null,null,null,null,null,null,null,null,null,null,null,null,null,null,null,null,null,null,null,null,null,null,null,null,null,null,null,null,null,null,null,null,null,41,"VRF HP (Air Cooled)","Multi-split System",null,0,65000,10.87,13,null,7.7,7.7,null,12.5,15,null,8.5,8.5,400]
[null,null,null,null,null,null,null,null,null,null,null,null,null,null,null,null,null,null,null,null,null,null,null,null,null,null,null,null,null,null,null,null,null,null,null,null,null,null,null,null,null,null,null,null,null,null,null,null,null,null,null,null,null,null,null,null,null,42,"VRF HP (Air Cooled)","Multi-split w/Heat Recovery",null,0,65000,10.87,13,null,7.7,7.7,null,12.5,15,null,8.5,8.5,400]
[null,null,null,null,null,null,null,null,null,null,null,null,null,null,null,null,null,null,null,null,null,null,null,null,null,null,null,null,null,null,null,null,null,null,null,null,null,null,null,null,null,null,null,null,null,null,null,null,null,null,null,null,null,null,null,null,null,43,"VRF HP (Air Cooled)","Multi-split System",null,65000,135000,11,null,12.9,3.3,2.25,null,11.3,null,14.2,3.4,2.4,400]
[null,null,null,null,null,null,null,null,null,null,null,null,null,null,null,null,null,null,null,null,null,null,null,null,null,null,null,null,null,null,null,null,null,null,null,null,null,null,null,null,null,null,null,null,null,null,null,null,null,null,null,null,null,null,null,null,null,44,"VRF HP (Air Cooled)","Multi-split w/Heat Recovery",null,65000,135000,10.8,null,12.7,3.3,2.25,null,11.1,null,14,3.4,2.4,400]
[null,null,null,null,null,null,null,null,null,null,null,null,null,null,null,null,null,null,null,null,null,null,null,null,null,null,null,null,null,null,null,null,null,null,null,null,null,null,null,null,null,null,null,null,null,null,null,null,null,null,null,null,null,null,null,null,null,45,"VRF HP (Air Cooled)","Multi-split System",null,135000,240000,10.6,null,12.3,3.2,2.0499999999999998,null,10.9,null,13.7,3.2,2.1,400]
[null,null,null,null,null,null,null,null,null,null,null,null,null,null,null,null,null,null,null,null,null,null,null,null,null,null,null,null,null,null,null,null,null,null,null,null,null,null,null,null,null,null,null,null,null,null,null,null,null,null,null,null,null,null,null,null,null,46,"VRF HP (Air Cooled)","Multi-split w/Heat Recovery",null,135000,240000,10.4,null,12.1,3.2,2.0499999999999998,null,10.7,null,13.5,3.2,2.1,400]
[null,null,null,null,null,null,null,null,null,null,null,null,null,null,null,null,null,null,null,null,null,null,null,null,null,null,null,null,null,null,null,null,null,null,null,null,null,null,null,null,null,null,null,null,null,null,null,null,null,null,null,null,null,null,null,null,null,47,"VRF HP (Air Cooled)","Multi-split System",null,240000,10000000,9.5,null,11,3.2,2.0499999999999998,null,10.3,null,12.5,3.2,2.1,400]
[null,null,null,null,null,null,null,null,null,null,null,null,null,null,null,null,null,null,null,null,null,null,null,null,null,null,null,null,null,null,null,null,null,null,null,null,null,null,null,null,null,null,null,null,null,null,null,null,null,null,null,null,null,null,null,null,null,48,"VRF HP (Air Cooled)","Multi-split w/Heat Recovery",null,240000,10000000,9.3000000000000007,null,10.8,3.2,2.0499999999999998,null,10.1,null,12.3,3.2,2.1,400]
[null,null,null,null,null,null,null,null,null,null,null,null,null,null,null,null,null,null,null,null,null,null,null,null,null,null,null,null,null,null,null,null,null,null,null,null,null,null,null,null,null,null,null,null,null,null,null,null,null,null,null,null,null,null,null,null,null,49,"VRF HP (Water Source)","Multi-split System",null,0,135000,12,null,{"$f":"BL363*1.15","v":13.799999999999999},4.2,4.2,null,14,null,null,4.5999999999999996,4.5999999999999996,400]
[null,null,null,null,null,null,null,null,null,null,null,null,null,null,null,null,null,null,null,null,null,null,null,null,null,null,null,null,null,null,null,null,null,null,null,null,null,null,null,null,null,null,null,null,null,null,null,null,null,null,null,null,null,null,null,null,null,50,"VRF HP (Water Source)","Multi-split w/Heat Recovery",null,0,135000,11.8,null,{"$f":"BL364*1.15","v":13.57},4.2,4.2,null,13.8,null,null,4.5999999999999996,4.5999999999999996,400]
[null,null,null,null,null,null,null,null,null,null,null,null,null,null,null,null,null,null,null,null,null,null,null,null,null,null,null,null,null,null,null,null,null,null,null,null,null,null,null,null,null,null,null,null,null,null,null,null,null,null,null,null,null,null,null,null,null,51]
[null,null,null,null,null,null,null,null,null,null,null,null,null,null,null,null,null,null,null,null,null,null,null,null,null,null,null,null,null,null,null,null,null,null,null,null,null,null,null,null,null,null,null,null,null,null,null,null,null,null,null,null,null,null,null,null,null,52]
[null,null,null,null,null,null,null,null,null,null,null,null,null,null,null,null,null,null,null,null,null,null,null,null,null,null,null,null,null,null,null,null,null,null,null,null,null,null,null,null,null,null,null,null,null,null,null,null,null,null,null,null,null,null,null,null,null,53]
[null,null,null,null,null,null,null,null,null,null,null,null,null,null,null,null,null,null,null,null,null,null,null,null,null,null,null,null,null,null,null,null,null,null,null,null,null,null,null,null,null,null,null,null,null,null,null,null,null,null,null,null,null,null,null,null,null,54]
[null,null,null,null,null,null,null,null,null,null,null,null,null,null,null,null,null,null,null,null,null,null,null,null,null,null,null,null,null,null,null,null,null,null,null,null,null,null,null,null,null,null,null,null,null,null,null,null,null,null,null,null,null,null,null,null,null,55]
[null,null,null,null,null,null,null,null,null,null,null,null,null,null,null,null,null,null,null,null,null,null,null,null,null,null,null,null,null,null,null,null,null,null,null,null,null,null,null,null,null,null,null,null,null,null,null,null,null,null,null,null,null,null,null,null,null,56]
[null,null,null,null,null,null,null,null,null,null,null,null,null,null,null,null,null,null,null,null,null,null,null,null,null,null,null,null,null,null,null,null,null,null,null,null,null,null,null,null,null,null,null,null,null,null,null,null,null,null,null,null,null,null,null,null,null,57]

{"sheet":"Program Requirements","index":2,"n_rows":151,"n_cols":28,"rows_kept":151,"cut":false,"hidden":true,"merged":[[105,6,106,6],[107,6,108,6],[109,3,110,5],[109,6,110,6],[117,6,120,6],[117,7,118,7],[0,1,0,10],[0,11,0,16],[150,3,150,5],[84,3,84,7],[134,3,135,5],[134,6,135,6],[134,7,135,7],[143,3,143,10],[113,7,114,7],[111,7,112,7],[85,3,86,5],[111,6,112,6],[113,6,116,6],[111,3,124,5],[85,8,86,8],[136,3,137,5],[136,6,137,6],[138,3,139,5],[138,6,139,6],[140,3,140,10],[141,3,141,10],[142,3,142,10],[125,3,129,5],[85,7,86,7],[136,8,136,10],[137,8,137,10],[138,8,138,10],[139,8,139,10],[87,3,100,5],[87,6,90,6],[87,7,88,7],[89,7,90,7],[91,6,94,6],[91,7,92,7],[93,7,94,7],[95,6,96,6],[95,7,96,7],[97,6,98,6],[97,7,98,7],[99,6,100,6],[99,7,100,7],[121,7,122,7],[121,6,124,6],[130,3,131,5],[130,6,131,6],[101,3,108,5],[101,6,102,6],[103,6,104,6],[84,8,84,10],[151,3,151,6],[149,7,149,9],[150,7,150,9],[151,7,151,9],[145,3,145,10],[146,3,146,10],[147,3,147,5],[148,3,148,5],[149,3,149,5],[144,3,144,10],[132,6,133,6],[128,6,129,6],[126,6,127,6],[115,7,116,7],[119,7,120,7],[123,7,124,7],[85,6,86,6],[85,9,86,9],[85,10,86,10],[147,7,147,9],[148,7,148,9],[132,3,133,5],[134,8,135,10],[80,3,80,10],[81,3,81,10],[40,8,40,10],[41,3,41,5],[43,3,58,5],[43,6,46,6],[47,6,50,6],[71,3,71,10],[72,3,72,10],[73,3,73,10],[74,3,74,10],[75,3,75,10],[76,3,76,10],[77,3,77,10],[78,3,78,10],[79,3,79,10],[67,6,68,6],[69,6,70,6],[65,7,70,7],[65,3,70,5],[59,3,64,5],[47,7,48,7],[49,7,50,7],[51,6,52,6],[51,7,52,7],[53,6,54,6],[53,7,54,7],[61,6,62,6],[63,6,64,6],[65,6,66,6],[55,6,56,6],[57,6,58,6],[55,7,56,7],[57,7,58,7],[59,6,60,6],[59,7,64,7],[4,9,6,9],[4,10,6,11],[4,12,6,13],[4,14,6,15],[4,7,6,7],[4,8,6,8],[3,2,3,8],[10,3,10,5],[10,15,10,16],[8,14,8,15],[9,3,9,5],[9,14,9,15],[4,2,6,5],[4,6,6,6],[40,3,40,7],[43,7,44,7],[45,7,46,7],[7,3,7,5],[7,14,7,15],[8,3,8,5],[11,3,11,5],[11,15,11,16],[12,15,12,16],[13,3,13,5],[13,15,13,16],[36,15,36,16],[16,6,18,6],[16,7,18,7],[12,3,12,5],[16,12,18,13],[20,14,20,15],[21,3,21,5],[21,14,21,15],[22,3,22,5],[22,15,22,16],[23,3,23,5],[32,15,32,16],[15,2,15,5],[24,3,24,5],[16,2,18,5],[16,9,18,9],[16,10,18,11],[25,15,25,16],[16,14,18,15],[25,3,25,5],[23,15,23,16],[19,3,19,5],[19,14,19,15],[20,3,20,5],[37,3,37,5],[37,15,37,16],[1,2,1,15],[33,3,33,5],[33,15,33,16],[34,3,34,5],[34,15,34,16],[35,3,35,5],[35,15,35,16],[28,13,30,14],[28,15,30,16],[31,3,31,5],[31,15,31,16],[32,3,32,5],[24,15,24,16],[36,3,36,5],[27,2,27,5],[28,2,30,5],[28,6,30,6],[28,7,30,7],[28,8,30,8],[28,10,30,10],[28,11,30,12],[16,8,18,8]]}
[null,{"$f":"IF(InstallState<>\"\",IF(InstallState=\"UT\",\"Utah\",IF(InstallState=\"WA\",\"Washington\",IF(InstallState=\"CA\",\"California\",IF(InstallState=\"WY\",\"Wyoming\",IF(InstallState=\"ID\",\"Idaho\",\"\"))))) & \" Program Incentive Offerings and \nEfficiency Requirements for HVAC Equipment\",\"You Must Select an Install State before viewing this page.\")","v":"Wyoming Program Incentive Offerings and \nEfficiency Requirements for HVAC Equipment"},null,null,null,null,null,null,null,null,null,{"$f":"IF(AND('HVAC-Tool'!D28=\"\",'HVAC-Tool'!O28=\"\"),\"You can see requirements specific to your equipment by selecting the HVAC Type and entering the cooling capacity under the Equipment Information section in the HVAC Tool for at least one equipment line.\",\"\")","v":"You can see requirements specific to your equipment by selecting the HVAC Type and entering the cooling capacity under the Equipment Information section in the HVAC Tool for at least one equipment line."}]
[null,null,{"$f":"\"Project-Specific HVAC Incentive Tiers and Minimum Efficiency Requirements\"","v":"Project-Specific HVAC Incentive Tiers and Minimum Efficiency Requirements"}]
[]
[null,null,null,null,null,null,null,null,null,null,null,null,null,null,null,{"$f":"IF(State=\"WY\",\"$100/Ton Incentive Tier\",\"$75/Ton Incentive Tier\")","v":"$100/Ton Incentive Tier"}]
[null,null,"HVAC Type\n(selected)",null,null,null,"System Type\n(selected)","Cooling Capacity (BTU/Hr)\n(selected)","Cooling Capacity\n(Tons)","Minimum\nEER","Minimum\nSEER /  IEER",null,"Minimum \n(HSPF / COP)",null,"Wet/Dry Bulb\nTemperature (F°)"]
[]
[]
[null,null,1,{"$f":"IF('HVAC-Tool'!$D$28=\"\",\"\",'HVAC-Tool'!$D$28)","v":""},null,null,{"$f":"IF('HVAC-Tool'!$G28=\"\",IF(OR('HVAC-Tool'!$D28=\"Heat Pump (Water Cooled)\",'HVAC-Tool'!$D28=\"Ground-Source Heat Pump\",'HVAC-Tool'!$D28=\"Groundwater Source Heat Pump\"),\"\",\"selection needed\"),'HVAC-Tool'!$G28)","v":"selection needed"},{"$f":"IF('HVAC-Tool'!$O$28=\"\",\"\",'HVAC-Tool'!$O$28)","v":""},{"$f":"IF(H8=\"\",\"\",H8/12000)","v":""},{"$f":"IF(I8=\"\",\"\",IF(VLOOKUP(HVAC!$Y17,HVAC!$BF$10:$CI$63,25)=0,\" - \",VLOOKUP(HVAC!$Y$17,HVAC!$BF$10:$CI$63,25)))","v":""},{"$f":"IF(I8=\"\",\"\",IF(VLOOKUP(HVAC!$Y17,HVAC!$BF$10:$CI$63,IF(H20<65000,26,27))=0,\" - \",VLOOKUP(HVAC!$Y17,HVAC!$BF$10:$CI$63,IF(H20<65000,26,27))))","v":""},{"$f":"IF(K8=\"\",\"\",IF(K8=\" - \",\" - \",IF(H8<65000,\"SEER\",\"IEER\")))","v":""},{"$f":"IF(D8=\"\",\"\",IF(OR(D8=\"Unitary AC (Air Cooled)\",D8=\"Unitary AC (Water Cooled)\",D8=\"Unitary AC (Evaporatively Cooled)\"),\"n/a\",IF(VLOOKUP(HVAC!$Y17,HVAC!$BF$10:$CI$63,28)=0,\" - \",VLOOKUP(HVAC!$Y17,HVAC!$BF$10:$CI$63,28))))","v":""},{"$f":"IF(M8=\"\",\"\",IF(M8=\"n/a\",\"n/a\",IF(M8=\" - \",\" - \",IF(H8<65000,\"HSPF\",\"COP\"))))","v":""},{"$f":"IF(M8=\"\",\"\",IF(M8=\"n/a\",\"n/a\",IF(M8=\" - \",\" - \",\"47/43\")))","v":""}]
[null,null,2,{"$f":"IF('HVAC-Tool'!$D$29=\"\",\"\",'HVAC-Tool'!$D$29)","v":""},null,null,{"$f":"IF('HVAC-Tool'!$G29=\"\",IF(OR('HVAC-Tool'!$D29=\"Heat Pump (Water Cooled)\",'HVAC-Tool'!$D29=\"Ground-Source Heat Pump\",'HVAC-Tool'!$D29=\"Groundwater Source Heat Pump\"),\"\",\"selection needed\"),'HVAC-Tool'!$G29)","v":"selection needed"},{"$f":"IF('HVAC-Tool'!$O$29=\"\",\"\",'HVAC-Tool'!$O$29)","v":""},"",{"$f":"IF(I9=\"\",\"\",IF(VLOOKUP(HVAC!$Y18,HVAC!$BF$10:$CI$63,25)=0,\" - \",VLOOKUP(HVAC!$Y$17,HVAC!$BF$10:$CI$63,25)))","v":""},{"$f":"IF(I9=\"\",\"\",IF(VLOOKUP(HVAC!$Y18,HVAC!$BF$10:$CI$63,IF(H21<65000,26,27))=0,\" - \",VLOOKUP(HVAC!$Y18,HVAC!$BF$10:$CI$63,IF(H21<65000,26,27))))","v":""},{"$f":"IF(K9=\"\",\"\",IF(K9=\" - \",\" - \",IF(H9<65000,\"SEER\",\"IEER\")))","v":""},{"$f":"IF(D9=\"\",\"\",IF(OR(D9=\"Unitary AC (Air Cooled)\",D9=\"Unitary AC (Water Cooled)\",D9=\"Unitary AC (Evaporatively Cooled)\"),\"n/a\",IF(VLOOKUP(HVAC!$Y18,HVAC!$BF$10:$CI$63,28)=0,\" - \",VLOOKUP(HVAC!$Y18,HVAC!$BF$10:$CI$63,28))))","v":""},{"$f":"IF(M9=\"\",\"\",IF(M9=\"n/a\",\"n/a\",IF(M9=\" - \",\" - \",IF(H9<65000,\"HSPF\",\"COP\"))))","v":""},{"$f":"IF(M9=\"\",\"\",IF(M9=\"n/a\",\"n/a\",IF(M9=\" - \",\" - \",\"47/43\")))","v":""}]
[null,null,3,{"$f":"IF('HVAC-Tool'!$D$30=\"\",\"\",'HVAC-Tool'!$D$30)","v":""},null,null,{"$f":"IF('HVAC-Tool'!$G30=\"\",IF(OR('HVAC-Tool'!$D30=\"Heat Pump (Water Cooled)\",'HVAC-Tool'!$D30=\"Ground-Source Heat Pump\",'HVAC-Tool'!$D30=\"Groundwater Source Heat Pump\"),\"\",\"selection needed\"),'HVAC-Tool'!$G30)","v":"selection needed"},{"$f":"IF('HVAC-Tool'!$O$30=\"\",\"\",'HVAC-Tool'!$O$30)","v":""},"",{"$f":"IF(I10=\"\",\"\",IF(VLOOKUP(HVAC!$Y19,HVAC!$BF$10:$CI$63,25)=0,\" - \",VLOOKUP(HVAC!$Y$17,HVAC!$BF$10:$CI$63,25)))","v":""},{"$f":"IF(I10=\"\",\"\",IF(VLOOKUP(HVAC!$Y19,HVAC!$BF$10:$CI$63,IF(H22<65000,26,27))=0,\" - \",VLOOKUP(HVAC!$Y19,HVAC!$BF$10:$CI$63,IF(H22<65000,26,27))))","v":""},{"$f":"IF(K10=\"\",\"\",IF(K10=\" - \",\" - \",IF(H10<65000,\"SEER\",\"IEER\")))","v":""},{"$f":"IF(D10=\"\",\"\",IF(OR(D10=\"Unitary AC (Air Cooled)\",D10=\"Unitary AC (Water Cooled)\",D10=\"Unitary AC (Evaporatively Cooled)\"),\"n/a\",IF(VLOOKUP(HVAC!$Y19,HVAC!$BF$10:$CI$63,28)=0,\" - \",VLOOKUP(HVAC!$Y19,HVAC!$BF$10:$CI$63,28))))","v":""},{"$f":"IF(M10=\"\",\"\",IF(M10=\"n/a\",\"n/a\",IF(M10=\" - \",\" - \",IF(H10<65000,\"HSPF\",\"COP\"))))","v":""},""]
[null,null,4,{"$f":"IF('HVAC-Tool'!$D$31=\"\",\"\",'HVAC-Tool'!$D$31)","v":""},null,null,{"$f":"IF('HVAC-Tool'!$G31=\"\",IF(OR('HVAC-Tool'!$D31=\"Heat Pump (Water Cooled)\",'HVAC-Tool'!$D31=\"Ground-Source Heat Pump\",'HVAC-Tool'!$D31=\"Groundwater Source Heat Pump\"),\"\",\"selection needed\"),'HVAC-Tool'!$G31)","v":"selection needed"},{"$f":"IF('HVAC-Tool'!$O$31=\"\",\"\",'HVAC-Tool'!$O$31)","v":""},"",null,{"$f":"IF(I11=\"\",\"\",IF(VLOOKUP(HVAC!$Y20,HVAC!$BF$10:$CI$63,25)=0,\" - \",VLOOKUP(HVAC!$Y$17,HVAC!$BF$10:$CI$63,25)))","v":""},{"$f":"IF(I11=\"\",\"\",IF(VLOOKUP(HVAC!$Y20,HVAC!$BF$10:$CI$63,IF(H23<65000,26,27))=0,\" - \",VLOOKUP(HVAC!$Y20,HVAC!$BF$10:$CI$63,IF(H23<65000,26,27))))","v":""},{"$f":"IF(L11=\"\",\"\",IF(L11=\" - \",\" - \",IF(H11<65000,\"SEER\",\"IEER\")))","v":""},{"$f":"IF(D11=\"\",\"\",IF(OR(D11=\"Unitary AC (Air Cooled)\",D11=\"Unitary AC (Water Cooled)\",D11=\"Unitary AC (Evaporatively Cooled)\"),\"n/a\",IF(VLOOKUP(HVAC!$Y20,HVAC!$BF$10:$CI$63,28)=0,\" - \",VLOOKUP(HVAC!$Y20,HVAC!$BF$10:$CI$63,28))))","v":""},{"$f":"IF(N11=\"\",\"\",IF(N11=\"n/a\",\"n/a\",IF(N11=\" - \",\" - \",IF(H11<65000,\"HSPF\",\"COP\"))))","v":""},""]
[null,null,5,{"$f":"IF('HVAC-Tool'!$D$32=\"\",\"\",'HVAC-Tool'!$D$32)","v":""},null,null,{"$f":"IF('HVAC-Tool'!$G32=\"\",IF(OR('HVAC-Tool'!$D32=\"Heat Pump (Water Cooled)\",'HVAC-Tool'!$D32=\"Ground-Source Heat Pump\",'HVAC-Tool'!$D32=\"Groundwater Source Heat Pump\"),\"\",\"selection needed\"),'HVAC-Tool'!$G32)","v":"selection needed"},{"$f":"IF('HVAC-Tool'!$O$32=\"\",\"\",'HVAC-Tool'!$O$32)","v":""},"",null,{"$f":"IF(I12=\"\",\"\",IF(VLOOKUP(HVAC!$Y21,HVAC!$BF$10:$CI$63,25)=0,\" - \",VLOOKUP(HVAC!$Y$17,HVAC!$BF$10:$CI$63,25)))","v":""},{"$f":"IF(I12=\"\",\"\",IF(VLOOKUP(HVAC!$Y21,HVAC!$BF$10:$CI$63,IF(H24<65000,26,27))=0,\" - \",VLOOKUP(HVAC!$Y21,HVAC!$BF$10:$CI$63,IF(H24<65000,26,27))))","v":""},{"$f":"IF(L12=\"\",\"\",IF(L12=\" - \",\" - \",IF(H12<65000,\"SEER\",\"IEER\")))","v":""},{"$f":"IF(D12=\"\",\"\",IF(OR(D12=\"Unitary AC (Air Cooled)\",D12=\"Unitary AC (Water Cooled)\",D12=\"Unitary AC (Evaporatively Cooled)\"),\"n/a\",IF(VLOOKUP(HVAC!$Y21,HVAC!$BF$10:$CI$63,28)=0,\" - \",VLOOKUP(HVAC!$Y21,HVAC!$BF$10:$CI$63,28))))","v":""},{"$f":"IF(N12=\"\",\"\",IF(N12=\"n/a\",\"n/a\",IF(N12=\" - \",\" - \",IF(H12<65000,\"HSPF\",\"COP\"))))","v":""},""]
[null,null,6,{"$f":"IF('HVAC-Tool'!$D$33=\"\",\"\",'HVAC-Tool'!$D$33)","v":""},null,null,{"$f":"IF('HVAC-Tool'!$G33=\"\",IF(OR('HVAC-Tool'!$D33=\"Heat Pump (Water Cooled)\",'HVAC-Tool'!$D33=\"Ground-Source Heat Pump\",'HVAC-Tool'!$D33=\"Groundwater Source Heat Pump\"),\"\",\"selection needed\"),'HVAC-Tool'!$G33)","v":"selection needed"},{"$f":"IF('HVAC-Tool'!$O$33=\"\",\"\",'HVAC-Tool'!$O$33)","v":""},"",null,{"$f":"IF(I13=\"\",\"\",IF(VLOOKUP(HVAC!$Y22,HVAC!$BF$10:$CI$63,25)=0,\" - \",VLOOKUP(HVAC!$Y$17,HVAC!$BF$10:$CI$63,25)))","v":""},{"$f":"IF(I13=\"\",\"\",IF(VLOOKUP(HVAC!$Y22,HVAC!$BF$10:$CI$63,IF(H25<65000,26,27))=0,\" - \",VLOOKUP(HVAC!$Y22,HVAC!$BF$10:$CI$63,IF(H25<65000,26,27))))","v":""},{"$f":"IF(L13=\"\",\"\",IF(L13=\" - \",\" - \",IF(H13<65000,\"SEER\",\"IEER\")))","v":""},{"$f":"IF(D13=\"\",\"\",IF(OR(D13=\"Unitary AC (Air Cooled)\",D13=\"Unitary AC (Water Cooled)\",D13=\"Unitary AC (Evaporatively Cooled)\"),\"n/a\",IF(VLOOKUP(HVAC!$Y22,HVAC!$BF$10:$CI$63,28)=0,\" - \",VLOOKUP(HVAC!$Y22,HVAC!$BF$10:$CI$63,28))))","v":""},{"$f":"IF(N13=\"\",\"\",IF(N13=\"n/a\",\"n/a\",IF(N13=\" - \",\" - \",IF(H13<65000,\"HSPF\",\"COP\"))))","v":""},""]
[null,null,7,{"$f":"IF('HVAC-Tool'!$D$34=\"\",\"\",'HVAC-Tool'!$D$34)","v":""},null,null,{"$f":"IF('HVAC-Tool'!$G34=\"\",IF(OR('HVAC-Tool'!$D34=\"Heat Pump (Water Cooled)\",'HVAC-Tool'!$D34=\"Ground-Source Heat Pump\",'HVAC-Tool'!$D34=\"Groundwater Source Heat Pump\"),\"\",\"selection needed\"),'HVAC-Tool'!$G34)","v":"selection needed"},{"$f":"IF('HVAC-Tool'!$O$34=\"\",\"\",'HVAC-Tool'!$O$34)","v":""},"",null,{"$f":"IF(I14=\"\",\"\",IF(VLOOKUP(HVAC!$Y23,HVAC!$BF$10:$CI$63,25)=0,\" - \",VLOOKUP(HVAC!$Y$17,HVAC!$BF$10:$CI$63,25)))","v":""},{"$f":"IF(I14=\"\",\"\",IF(VLOOKUP(HVAC!$Y23,HVAC!$BF$10:$CI$63,IF(H26<65000,26,27))=0,\" - \",VLOOKUP(HVAC!$Y23,HVAC!$BF$10:$CI$63,IF(H26<65000,26,27))))","v":""},{"$f":"IF(L14=\"\",\"\",IF(L14=\" - \",\" - \",IF(H14<65000,\"SEER\",\"IEER\")))","v":""},{"$f":"IF(D14=\"\",\"\",IF(OR(D14=\"Unitary AC (Air Cooled)\",D14=\"Unitary AC (Water Cooled)\",D14=\"Unitary AC (Evaporatively Cooled)\"),\"n/a\",IF(VLOOKUP(HVAC!$Y23,HVAC!$BF$10:$CI$63,28)=0,\" - \",VLOOKUP(HVAC!$Y23,HVAC!$BF$10:$CI$63,28))))","v":""},{"$f":"IF(N14=\"\",\"\",IF(N14=\"n/a\",\"n/a\",IF(N14=\" - \",\" - \",IF(H14<65000,\"HSPF\",\"COP\"))))","v":""},""]
[]
[null,null,null,null,null,null,null,null,null,null,null,null,null,null,null,null,{"$f":"IF(State=\"WY\",\"$75/Ton Incentive Tier\",\"$50/Ton Incentive Tier\")","v":"$75/Ton Incentive Tier"}]
[null,null,"HVAC Type\n(selected)",null,null,null,"System Type\n(selected)","Cooling Capacity (BTU/Hr)\n(selected)","Cooling Capacity\n(Tons)","Minimum\nEER","Minimum\nSEER /  IEER",null,"Minimum \n(HSPF / COP)",null,"Wet/Dry Bulb\nTemperature (F°)"]
[]
[]
[null,null,1,{"$f":"IF('HVAC-Tool'!$D$28=\"\",\"\",'HVAC-Tool'!$D$28)","v":""},null,null,{"$f":"IF('HVAC-Tool'!$G28=\"\",IF(OR('HVAC-Tool'!$D28=\"Heat Pump (Water Cooled)\",'HVAC-Tool'!$D28=\"Ground-Source Heat Pump\",'HVAC-Tool'!$D28=\"Groundwater Source Heat Pump\"),\"\",\"selection needed\"),'HVAC-Tool'!$G28)","v":"selection needed"},{"$f":"IF('HVAC-Tool'!$O$28=\"\",\"\",'HVAC-Tool'!$O$28)","v":""},{"$f":"IF(H20=\"\",\"\",H20/12000)","v":""},{"$f":"IF(I20=\"\",\"\",IF(VLOOKUP(HVAC!$Y17,HVAC!$BF$10:$CI$63,19)=0,\" - \",VLOOKUP(HVAC!$Y17,HVAC!$BF$10:$CI$63,19)))","v":""},{"$f":"IF(I20=\"\",\"\",IF(VLOOKUP(HVAC!$Y17,HVAC!$BF$10:$CI$63,IF(H20<65000,20,21))=0,\" - \",VLOOKUP(HVAC!$Y17,HVAC!$BF$10:$CI$63,IF(H20<65000,20,21))))","v":""},{"$f":"IF(K20=\"\",\"\",IF(K20=\" - \",\" - \",IF(H20<65000,\"SEER\",\"IEER\")))","v":""},{"$f":"IF(D20=\"\",\"\",IF(OR(D20=\"Unitary AC (Air Cooled)\",D20=\"Unitary AC (Water Cooled)\",D20=\"Unitary AC (Evaporatively Cooled)\"),\"n/a\",IF(VLOOKUP(HVAC!$Y17,HVAC!$BF$10:$CI$63,22)=0,\" - \",VLOOKUP(HVAC!$Y17,HVAC!$BF$10:$CI$63,22))))","v":""},{"$f":"IF(M20=\"\",\"\",IF(M20=\"n/a\",\"n/a\",IF(M20=\" - \",\" - \",IF(H20<65000,\"HSPF\",\"COP\"))))","v":""},{"$f":"IF(M20=\"\",\"\",IF(M20=\"n/a\",\"n/a\",IF(M20=\" - \",\" - \",\"47/43\")))","v":""}]
[null,null,2,{"$f":"IF('HVAC-Tool'!$D$29=\"\",\"\",'HVAC-Tool'!$D$29)","v":""},null,null,{"$f":"IF('HVAC-Tool'!$G29=\"\",IF(OR('HVAC-Tool'!$D29=\"Heat Pump (Water Cooled)\",'HVAC-Tool'!$D29=\"Ground-Source Heat Pump\",'HVAC-Tool'!$D29=\"Groundwater Source Heat Pump\"),\"\",\"selection needed\"),'HVAC-Tool'!$G29)","v":"selection needed"},{"$f":"IF('HVAC-Tool'!$O$29=\"\",\"\",'HVAC-Tool'!$O$29)","v":""},"",{"$f":"IF(I21=\"\",\"\",IF(VLOOKUP(HVAC!$Y18,HVAC!$BF$10:$CI$63,19)=0,\" - \",VLOOKUP(HVAC!$Y18,HVAC!$BF$10:$CI$63,19)))","v":""},{"$f":"IF(I21=\"\",\"\",IF(VLOOKUP(HVAC!$Y18,HVAC!$BF$10:$CI$63,IF(H21<65000,20,21))=0,\" - \",VLOOKUP(HVAC!$Y18,HVAC!$BF$10:$CI$63,IF(H21<65000,20,21))))","v":""},{"$f":"IF(K21=\"\",\"\",IF(K21=\" - \",\" - \",IF(H21<65000,\"SEER\",\"IEER\")))","v":""},{"$f":"IF(D21=\"\",\"\",IF(OR(D21=\"Unitary AC (Air Cooled)\",D21=\"Unitary AC (Water Cooled)\",D21=\"Unitary AC (Evaporatively Cooled)\"),\"n/a\",IF(VLOOKUP(HVAC!$Y18,HVAC!$BF$10:$CI$63,22)=0,\" - \",VLOOKUP(HVAC!$Y18,HVAC!$BF$10:$CI$63,22))))","v":""},{"$f":"IF(M21=\"\",\"\",IF(M21=\"n/a\",\"n/a\",IF(M21=\" - \",\" - \",IF(H21<65000,\"HSPF\",\"COP\"))))","v":""},{"$f":"IF(M21=\"\",\"\",IF(M21=\"n/a\",\"n/a\",IF(M21=\" - \",\" - \",\"47/43\")))","v":""}]
[null,null,3,{"$f":"IF('HVAC-Tool'!$D$30=\"\",\"\",'HVAC-Tool'!$D$30)","v":""},null,null,{"$f":"IF('HVAC-Tool'!$G30=\"\",IF(OR('HVAC-Tool'!$D30=\"Heat Pump (Water Cooled)\",'HVAC-Tool'!$D30=\"Ground-Source Heat Pump\",'HVAC-Tool'!$D30=\"Groundwater Source Heat Pump\"),\"\",\"selection needed\"),'HVAC-Tool'!$G30)","v":"selection needed"},{"$f":"IF('HVAC-Tool'!$O$30=\"\",\"\",'HVAC-Tool'!$O$30)","v":""},"",{"$f":"IF(I22=\"\",\"\",IF(VLOOKUP(HVAC!$Y19,HVAC!$BF$10:$CI$63,19)=0,\" - \",VLOOKUP(HVAC!$Y19,HVAC!$BF$10:$CI$63,19)))","v":""},{"$f":"IF(I22=\"\",\"\",IF(VLOOKUP(HVAC!$Y19,HVAC!$BF$10:$CI$63,IF(H22<65000,20,21))=0,\" - \",VLOOKUP(HVAC!$Y19,HVAC!$BF$10:$CI$63,IF(H22<65000,20,21))))","v":""},{"$f":"IF(K22=\"\",\"\",IF(K22=\" - \",\" - \",IF(H22<65000,\"SEER\",\"IEER\")))","v":""},{"$f":"IF(D22=\"\",\"\",IF(OR(D22=\"Unitary AC (Air Cooled)\",D22=\"Unitary AC (Water Cooled)\",D22=\"Unitary AC (Evaporatively Cooled)\"),\"n/a\",IF(VLOOKUP(HVAC!$Y19,HVAC!$BF$10:$CI$63,22)=0,\" - \",VLOOKUP(HVAC!$Y19,HVAC!$BF$10:$CI$63,22))))","v":""},{"$f":"IF(M22=\"\",\"\",IF(M22=\"n/a\",\"n/a\",IF(M22=\" - \",\" - \",IF(H22<65000,\"HSPF\",\"COP\"))))","v":""},""]
[null,null,4,{"$f":"IF('HVAC-Tool'!$D$31=\"\",\"\",'HVAC-Tool'!$D$31)","v":""},null,null,{"$f":"IF('HVAC-Tool'!$G31=\"\",IF(OR('HVAC-Tool'!$D31=\"Heat Pump (Water Cooled)\",'HVAC-Tool'!$D31=\"Ground-Source Heat Pump\",'HVAC-Tool'!$D31=\"Groundwater Source Heat Pump\"),\"\",\"selection needed\"),'HVAC-Tool'!$G31)","v":"selection needed"},{"$f":"IF('HVAC-Tool'!$O$31=\"\",\"\",'HVAC-Tool'!$O$31)","v":""},"",null,{"$f":"IF(I23=\"\",\"\",IF(VLOOKUP(HVAC!$Y20,HVAC!$BF$10:$CI$63,19)=0,\" - \",VLOOKUP(HVAC!$Y20,HVAC!$BF$10:$CI$63,19)))","v":""},{"$f":"IF(I23=\"\",\"\",IF(VLOOKUP(HVAC!$Y20,HVAC!$BF$10:$CI$63,IF(H23<65000,20,21))=0,\" - \",VLOOKUP(HVAC!$Y20,HVAC!$BF$10:$CI$63,IF(H23<65000,20,21))))","v":""},{"$f":"IF(L23=\"\",\"\",IF(L23=\" - \",\" - \",IF(H23<65000,\"SEER\",\"IEER\")))","v":""},{"$f":"IF(D23=\"\",\"\",IF(OR(D23=\"Unitary AC (Air Cooled)\",D23=\"Unitary AC (Water Cooled)\",D23=\"Unitary AC (Evaporatively Cooled)\"),\"n/a\",IF(VLOOKUP(HVAC!$Y20,HVAC!$BF$10:$CI$63,22)=0,\" - \",VLOOKUP(HVAC!$Y20,HVAC!$BF$10:$CI$63,22))))","v":""},{"$f":"IF(N23=\"\",\"\",IF(N23=\"n/a\",\"n/a\",IF(N23=\" - \",\" - \",IF(H23<65000,\"HSPF\",\"COP\"))))","v":""},""]
[null,null,5,{"$f":"IF('HVAC-Tool'!$D$32=\"\",\"\",'HVAC-Tool'!$D$32)","v":""},null,null,{"$f":"IF('HVAC-Tool'!$G32=\"\",IF(OR('HVAC-Tool'!$D32=\"Heat Pump (Water Cooled)\",'HVAC-Tool'!$D32=\"Ground-Source Heat Pump\",'HVAC-Tool'!$D32=\"Groundwater Source Heat Pump\"),\"\",\"selection needed\"),'HVAC-Tool'!$G32)","v":"selection needed"},{"$f":"IF('HVAC-Tool'!$O$32=\"\",\"\",'HVAC-Tool'!$O$32)","v":""},"",null,{"$f":"IF(I24=\"\",\"\",IF(VLOOKUP(HVAC!$Y21,HVAC!$BF$10:$CI$63,19)=0,\" - \",VLOOKUP(HVAC!$Y21,HVAC!$BF$10:$CI$63,19)))","v":""},{"$f":"IF(I24=\"\",\"\",IF(VLOOKUP(HVAC!$Y21,HVAC!$BF$10:$CI$63,IF(H24<65000,20,21))=0,\" - \",VLOOKUP(HVAC!$Y21,HVAC!$BF$10:$CI$63,IF(H24<65000,20,21))))","v":""},{"$f":"IF(L24=\"\",\"\",IF(L24=\" - \",\" - \",IF(H24<65000,\"SEER\",\"IEER\")))","v":""},{"$f":"IF(D24=\"\",\"\",IF(OR(D24=\"Unitary AC (Air Cooled)\",D24=\"Unitary AC (Water Cooled)\",D24=\"Unitary AC (Evaporatively Cooled)\"),\"n/a\",IF(VLOOKUP(HVAC!$Y21,HVAC!$BF$10:$CI$63,22)=0,\" - \",VLOOKUP(HVAC!$Y21,HVAC!$BF$10:$CI$63,22))))","v":""},{"$f":"IF(N24=\"\",\"\",IF(N24=\"n/a\",\"n/a\",IF(N24=\" - \",\" - \",IF(H24<65000,\"HSPF\",\"COP\"))))","v":""},""]
[null,null,6,{"$f":"IF('HVAC-Tool'!$D$33=\"\",\"\",'HVAC-Tool'!$D$33)","v":""},null,null,{"$f":"IF('HVAC-Tool'!$G33=\"\",IF(OR('HVAC-Tool'!$D33=\"Heat Pump (Water Cooled)\",'HVAC-Tool'!$D33=\"Ground-Source Heat Pump\",'HVAC-Tool'!$D33=\"Groundwater Source Heat Pump\"),\"\",\"selection needed\"),'HVAC-Tool'!$G33)","v":"selection needed"},{"$f":"IF('HVAC-Tool'!$O$33=\"\",\"\",'HVAC-Tool'!$O$33)","v":""},"",null,{"$f":"IF(I25=\"\",\"\",IF(VLOOKUP(HVAC!$Y22,HVAC!$BF$10:$CI$63,19)=0,\" - \",VLOOKUP(HVAC!$Y22,HVAC!$BF$10:$CI$63,19)))","v":""},{"$f":"IF(I25=\"\",\"\",IF(VLOOKUP(HVAC!$Y22,HVAC!$BF$10:$CI$63,IF(H25<65000,20,21))=0,\" - \",VLOOKUP(HVAC!$Y22,HVAC!$BF$10:$CI$63,IF(H25<65000,20,21))))","v":""},{"$f":"IF(L25=\"\",\"\",IF(L25=\" - \",\" - \",IF(H25<65000,\"SEER\",\"IEER\")))","v":""},{"$f":"IF(D25=\"\",\"\",IF(OR(D25=\"Unitary AC (Air Cooled)\",D25=\"Unitary AC (Water Cooled)\",D25=\"Unitary AC (Evaporatively Cooled)\"),\"n/a\",IF(VLOOKUP(HVAC!$Y22,HVAC!$BF$10:$CI$63,22)=0,\" - \",VLOOKUP(HVAC!$Y22,HVAC!$BF$10:$CI$63,22))))","v":""},{"$f":"IF(N25=\"\",\"\",IF(N25=\"n/a\",\"n/a\",IF(N25=\" - \",\" - \",IF(H25<65000,\"HSPF\",\"COP\"))))","v":""},""]
[null,null,7,{"$f":"IF('HVAC-Tool'!$D$34=\"\",\"\",'HVAC-Tool'!$D$34)","v":""},null,null,{"$f":"IF('HVAC-Tool'!$G34=\"\",IF(OR('HVAC-Tool'!$D34=\"Heat Pump (Water Cooled)\",'HVAC-Tool'!$D34=\"Ground-Source Heat Pump\",'HVAC-Tool'!$D34=\"Groundwater Source Heat Pump\"),\"\",\"selection needed\"),'HVAC-Tool'!$G34)","v":"selection needed"},{"$f":"IF('HVAC-Tool'!$O$34=\"\",\"\",'HVAC-Tool'!$O$34)","v":""},"",null,{"$f":"IF(I26=\"\",\"\",IF(VLOOKUP(HVAC!$Y23,HVAC!$BF$10:$CI$63,19)=0,\" - \",VLOOKUP(HVAC!$Y23,HVAC!$BF$10:$CI$63,19)))","v":""},{"$f":"IF(I26=\"\",\"\",IF(VLOOKUP(HVAC!$Y23,HVAC!$BF$10:$CI$63,IF(H26<65000,20,21))=0,\" - \",VLOOKUP(HVAC!$Y23,HVAC!$BF$10:$CI$63,IF(H26<65000,20,21))))","v":""},{"$f":"IF(L26=\"\",\"\",IF(L26=\" - \",\" - \",IF(H26<65000,\"SEER\",\"IEER\")))","v":""},{"$f":"IF(D26=\"\",\"\",IF(OR(D26=\"Unitary AC (Air Cooled)\",D26=\"Unitary AC (Water Cooled)\",D26=\"Unitary AC (Evaporatively Cooled)\"),\"n/a\",IF(VLOOKUP(HVAC!$Y23,HVAC!$BF$10:$CI$63,22)=0,\" - \",VLOOKUP(HVAC!$Y23,HVAC!$BF$10:$CI$63,22))))","v":""},{"$f":"IF(N26=\"\",\"\",IF(N26=\"n/a\",\"n/a\",IF(N26=\" - \",\" - \",IF(H26<65000,\"HSPF\",\"COP\"))))","v":""},""]
[]
[null,null,null,null,null,null,null,null,null,null,null,null,null,null,null,null,{"$f":"IF(State=\"WY\",\"$50/Ton Incentive Tier\",\"$25/Ton Incentive Tier\")","v":"$50/Ton Incentive Tier"}]
[null,null,"HVAC Type",null,null,null,"System Type","Cooling Capacity (BTU/Hr)","Cooling Capacity\n(Tons)",null,"Minimum\nEER","Minimum\nSEER /  IEER",null,"Minimum \n(HSPF / COP)",null,"Wet/Dry Bulb\nTemperature (F°)"]
[]
[]
[null,null,1,{"$f":"IF('HVAC-Tool'!$D$28=\"\",\"\",'HVAC-Tool'!$D$28)","v":""},null,null,{"$f":"IF('HVAC-Tool'!$G28=\"\",IF(OR('HVAC-Tool'!$D28=\"Heat Pump (Water Cooled)\",'HVAC-Tool'!$D28=\"Ground-Source Heat Pump\",'HVAC-Tool'!$D28=\"Groundwater Source Heat Pump\"),\"\",\"selection needed\"),'HVAC-Tool'!$G28)","v":"selection needed"},{"$f":"IF('HVAC-Tool'!$O$28=\"\",\"\",'HVAC-Tool'!$O$28)","v":""},{"$f":"IF(H32=\"\",\"\",H32/12000)","v":""},null,{"$f":"IF(I32=\"\",\"\",IF(VLOOKUP(HVAC!$Y17,HVAC!$BF$10:$CI$63,13)=0,\" - \",VLOOKUP(HVAC!$Y17,HVAC!$BF$10:$CI$63,13)))","v":""},{"$f":"IF(I32=\"\",\"\",IF(VLOOKUP(HVAC!$Y17,HVAC!$BF$10:$CI$63,IF(H32<65000,14,15))=0,\" - \",VLOOKUP(HVAC!$Y17,HVAC!$BF$10:$CI$63,IF(H32<65000,14,15))))","v":""},{"$f":"IF(L32=\"\",\"\",IF(L32=\" - \",\" - \",IF(H32<65000,\"SEER\",\"IEER\")))","v":""},{"$f":"IF(D32=\"\",\"\",IF(OR(D32=\"Unitary AC (Air Cooled)\",D32=\"Unitary AC (Water Cooled)\",D32=\"Unitary AC (Evaporatively Cooled)\"),\"n/a\",IF(VLOOKUP(HVAC!$Y17,HVAC!$BF$10:$CI$63,16)=0,\" - \",VLOOKUP(HVAC!$Y17,HVAC!$BF$10:$CI$63,16))))","v":""},{"$f":"IF(N32=\"\",\"\",IF(N32=\"n/a\",\"n/a\",IF(N32=\" - \",\" - \",IF(H32<65000,\"HSPF\",\"COP\"))))","v":""},{"$f":"IF(N32=\"\",\"\",IF(N32=\"n/a\",\"n/a\",IF(N32=\" - \",\" - \",\"47/43\")))","v":""}]
[null,null,2,{"$f":"IF('HVAC-Tool'!$D$29=\"\",\"\",'HVAC-Tool'!$D$29)","v":""},null,null,{"$f":"IF('HVAC-Tool'!$G29=\"\",IF(OR('HVAC-Tool'!$D29=\"Heat Pump (Water Cooled)\",'HVAC-Tool'!$D29=\"Ground-Source Heat Pump\",'HVAC-Tool'!$D29=\"Groundwater Source Heat Pump\"),\"\",\"selection needed\"),'HVAC-Tool'!$G29)","v":"selection needed"},{"$f":"IF('HVAC-Tool'!$O$29=\"\",\"\",'HVAC-Tool'!$O$29)","v":""},"",null,{"$f":"IF(I33=\"\",\"\",IF(VLOOKUP(HVAC!$Y18,HVAC!$BF$10:$CI$63,13)=0,\" - \",VLOOKUP(HVAC!$Y18,HVAC!$BF$10:$CI$63,13)))","v":""},{"$f":"IF(I33=\"\",\"\",IF(VLOOKUP(HVAC!$Y18,HVAC!$BF$10:$CI$63,IF(H33<65000,14,15))=0,\" - \",VLOOKUP(HVAC!$Y18,HVAC!$BF$10:$CI$63,IF(H33<65000,14,15))))","v":""},"",{"$f":"IF(D33=\"\",\"\",IF(OR(D33=\"Unitary AC (Air Cooled)\",D33=\"Unitary AC (Water Cooled)\",D33=\"Unitary AC (Evaporatively Cooled)\"),\"n/a\",IF(VLOOKUP(HVAC!$Y18,HVAC!$BF$10:$CI$63,16)=0,\" - \",VLOOKUP(HVAC!$Y18,HVAC!$BF$10:$CI$63,16))))","v":""},"",{"$f":"IF(N33=\"\",\"\",IF(N33=\"n/a\",\"n/a\",IF(N33=\" - \",\" - \",\"47/43\")))","v":""}]
[null,null,3,{"$f":"IF('HVAC-Tool'!$D$30=\"\",\"\",'HVAC-Tool'!$D$30)","v":""},null,null,{"$f":"IF('HVAC-Tool'!$G30=\"\",IF(OR('HVAC-Tool'!$D30=\"Heat Pump (Water Cooled)\",'HVAC-Tool'!$D30=\"Ground-Source Heat Pump\",'HVAC-Tool'!$D30=\"Groundwater Source Heat Pump\"),\"\",\"selection needed\"),'HVAC-Tool'!$G30)","v":"selection needed"},{"$f":"IF('HVAC-Tool'!$O$30=\"\",\"\",'HVAC-Tool'!$O$30)","v":""},"",null,{"$f":"IF(I34=\"\",\"\",IF(VLOOKUP(HVAC!$Y19,HVAC!$BF$10:$CI$63,13)=0,\" - \",VLOOKUP(HVAC!$Y19,HVAC!$BF$10:$CI$63,13)))","v":""},{"$f":"IF(I34=\"\",\"\",IF(VLOOKUP(HVAC!$Y19,HVAC!$BF$10:$CI$63,IF(H34<65000,14,15))=0,\" - \",VLOOKUP(HVAC!$Y19,HVAC!$BF$10:$CI$63,IF(H34<65000,14,15))))","v":""},"",{"$f":"IF(D34=\"\",\"\",IF(OR(D34=\"Unitary AC (Air Cooled)\",D34=\"Unitary AC (Water Cooled)\",D34=\"Unitary AC (Evaporatively Cooled)\"),\"n/a\",IF(VLOOKUP(HVAC!$Y19,HVAC!$BF$10:$CI$63,16)=0,\" - \",VLOOKUP(HVAC!$Y19,HVAC!$BF$10:$CI$63,16))))","v":""},"",""]
[null,null,4,{"$f":"IF('HVAC-Tool'!$D$31=\"\",\"\",'HVAC-Tool'!$D$31)","v":""},null,null,{"$f":"IF('HVAC-Tool'!$G31=\"\",IF(OR('HVAC-Tool'!$D31=\"Heat Pump (Water Cooled)\",'HVAC-Tool'!$D31=\"Ground-Source Heat Pump\",'HVAC-Tool'!$D31=\"Groundwater Source Heat Pump\"),\"\",\"selection needed\"),'HVAC-Tool'!$G31)","v":"selection needed"},{"$f":"IF('HVAC-Tool'!$O$31=\"\",\"\",'HVAC-Tool'!$O$31)","v":""},"",null,{"$f":"IF(I35=\"\",\"\",IF(VLOOKUP(HVAC!$Y20,HVAC!$BF$10:$CI$63,13)=0,\" - \",VLOOKUP(HVAC!$Y20,HVAC!$BF$10:$CI$63,13)))","v":""},{"$f":"IF(I35=\"\",\"\",IF(VLOOKUP(HVAC!$Y20,HVAC!$BF$10:$CI$63,IF(H35<65000,14,15))=0,\" - \",VLOOKUP(HVAC!$Y20,HVAC!$BF$10:$CI$63,IF(H35<65000,14,15))))","v":""},"",{"$f":"IF(D35=\"\",\"\",IF(OR(D35=\"Unitary AC (Air Cooled)\",D35=\"Unitary AC (Water Cooled)\",D35=\"Unitary AC (Evaporatively Cooled)\"),\"n/a\",IF(VLOOKUP(HVAC!$Y20,HVAC!$BF$10:$CI$63,16)=0,\" - \",VLOOKUP(HVAC!$Y20,HVAC!$BF$10:$CI$63,16))))","v":""},"",""]
[null,null,5,{"$f":"IF('HVAC-Tool'!$D$32=\"\",\"\",'HVAC-Tool'!$D$32)","v":""},null,null,{"$f":"IF('HVAC-Tool'!$G32=\"\",IF(OR('HVAC-Tool'!$D32=\"Heat Pump (Water Cooled)\",'HVAC-Tool'!$D32=\"Ground-Source Heat Pump\",'HVAC-Tool'!$D32=\"Groundwater Source Heat Pump\"),\"\",\"selection needed\"),'HVAC-Tool'!$G32)","v":"selection needed"},{"$f":"IF('HVAC-Tool'!$O$32=\"\",\"\",'HVAC-Tool'!$O$32)","v":""},"",null,{"$f":"IF(I36=\"\",\"\",IF(VLOOKUP(HVAC!$Y21,HVAC!$BF$10:$CI$63,13)=0,\" - \",VLOOKUP(HVAC!$Y21,HVAC!$BF$10:$CI$63,13)))","v":""},{"$f":"IF(I36=\"\",\"\",IF(VLOOKUP(HVAC!$Y21,HVAC!$BF$10:$CI$63,IF(H36<65000,14,15))=0,\" - \",VLOOKUP(HVAC!$Y21,HVAC!$BF$10:$CI$63,IF(H36<65000,14,15))))","v":""},"",{"$f":"IF(D36=\"\",\"\",IF(OR(D36=\"Unitary AC (Air Cooled)\",D36=\"Unitary AC (Water Cooled)\",D36=\"Unitary AC (Evaporatively Cooled)\"),\"n/a\",IF(VLOOKUP(HVAC!$Y21,HVAC!$BF$10:$CI$63,16)=0,\" - \",VLOOKUP(HVAC!$Y21,HVAC!$BF$10:$CI$63,16))))","v":""},"",""]
[null,null,6,{"$f":"IF('HVAC-Tool'!$D$33=\"\",\"\",'HVAC-Tool'!$D$33)","v":""},null,null,{"$f":"IF('HVAC-Tool'!$G33=\"\",IF(OR('HVAC-Tool'!$D33=\"Heat Pump (Water Cooled)\",'HVAC-Tool'!$D33=\"Ground-Source Heat Pump\",'HVAC-Tool'!$D33=\"Groundwater Source Heat Pump\"),\"\",\"selection needed\"),'HVAC-Tool'!$G33)","v":"selection needed"},{"$f":"IF('HVAC-Tool'!$O$33=\"\",\"\",'HVAC-Tool'!$O$33)","v":""},"",null,{"$f":"IF(I37=\"\",\"\",IF(VLOOKUP(HVAC!$Y22,HVAC!$BF$10:$CI$63,13)=0,\" - \",VLOOKUP(HVAC!$Y22,HVAC!$BF$10:$CI$63,13)))","v":""},{"$f":"IF(I37=\"\",\"\",IF(VLOOKUP(HVAC!$Y22,HVAC!$BF$10:$CI$63,IF(H37<65000,14,15))=0,\" - \",VLOOKUP(HVAC!$Y22,HVAC!$BF$10:$CI$63,IF(H37<65000,14,15))))","v":""},"",{"$f":"IF(D37=\"\",\"\",IF(OR(D37=\"Unitary AC (Air Cooled)\",D37=\"Unitary AC (Water Cooled)\",D37=\"Unitary AC (Evaporatively Cooled)\"),\"n/a\",IF(VLOOKUP(HVAC!$Y22,HVAC!$BF$10:$CI$63,16)=0,\" - \",VLOOKUP(HVAC!$Y22,HVAC!$BF$10:$CI$63,16))))","v":""},"",""]
[null,null,7,{"$f":"IF('HVAC-Tool'!$D$34=\"\",\"\",'HVAC-Tool'!$D$34)","v":""},null,null,{"$f":"IF('HVAC-Tool'!$G34=\"\",IF(OR('HVAC-Tool'!$D34=\"Heat Pump (Water Cooled)\",'HVAC-Tool'!$D34=\"Ground-Source Heat Pump\",'HVAC-Tool'!$D34=\"Groundwater Source Heat Pump\"),\"\",\"selection needed\"),'HVAC-Tool'!$G34)","v":"selection needed"},{"$f":"IF('HVAC-Tool'!$O$34=\"\",\"\",'HVAC-Tool'!$O$34)","v":""},"",null,{"$f":"IF(I38=\"\",\"\",IF(VLOOKUP(HVAC!$Y23,HVAC!$BF$10:$CI$63,13)=0,\" - \",VLOOKUP(HVAC!$Y23,HVAC!$BF$10:$CI$63,13)))","v":""},{"$f":"IF(I38=\"\",\"\",IF(VLOOKUP(HVAC!$Y23,HVAC!$BF$10:$CI$63,IF(H38<65000,14,15))=0,\" - \",VLOOKUP(HVAC!$Y23,HVAC!$BF$10:$CI$63,IF(H38<65000,14,15))))","v":""},"",{"$f":"IF(D38=\"\",\"\",IF(OR(D38=\"Unitary AC (Air Cooled)\",D38=\"Unitary AC (Water Cooled)\",D38=\"Unitary AC (Evaporatively Cooled)\"),\"n/a\",IF(VLOOKUP(HVAC!$Y23,HVAC!$BF$10:$CI$63,16)=0,\" - \",VLOOKUP(HVAC!$Y23,HVAC!$BF$10:$CI$63,16))))","v":""},"",""]
[]
[]
[null,null,null,{"$f":"\"A/C Efficiency Requirements & Incentive Levels\"","v":"A/C Efficiency Requirements & Incentive Levels"},null,null,null,null,"Minimum Efficiency Requirement(s) & Customer Incentive"]
[null,null,null,"Equipment Type",null,null,"Size Category","Sub-Category",{"$f":"IF(InstallState=\"WY\",\"Tier 1 $50/ton*\",IF(InstallState=\"CA\", \"Tier 1 $25/ton*\",\"\"))","v":"Tier 1 $50/ton*"},{"$f":"IF(InstallState=\"WY\",\"Tier 2 $75/ton*\",\"CEE Tier 1 $50/ton*\")","v":"Tier 2 $75/ton*"},{"$f":"IF(InstallState=\"WY\",\"Tier 3 $100/ton*\",\"CEE Tier 2 $75/ton*\")","v":"Tier 3 $100/ton*"}]
[null,null,null,null,null,null,null,null,"Tier 0","Tier 1","Tier 2"]
[null,null,null,"Unitary Commercial Air Conditioners, \nAir-Cooled",null,null,"< 65, 000 Btu/hr (single phase)","Split System ",{"$f":"IF(INDIRECT(\"HVAC!\"&INDEX(INDIRECT($T44),MATCH(I$43,Tiers,0))&$S44)=0,\" -- \",INDIRECT(\"HVAC!\"&INDEX(INDIRECT($T44),MATCH(I$43,Tiers,0))&$S44)&\" \"&$T44)","v":" -- "},{"$f":"IF(INDIRECT(\"HVAC!\"&INDEX(INDIRECT($T44),MATCH(J$43,Tiers,0))&$S44)=0,\" -- \",INDIRECT(\"HVAC!\"&INDEX(INDIRECT($T44),MATCH(J$43,Tiers,0))&$S44)&\" \"&$T44)","v":"16 SEER"}," -- ",null,null,null,null,null,null,null,20,"SEER"]
[null,null,null,null,null,null,null,null," -- ","13 EER"," -- ",null,null,null,null,null,null,null,20,"EER"]
[null,null,null,null,null,null,null,"Single Package"," -- ","16 SEER"," -- ",null,null,null,null,null,null,null,22,"SEER"]
[null,null,null,null,null,null,null,null," -- ","12 EER"," -- ",null,null,null,null,null,null,null,22,"EER"]
[null,null,null,null,null,null,"< 65, 000 Btu/hr (three phase)","Split System "," -- ","15 SEER","16 SEER",null,null,null,null,null,null,null,23,"SEER"]
[null,null,null,null,null,null,null,null," -- ","12.5 EER","13 EER",null,null,null,null,null,null,null,23,"EER"]
[null,null,null,null,null,null,null,"Single Package"," -- ","15 SEER","16 SEER",null,null,null,null,null,null,null,24,"SEER"]
[null,null,null,null,null,null,null,null," -- ","12 EER","12 EER",null,null,null,null,null,null,null,24,"EER"]
[null,null,null,null,null,null,"≥ 65,000 Btu/hr and < 135,000 Btu/hr","Split System and Single Package"," -- ","12 EER","12 EER",null,null,null,null,null,null,null,25,"EER"]
[null,null,null,null,null,null,null,null," -- ","13.8 IEER","14.6 IEER",null,null,null,null,null,null,null,25,"IEER"]
[null,null,null,null,null,null,"≥ 135,000 Btu/hr and < 240,000 Btu/hr","Split System and Single Package"," -- ","12 EER","12 EER",null,null,null,null,null,null,null,26,"EER"]
[null,null,null,null,null,null,null,null," -- ","13 IEER","14 IEER",null,null,null,null,null,null,null,26,"IEER"]
[null,null,null,null,null,null,"≥ 240,000 Btu/hr and < 760,000 Btu/hr","Split System and Single Package"," -- ","10.3 EER","10.6 EER",null,null,null,null,null,null,null,27,"EER"]
[null,null,null,null,null,null,null,null," -- ","12.1 IEER","13 IEER",null,null,null,null,null,null,null,27,"IEER"]
[null,null,null,null,null,null,"≥ 760,000 Btu/hr","Split System and Single Package"," -- ","9.7 EER","10.2 EER",null,null,null,null,null,null,null,28,"EER"]
[null,null,null,null,null,null,null,null," -- ","11.4 IEER","12.1 IEER",null,null,null,null,null,null,null,28,"IEER",null,null,null,null,null,"COP 47","COP 17"]
[null,null,null,"Unitary Commercial Air Conditioners, \nWater Cooled",null,null,"< 65,000 Btu/hr ","Split system and Single Package"," -- ","14 EER"," -- ",null,null,null,null,null,null,null,34,"EER",null,null,"EER","SEER ","IEER","COP","COP.","HSPF"]
[null,null,null,null,null,null,null,null," -- "," -- "," -- ",null,null,null,null,null,null,null,34,"IEER",null,"Tier 0","BR","BS","BT","BU","BV","BU"]
[null,null,null,null,null,null,"≥ 65,000 Btu/hr and < 135,000 Btu/hr",null," -- ","14 EER"," -- ",null,null,null,null,null,null,null,35,"EER",null,"Tier 1","BX","BY","BZ","CA","CB","CA"]
[null,null,null,null,null,null,null,null," -- "," -- "," -- ",null,null,null,null,null,null,null,35,"IEER",null,"Tier 2","CD","CE","CF","CG","CH","CG"]
[null,null,null,null,null,null,"≥ 135,000 Btu/hr",null," -- ","14 EER"," -- ",null,null,null,null,null,null,null,36,"EER"]
[null,null,null,null,null,null,null,null," -- "," -- "," -- ",null,null,null,null,null,null,null,36,"IEER"]
[null,null,null,"Unitary Commercial Air Conditioners, Evaporatively Cooled",null,null,"< 65,000 Btu/hr ","Split System and Single Package"," -- ","14 EER"," -- ",null,null,null,null,null,null,null,42,"EER"]
[null,null,null,null,null,null,null,null," -- "," -- "," -- ",null,null,null,null,null,null,null,42,"IEER"]
[null,null,null,null,null,null,"≥ 65,000 Btu/hr and < 135,000 Btu/hr",null," -- ","14 EER"," -- ",null,null,null,null,null,null,null,43,"EER"]
[null,null,null,null,null,null,null,null," -- "," -- "," -- ",null,null,null,null,null,null,null,43,"IEER"]
[null,null,null,null,null,null,"≥ 135,000 Btu/hr",null," -- ","14 EER"," -- ",null,null,null,null,null,null,null,44,"EER"]
[null,null,null,null,null,null,null,null," -- "," -- "," -- ",null,null,null,null,null,null,null,44,"IEER"]
[null,null,null,"1.        Equipment that meets or exceeds the efficiency requirements listed for the equipment category in the above table may qualify for the listed incentive. Equipment must meet both listed efficiency requirements to qualify for the listed incentives. "]
[null,null,null,"2.        Equipment size categories and capacities are specified in terms of net cooling capacity at AHRI standard conditions as determined by AHRI Standard 210/240 for units < 65,000 Btu/hr, AHRI Standard 340/360 for units ≥ 65,000 Btu/hr, and AHRI Standard 310/380 for PTAC and PTHP units."]
[null,null,null,"3.        Units rated only with an IPLV may qualify for the listed incentives if the value meets or exceeds the minimum IPLV established as part of the Consortium for Energy Efficiency Commercial Unitary Air Conditioning and Heat Pump Specification effective January 16, 2009."]
[]
[]
[null,null,null,"EER = Energy Efficiency Ratio"]
[null,null,null,"SEER = Seasonal Energy Efficiency Ratio"]
[null,null,null,"IEER = Integrated Energy Efficiency Ratio"]
[null,null,null,"IPLV = Integrated Part Load Value"]
[null,null,null,"CEE = Consortium for Energy Efficiency"]
[null,null,null,"AHRI = Air Conditioning, Heating, and Refrigeration Institute"]
[]
[]
[null,null,null,{"$f":"\"Heat Pump Efficiency Requirements & Incentive Levels\"","v":"Heat Pump Efficiency Requirements & Incentive Levels"},null,null,null,null,"Minimum Efficiency Requirement(s) & Customer Incentive"]
[null,null,null,"Equipment Type",null,null,"Size Category","Sub-Category","Tier 1 $25/ton*",{"$f":"IF(InstallState=\"WY\",\"Tier 2 $75/ton*\",\"CEE Tier 1 $50/ton*\")","v":"Tier 2 $75/ton*"},{"$f":"IF(InstallState=\"WY\",\"Tier 2 $75/ton*\",\"CEE Tier 2 $75/ton*\")","v":"Tier 2 $75/ton*"}]
[]
[null,null,null,"Heat Pumps, Air-Cooled (Cooling Mode)",null,null,"< 65, 000 Btu/hr (single phase)","Split System",{"$f":"IF(INDIRECT(\"HVAC!\"&INDEX(INDIRECT($T88),MATCH(I$43,Tiers,0))&$S88)=0,\" -- \",INDIRECT(\"HVAC!\"&INDEX(INDIRECT($T88),MATCH(I$43,Tiers,0))&$S88)&\"  \"&$T88)","v":" -- "},"16  SEER"," -- ",null,null,null,null,null,null,null,10,"SEER"]
[null,null,null,null,null,null,null,null," -- ","13  EER"," -- ",null,null,null,null,null,null,null,10,"EER"]
[null,null,null,null,null,null,null,"Single Package"," -- ","16  SEER"," -- ",null,null,null,null,null,null,null,11,"SEER"]
[null,null,null,null,null,null,null,null," -- ","12  EER"," -- ",null,null,null,null,null,null,null,11,"EER"]
[null,null,null,null,null,null,"< 65, 000 Btu/hr (three phase)","Split System"," -- ","15  SEER","16  SEER",null,null,null,null,null,null,null,12,"SEER"]
[null,null,null,null,null,null,null,null," -- ","12.5  EER","13  EER",null,null,null,null,null,null,null,12,"EER"]
[null,null,null,null,null,null,null,"Single Package"," -- ","15  SEER","16  SEER",null,null,null,null,null,null,null,13,"SEER"]
[null,null,null,null,null,null,null,null," -- ","12  EER","12  EER",null,null,null,null,null,null,null,13,"EER"]
[null,null,null,null,null,null,"≥ 65,000 Btu/hr and < 135,000 Btu/hr","Split system and single package"," -- ","11.6  EER"," -- ",null,null,null,null,null,null,null,14,"EER"]
[null,null,null,null,null,null,null,null," -- ","13.4  IEER"," -- ",null,null,null,null,null,null,null,14,"IEER"]
[null,null,null,null,null,null,"≥ 135,000 Btu/hr and < 240,000 Btu/hr","Split system and single package"," -- ","10.7  EER"," -- ",null,null,null,null,null,null,null,15,"EER"]
[null,null,null,null,null,null,null,null," -- ","12.6  IEER"," -- ",null,null,null,null,null,null,null,15,"IEER"]
[null,null,null,null,null,null,"≥ 240,000 Btu/hr ","Split system and single package"," -- ","10.1  EER"," -- ",null,null,null,null,null,null,null,16,"EER"]
[null,null,null,null,null,null,null,null," -- ","11.6  IEER"," -- ",null,null,null,null,null,null,null,16,"IEER"]
[null,null,null,"Heat Pumps, Air-Cooled (Heating Mode) (See Note 2)",null,null,"< 65, 000 Btu/hr  (single phase)","Split system"," -- ","9  HSPF"," -- ",null,null,null,null,null,null,null,10,"HSPF"]
[null,null,null,null,null,null,null,"Single package"," -- ","8.2  HSPF"," -- ",null,null,null,null,null,null,null,11,"HSPF"]
[null,null,null,null,null,null,"< 65, 000 Btu/hr  (three phase)","Split system"," -- ","8.5  HSPF","9  HSPF",null,null,null,null,null,null,null,12,"HSPF"]
[null,null,null,null,null,null,null,"Single package"," -- ","8.2  HSPF","8.2  HSPF",null,null,null,null,null,null,null,13,"HSPF"]
[null,null,null,null,null,null,"≥ 65,000 Btu/hr and < 135,000 Btu/hr","47°F db/43°F wb outdoor air"," -- ","3.4  COP"," -- ",null,null,null,null,null,null,null,14,"COP"]
[null,null,null,null,null,null,null,"17°F db/15°F wb outdoor air"," -- ","2.4  COP."," -- ",null,null,null,null,null,null,null,14,"COP."]
[null,null,null,null,null,null,"≥ 135,000 Btu/hr","47°F db/43°F wb outdoor air"," -- ","3.3  COP"," -- ",null,null,null,null,null,null,null,15,"COP"]
[null,null,null,null,null,null,null,"17°F db/15°F wb outdoor air"," -- ","2.1  COP."," -- ",null,null,null,null,null,null,null,15,"COP."]
[null,null,null,"Heat Pumps, Water-Source (See note 2)",null,null,"< 135,000 Btu/hr","86°F Entering Water (Cooling Mode)"," -- ","14  EER"," -- ",null,null,null,null,null,null,null,17,"EER"]
[null,null,null,null,null,null,null,"68°F Entering Water (Heating Mode)"," -- ","4.6  COP"," -- ",null,null,null,null,null,null,null,17,"COP"]
[null,null,null,"Variable Refrigerant Flow Heat Pumps, Air-Cooled (Cooling Mode)",null,null,"< 65, 000 Btu/hr ","Multi-split System",{"$f":"IF(INDIRECT(\"HVAC!\"&INDEX(INDIRECT($T112),MATCH(I$43,Tiers,0))&$S112)=0,\" -- \",INDIRECT(\"HVAC!\"&INDEX(INDIRECT($T112),MATCH(I$43,Tiers,0))&$S112)&\"  \"&$T112)","v":" -- "}," -- "," -- ",null,null,null,null,null,null,null,47,"SEER"]
[null,null,null,null,null,null,null,null," -- ","13.3  EER"," -- ",null,null,null,null,null,null,null,47,"EER"]
[null,null,null,null,null,null,"≥ 65,000 Btu/hr and < 135,000 Btu/hr","Multi-split System"," -- ","13.3  EER"," -- ",null,null,null,null,null,null,null,49,"EER"]
[null,null,null,null,null,null,null,null," -- ","14.1  IEER"," -- ",null,null,null,null,null,null,null,49,"IEER"]
[null,null,null,null,null,null,null,"Multi-split System with\n Heat Recovery","12.5  EER"," -- "," -- ",null,null,null,null,null,null,null,50,"EER"]
[null,null,null,null,null,null,null,null," -- "," -- "," -- ",null,null,null,null,null,null,null,50,"IEER"]
[null,null,null,null,null,null,"≥ 135,000 Btu/hr and < 240,000 Btu/hr","Multi-split System","12.5  EER"," -- "," -- ",null,null,null,null,null,null,null,51,"EER"]
[null,null,null,null,null,null,null,null," -- "," -- "," -- ",null,null,null,null,null,null,null,51,"IEER"]
[null,null,null,null,null,null,null,"Multi-split System with\n Heat Recovery","11.3  EER"," -- "," -- ",null,null,null,null,null,null,null,52,"EER"]
[null,null,null,null,null,null,null,null,"14.2  IEER"," -- "," -- ",null,null,null,null,null,null,null,52,"IEER"]
[null,null,null,null,null,null,"≥ 240,000 Btu/hr ","Multi-split System","11.1  EER"," -- "," -- ",null,null,null,null,null,null,null,53,"EER"]
[null,null,null,null,null,null,null,null,"14  IEER"," -- "," -- ",null,null,null,null,null,null,null,53,"IEER"]
[null,null,null,null,null,null,null,"Multi-split System with\n Heat Recovery","10.9  EER"," -- "," -- ",null,null,null,null,null,null,null,54,"EER"]
[null,null,null,null,null,null,null,null,"13.7  IEER"," -- "," -- ",null,null,null,null,null,null,null,54,"IEER"]
[null,null,null,"Variable Refrigerant Flow Heat Pumps, Air-Cooled (Heating Mode) (See Note 2)",null,null,"< 65, 000 Btu/hr  (single phase)","Multi-split system"," -- "," -- "," -- ",null,null,null,null,null,null,null,47,"HSPF"]
[null,null,null,null,null,null,"≥ 65,000 Btu/hr and < 135,000 Btu/hr","47°F db/43°F wb outdoor air"," -- "," -- "," -- ",null,null,null,null,null,null,null,49,"COP"]
[null,null,null,null,null,null,null,"17°F db/15°F wb outdoor air"," -- "," -- "," -- ",null,null,null,null,null,null,null,49,"COP."]
[null,null,null,null,null,null,"≥ 135,000 Btu/hr","47°F db/43°F wb outdoor air","8.5  COP"," -- "," -- ",null,null,null,null,null,null,null,51,"COP"]
[null,null,null,null,null,null,null,"17°F db/15°F wb outdoor air","8.5  COP."," -- "," -- ",null,null,null,null,null,null,null,51,"COP."]
[null,null,null,"Variable Refrigerant Flow Heat Pumps, Water-Source (See note 2)",null,null,"< 135,000 Btu/hr","Multi-split System, 86°F Entering Water (Cooling Mode)","10.7  EER"," -- "," -- ",null,null,null,null,null,null,null,55,"EER"]
[null,null,null,null,null,null,null,"Multi-split System, 68°F Entering Water (Heating Mode)","3.2  COP"," -- "," -- ",null,null,null,null,null,null,null,55,"COP"]
[null,null,null,"Variable Refrigerant Flow Heat Pumps, Water-Source (See note 2)",null,null,"< 135,000 Btu/hr","Multi-split System with Heat Recovery, 86°F Entering Water (Cooling Mode)","10.3  EER"," -- "," -- ",null,null,null,null,null,null,null,56,"EER"]
[null,null,null,null,null,null,null,"Multi-split System with Heat Recovery, 68°F Entering Water (Heating Mode)","3.2  COP"," -- "," -- ",null,null,null,null,null,null,null,55,"COP"]
[null,null,null,"Equipment Type",null,null,"Size Category","Sub-Category","Energy Star Qualified\n$50/ton"]
[]
[null,null,null,"Heat Pumps, Ground-source (Heating & Cooling Mode) – See note 2",null,null,"All sizes","77° Entering Water",{"$f":"IF(INDIRECT(\"HVAC!\"&INDEX(INDIRECT($T137),MATCH(J$43,Tiers,0))&$S137)=0,\" -- \",INDIRECT(\"HVAC!\"&INDEX(INDIRECT($T137),MATCH(J$43,Tiers,0))&$S137)&\"  \"&$T137)","v":"17.1  EER"},null,null,null,null,null,null,null,null,null,29,"EER"]
[null,null,null,null,null,null,null,"32° Entering Water",{"$f":"IF(INDIRECT(\"HVAC!\"&INDEX(INDIRECT($T138),MATCH(J$43,Tiers,0))&$S138)=0,\" -- \",INDIRECT(\"HVAC!\"&INDEX(INDIRECT($T138),MATCH(J$43,Tiers,0))&$S138)&\"  \"&$T138)","v":"3.6  COP"},null,null,null,null,null,null,null,null,null,29,"COP"]
[null,null,null,"Heat Pumps, Groundwater-source (Heating & Cooling Mode) – See note 2",null,null,"All sizes","59° Entering Water",{"$f":"IF(INDIRECT(\"HVAC!\"&INDEX(INDIRECT($T139),MATCH(J$43,Tiers,0))&$S139)=0,\" -- \",INDIRECT(\"HVAC!\"&INDEX(INDIRECT($T139),MATCH(J$43,Tiers,0))&$S139)&\"  \"&$T139)","v":"21.1  EER"},null,null,null,null,null,null,null,null,null,30,"EER"]
[null,null,null,null,null,null,null,"50° Entering Water",{"$f":"IF(INDIRECT(\"HVAC!\"&INDEX(INDIRECT($T140),MATCH(J$43,Tiers,0))&$S140)=0,\" -- \",INDIRECT(\"HVAC!\"&INDEX(INDIRECT($T140),MATCH(J$43,Tiers,0))&$S140)&\"  \"&$T140)","v":"4.1  COP"},null,null,null,null,null,null,null,null,null,30,"COP"]
[null,null,null,"1.        Equipment that meets or exceeds the efficiency requirements listed for the size category in the above table may qualify for the listed incentive. Equipment must meet both listed efficiency requirements to qualify for the listed incentives."]
[null,null,null,"2.        Incentives for heat pumps are available per ton of cooling capacity ONLY. No incentives are paid per ton of heating capacity. Heat pumps must meet both the cooling mode and heating mode efficiency requirements to qualify for per ton cooling efficiency incentives."]
[null,null,null,"3.        Equipment size categories and capacities are specified in terms of net cooling capacity at AHRI standard conditions as determined by AHRI Standard 210/240 for units < 65,000 btu/hr, AHRI Standard 340/360 for units ≥ 65,000 btu/hr, and AHRI Standard 310/380 for PTAC/PTHP units."]
[null,null,null,"4.        Ground and Water Source Heat Pumps must meet or exceed listed efficiency requirements when rated in accordance with ISO-13256-1 to qualify for an incentive."]
[null,null,null,"5.        Units rated only with an IPLV may qualify for the listed incentives if the value meets or exceeds the minimum IPLV established as part of the Consortium for Energy Efficiency Commercial Unitary Air Conditioning and Heat Pump Specification effective January 16, 2009."]
[]
[]
[null,null,null,"EER = Energy Efficiency Ratio",null,null,null,"IPLV = Integrated Part Load Value"]
[null,null,null,"SEER = Seasonal Energy Efficiency Ratio",null,null,null,"HSPF = Heating Seasonal Performance Factor"]
[null,null,null,"IEER = Integrated Energy Efficiency Ratio",null,null,null,"COP = Coefficient of Performance"]
[null,null,null,"CEE = Consortium for Energy Efficiency",null,null,null,"AHRI = Air Conditioning, Heating, and Refrigeration Institute"]

{"sheet":"HELP","index":3,"n_rows":56,"n_cols":8,"rows_kept":56,"cut":false,"hidden":false,"merged":[[53,1,53,11],[54,3,54,9],[55,3,55,9],[46,3,46,9],[36,3,36,9],[37,1,37,11],[38,3,38,9],[6,3,16,9],[1,1,2,11],[3,3,3,9],[4,1,4,11],[45,1,45,11],[35,1,35,11],[18,3,18,4],[29,5,31,5],[18,7,26,9],[24,5,27,5],[19,5,22,5],[32,5,33,5],[32,3,32,4],[33,3,33,4]]}
[]
[null,"HVAC Calculator Tool Help"]
[]
[null,null,null,{"$f":"\"The HVAC Calculator Tool estimates savings attributed to the installation of unitary air-cooled air conditioners, air-source heat pumps and water-source heat pumps over an energy code baseline.\"&\"  The calculator will also provide incentive amounts available for equipment meeting \"&IF(InstallState=\"\",\"\",INDEX(Program_name,MATCH(InstallState,StateAbrev_List,0)))&\" program requirements.\"","v":"The HVAC Calculator Tool estimates savings attributed to the installation of unitary air-cooled air conditioners, air-source heat pumps and water-source heat pumps over an energy code baseline.  The calculator will also provide incentive amounts available for equipment meeting wattsmart Business program requirements."}]
[null,"Applicability"]
[]
[null,null,null,{"$f":"\"The HVAC Calculator Tool may be used to determine savings/incentives in each State where the \"&IF(InstallState=\"\",\"\",INDEX(Program_name,MATCH(InstallState,StateAbrev_List,0)))&\" program is offered, which includes Northern \" &\"California, Central and Southeast Washington, Southeast Idaho, and large areas of Wyoming and Utah.  \" &\n\"The tool computes savings by comparing the user-entered efficiency of the HVAC equipment to the minimum efficiency required by the respective state code.  \" &\"Required efficiencies may include the Energy Efficiency Ratio (EER), Seasonal Energy Efficiency Ratio (SEER), Integrated Energy Effeciency Ratio (IEER), Integrated Part \" &\"Load Value (IPLV, Coefficient of Performance (COP), and Heating Seasonal Performance Factor (HSPF).\n\" &\n\"\nEfficiencies and cooling capacities must meet or exceed minimum program requirements and be reported in accordance with the applicable testing standard as listed in the table below.\n\" &\n\"\nFor further details and requirements, please contact your project coordinator or visit wattsmart.com\"","v":"The HVAC Calculator Tool may be used to determine savings/incentives in each State where the wattsmart Business program is offered, which includes Northern California, Central and Southeast Washington, Southeast Idaho, and large areas of Wyoming and Utah.  The tool computes savings by comparing the user-entered efficiency of the HVAC equipment to the minimum efficiency required by the respective state code.  Required efficiencies may include the Energy Efficiency Ratio (EER), Seasonal Energy Efficiency Ratio (SEER), Integrated Energy Effeciency Ratio (IEER), Integrated Part Load Value (IPLV, Coefficient of Performance (COP), and Heating Seasonal Performance Factor (HSPF).\n\nEfficiencies and cooling capacities must meet or exceed minimum program requirements and be reported in accordance with the applicable testing standard as listed in the table below.\n\nFor further details and requirements, please contact your project coordinator or visit wattsmart.com"}]
[]
[]
[]
[]
[]
[]
[]
[]
[]
[]
[]
[null,null,null,"Equipment Type",null,"Testing Standard",null,"Note: \n\n-Incentives are not available for installations of condensing units only. \n\n-Equipment with a system classification of \"Split System\" must be tested as a complete system including: the indoor (coil) unit and the outdoor (condensing) unit.\n\n-If an AHRI certificate does not exist for the installed equipment, please contact your EEA coordinator by calling 1-866-415-9800."]
[null,null,null,"Unitary AC (Air Cooled)","<65,000 btu/h","AHRI 210/240"]
[null,null,null,"Unitary AC (Water Cooled) ","<65,000 btu/h"]
[null,null,null,"Unitary AC (Evaporitvely Cooled) ","<65,000 btu/h"]
[null,null,null,"Heat Pump (Air Cooled) ","<65,000 btu/h"]
[]
[null,null,null,"Unitary AC (Air Cooled) ","≥65,000 btu/h","AHRI 340/360"]
[null,null,null,"Unitary AC (Water Cooled)  ","≥65,000 btu/h"]
[null,null,null,"Unitary AC (Evaporitvely Cooled)  ","≥65,000 btu/h"]
[null,null,null,"Heat Pump (Air Cooled)","≥65,000 btu/h"]
[]
[null,null,null,"Heat Pump (Water Cooled)",null,"ISO 13256-1"]
[null,null,null,"Ground-Source Heat Pump"]
[null,null,null,"Groundwater Source Heat Pump"]
[null,null,null,"VRF Heat Pump (Air Cooled)",null,"AHRI 1230"]
[null,null,null,"VRF Heat Pump (Water Cooled)"]
[]
[null,"Instructions"]
[null,null,null,{"$f":"\"The user should input data into the yellow fields in the Project/Customer Information sections, identifying the business name, address, state, and utility account and meter numbers, in addition to the rate schedule the project location is served by.\"&\n\"\n\nUse the drop-down menus to select the equipment and system types in the blue fields identified in the Project Information and Energy/Cost Savings section.  Enter the AHRI cooling capacity in Btu/hr.\"&\n\"\n\nEach equipment type with a unique system type and size must be entered on a separate line.\"&\n\"\n\nOnce all required the data is entered, the HVAC Calculator will display the estimated savings and available incentive.  Click the 'Create Application' button for a PDF copy of the application. \"&\"\n\nTo submit follow the instructions as found in the application.\"&\"\n\nIf zeros are displayed, the equipment may not meet the minimum efficiency requirements to qualify for an incentive.  Please contact your project coordinator or refer to the Program Requirements tab for more information.\"","v":"The user should input data into the yellow fields in the Project/Customer Information sections, identifying the business name, address, state, and utility account and meter numbers, in addition to the rate schedule the project location is served by.\n\nUse the drop-down menus to select the equipment and system types in the blue fields identified in the Project Information and Energy/Cost Savings section.  Enter the AHRI cooling capacity in Btu/hr.\n\nEach equipment type with a unique system type and size must be entered on a separate line.\n\nOnce all required the data is entered, the HVAC Calculator will display the estimated savings and available incentive.  Click the 'Create Application' button for a PDF copy of the application. \n\nTo submit follow the instructions as found in the application.\n\nIf zeros are displayed, the equipment may not meet the minimum efficiency requirements to qualify for an incentive.  Please contact your project coordinator or refer to the Program Requirements tab for more information."}]
[null,"Applicable Energy Codes"]
[null,null,null,{"$f":"\"This calculator uses the energy codes listed below as the baseline for calculating energy savings.  If a different energy code applies, please contact \" & IF(InstallState=\"\",\"Rocky Mountain Power/Pacific Power\",INDEX(Lookups!$E$2:$E$6,MATCH(InstallState,Lookups!$D$2:$D$6,0))) & \".\"","v":"This calculator uses the energy codes listed below as the baseline for calculating energy savings.  If a different energy code applies, please contact Rocky Mountain Power."}]
[null,null,null,null,{"$f":"\"California: \"","v":"California: "},{"$f":" INDEX(EnergyCodeBaseline_List,MATCH(\"CA\",StateAbrev_List,0))","v":"2019 Building Efficiency Standards"}]
[null,null,null,null,{"$f":"\"Idaho: \"","v":"Idaho: "},{"$f":"INDEX(EnergyCodeBaseline_List,MATCH(\"ID\",StateAbrev_List,0))","v":"International Energy Conservation Code 2009"}]
[null,null,null,null,{"$f":"\"Utah: \"","v":"Utah: "},{"$f":"INDEX(EnergyCodeBaseline_List,MATCH(\"UT\",StateAbrev_List,0))","v":"International Energy Conservation Code 2015"}]
[null,null,null,null,{"$f":"\"Washington: \"","v":"Washington: "},{"$f":"INDEX(EnergyCodeBaseline_List,MATCH(\"WA\",StateAbrev_List,0))","v":"Washington State Energy Code 2015"}]
[null,null,null,null,{"$f":"\"Wyoming: \"","v":"Wyoming: "},{"$f":"INDEX(EnergyCodeBaseline_List,MATCH(\"WY\",StateAbrev_List,0))","v":"International Energy Conservation Code 2009"}]
[]
[null,"Applicable Tariffs"]
[null,null,null,{"$f":"\"The incentives are calculated in accordance with the applicable state tariff, with the effective date for each as listed below.  For equipment purchased prior to these dates, please contact \" & IF(InstallState=\"\",\"Rocky Mountain Power/Pacific Power\",INDEX(Lookups!$E$2:$E$6,MATCH(InstallState,Lookups!$D$2:$D$6,0))) & \".\"","v":"The incentives are calculated in accordance with the applicable state tariff, with the effective date for each as listed below.  For equipment purchased prior to these dates, please contact Rocky Mountain Power."}]
[null,null,null,null,"California A-115:",{"$f":"VLOOKUP(LEFT(E48,2),TariffTable,2,FALSE)","v":"September 24, 2020"}]
[null,null,null,null,"Idaho 115:  ",{"$f":"VLOOKUP(LEFT(E49,2),TariffTable,2,FALSE)","v":"January 20, 2018"}]
[null,null,null,null,"Utah 140:",{"$f":"VLOOKUP(LEFT(E50,2),TariffTable,2,FALSE)","v":"April 23, 2019"}]
[null,null,null,null,"Washington 140:",{"$f":"VLOOKUP(LEFT(E51,2),TariffTable,2,FALSE)","v":"August 1, 2020"}]
[null,null,null,null,"Wyoming 140:",{"$f":"VLOOKUP(LEFT(E52,2),TariffTable,2,FALSE)","v":"October 2, 2020"}]
[]
[null,"Note"]
[]
[null,null,null,"The FinAnswer Express program is transitioning to a new name: wattsmart Business. The name has changed for the Idaho, Utah, Washington and Wyoming territories and is expected to change soon for the territories in California."]

{"sheet":"Application NEW","index":4,"n_rows":109,"n_cols":48,"rows_kept":109,"cut":false,"hidden":true,"merged":[[16,39,16,43],[16,44,16,48],[17,29,17,48],[17,5,17,28],[31,44,31,48],[22,5,22,48],[15,5,15,28],[15,29,15,38],[15,39,15,43],[15,44,15,48],[14,5,14,48],[11,5,11,17],[13,5,13,48],[9,5,9,48],[10,5,10,48],[18,5,18,28],[23,5,23,30],[23,31,23,48],[29,5,29,48],[19,17,19,27],[24,5,24,48],[25,7,25,15],[25,17,25,24],[25,26,25,30],[25,32,25,36],[25,38,25,42],[25,44,25,48],[18,29,18,48],[28,5,28,48],[19,5,19,16],[19,29,19,48],[20,5,20,16],[16,5,16,28],[16,29,16,38],[35,5,36,15],[35,16,36,28],[35,29,35,48],[36,29,36,48],[33,16,34,38],[33,5,34,15],[33,44,34,48],[33,39,34,43],[20,17,20,28],[20,29,20,48],[32,5,32,28],[32,29,32,38],[32,39,32,43],[32,44,32,48],[30,5,30,48],[31,5,31,28],[31,29,31,38],[31,39,31,43],[70,7,70,25],[71,7,71,25],[37,5,37,48],[39,7,39,18],[41,7,41,18],[43,7,43,18],[45,7,45,18],[47,7,47,18],[40,20,47,47],[39,20,39,47],[53,5,53,28],[53,29,53,38],[53,39,53,43],[53,44,53,48],[54,5,54,28],[54,29,54,38],[54,39,54,43],[54,44,54,48],[50,5,50,48],[51,5,51,48],[52,5,52,48],[96,5,96,24],[98,5,100,31],[55,5,55,28],[56,5,56,28],[55,29,55,48],[56,29,56,48],[75,7,75,25],[76,7,76,25],[65,5,65,48],[59,5,59,48],[61,6,61,20],[61,22,61,36],[61,38,61,47],[62,6,62,20],[62,22,62,36],[62,38,62,47],[68,5,68,25],[74,5,74,25],[72,7,73,25],[67,28,76,48],[58,5,58,48],[60,5,60,48],[67,5,67,25],[69,7,69,25],[108,33,109,47],[100,33,104,47],[105,33,106,47],[98,33,98,47],[99,33,99,47],[102,7,102,31],[104,7,104,31],[106,7,106,31],[108,7,108,31],[83,28,87,48],[77,28,82,48],[77,7,77,25],[80,7,80,25],[82,7,82,25],[85,7,85,25],[94,5,94,24],[95,5,95,24],[78,6,79,6],[78,7,79,25],[88,5,88,25],[92,5,92,25],[93,5,93,25],[86,7,86,25],[87,7,87,25],[89,5,91,25],[81,5,81,25],[83,6,84,6],[83,7,84,25],[93,28,93,48],[92,28,92,48],[88,28,91,48]]}
[]
[]
[]
[]
[]
[null,null,null,null,null,"General Application"]
[]
[]
[]
[null,null,null,null,null,"PARTICIPANT INFORMATION"]
[null,null,null,null,null,"(Check will be issued to the business name and address listed below unless the payment release section below has been filled out)"]
[null,null,null,null,null,"Participant is (check all that apply)",null,null,null,null,null,null,null,null,null,null,null,null,{"$f":"IF(CheckBoxLink_AccountHolder=TRUE,\"X\",\"\")","v":""},"Customer",null,null,null,null,null,{"$f":"IF(CheckBoxLink_FacilityOwner=TRUE,\"X\",\"\")","v":""},"Facility Owner",null,null,null,null,null,{"$f":"IF(CheckBoxLink_ElectricityUser=TRUE,\"X\",\"\")","v":""},"Tenant/Electricity user"]
[null,null,null,null,null,null,null,null,null,null,null,null,null,null,null,null,null,null,false,null,null,null,null,null,null,false,null,null,null,null,null,null,false]
[null,null,null,null,null,"Participant business name (As shown on income tax return):"]
[null,null,null,null,null,{"$f":"CustomerBusinessName","v":0}]
[null,null,null,null,null,"Mailing address:",null,null,null,null,null,null,null,null,null,null,null,null,null,null,null,null,null,null,null,null,null,null,null,"City:",null,null,null,null,null,null,null,null,null,"State:",null,null,null,null,"Zip:"]
[null,null,null,null,null,{"$f":"CustomerAddress","v":0},null,null,null,null,null,null,null,null,null,null,null,null,null,null,null,null,null,null,null,null,null,null,null,{"$f":"CustomerCity","v":0},null,null,null,null,null,null,null,null,null,{"$f":"CustomerState","v":0},null,null,null,null,{"$f":"CustomerZip","v":0}]
[null,null,null,null,null,"Contact name:",null,null,null,null,null,null,null,null,null,null,null,null,null,null,null,null,null,null,null,null,null,null,null,"Contact title:"]
[null,null,null,null,null,{"$f":"CustomerContactName","v":0},null,null,null,null,null,null,null,null,null,null,null,null,null,null,null,null,null,null,null,null,null,null,null,{"$f":"CustomerContactTitle","v":0}]
[null,null,null,null,null,"Contact telephone number:",null,null,null,null,null,null,null,null,null,null,null,"Cell number:",null,null,null,null,null,null,null,null,null,null,false,"Contact email address:"]
[null,null,null,null,null,{"$f":"IF(CheckboxLink_CellPhone=FALSE,CustomerContactPhone,0)","v":0},null,null,null,null,null,null,null,null,null,null,null,{"$f":"IF(CheckboxLink_CellPhone=TRUE,CustomerContactPhone,0)","v":0},null,null,null,null,null,null,null,null,null,null,null,{"$f":"CustomerContactEmail","v":0}]
[]
[null,null,null,null,null,"TAXPAYER IDENTIFICATION (Must be complete in order to receive an incentive)"]
[null,null,null,null,null,"Participant Federal taxpayer ID number (EIN) or SS#:",null,null,null,null,null,null,null,null,null,null,null,null,null,null,null,null,null,null,null,null,null,null,null,null,null,"____ ____ ____ ____ ____ ____ ____ ____ ____"]
[null,null,null,null,null,"Please check the appropriate box:"]
[null,null,null,null,null,null,null,"Individual or Sole Proprietor",null,null,null,null,null,null,null,null,null,"LLC, LLP, or Partnership",null,null,null,null,null,null,null,null,"C Corporation",null,null,null,null,null,"S Corporation",null,null,null,null,null,"Trust/Estate",null,null,null,null,null,"Exempt Payee"]
[]
[]
[null,null,null,null,null,"PROJECT SITE INFORMATION"]
[null,null,null,null,null,"Facility/Project name:"]
[null,null,null,null,null,{"$f":"ProjectName","v":0}]
[null,null,null,null,null,"Facility address:",null,null,null,null,null,null,null,null,null,null,null,null,null,null,null,null,null,null,null,null,null,null,null,"City:",null,null,null,null,null,null,null,null,null,"State:",null,null,null,null,"Zip:"]
[null,null,null,null,null,{"$f":"InstallAddress","v":0},null,null,null,null,null,null,null,null,null,null,null,null,null,null,null,null,null,null,null,null,null,null,null,{"$f":"InstallCity","v":0},null,null,null,null,null,null,null,null,null,{"$f":"InstallState","v":"WY"},null,null,null,null,{"$f":"InstallZip","v":0}]
[null,null,null,null,null,"Commercial/Industrial electric account #:",null,null,null,null,null,null,null,null,null,null,{"$f":"AccountNumber","v":0},null,null,null,null,null,null,null,null,null,null,null,null,null,null,null,null,null,null,null,null,null,null,"Rate Schedule:",null,null,null,null,{"$f":"RateSchedule","v":0}]
[]
[null,null,null,null,null,"Electric meter number – seven or eight digits: (If multiple meters at site only enter one)",null,null,null,null,null,null,null,null,null,null,{"$f":"MeterNumber","v":0},null,null,null,null,null,null,null,null,null,null,null,null,"Customer name: (As shown on bill)"]
[null,null,null,null,null,null,null,null,null,null,null,null,null,null,null,null,null,null,null,null,null,null,null,null,null,null,null,null,null,{"$f":"AccountName","v":0}]
[null,null,null,null,null,"Please provide a description of your project so we may better help you: "]
[]
[null,null,null,null,null,null,null,"Lighting Retrofit",null,null,null,null,null,null,null,null,null,null,null,null,"Additional project information: (scope and schedule)"]
[]
[null,null,null,null,null,null,"X","Listed Equipment Incentives"]
[]
[null,null,null,null,null,null,{"$f":"IF(OR(ProjectType=\"New Construction\",ProjectType=\"Major Renovation\"),\"X\",\"\")","v":""},"New Construction"]
[]
[null,null,null,null,null,null,null,"Custom or Energy Management Incentives"]
[]
[null,null,null,null,null,null,null,"Other:________________________________"]
[]
[]
[null,null,null,null,null,"INCENTIVE ASSIGNMENT (Complete only if incentive is to be assigned to someone other than participant above)"]
[null,null,null,null,null,"Check should be made out to:"]
[null,null,null,null,null,{"$f":"IF(OR(IncentivePayeeSelector=\"Participant Business Address\",IncentivePayeeSelector=\"Project Address\"),\"n/a\",PayeeBusinessName)","v":0}]
[null,null,null,null,null,"Mailing address:",null,null,null,null,null,null,null,null,null,null,null,null,null,null,null,null,null,null,null,null,null,null,null,"City:",null,null,null,null,null,null,null,null,null,"State:",null,null,null,null,"Zip:"]
[null,null,null,null,null,{"$f":"IF(OR(IncentivePayeeSelector=\"Participant Business Address\",IncentivePayeeSelector=\"Project Address\"),\"n/a\",PayeeAddress)","v":0},null,null,null,null,null,null,null,null,null,null,null,null,null,null,null,null,null,null,null,null,null,null,null,{"$f":"IF(OR(IncentivePayeeSelector=\"Participant Business Address\",IncentivePayeeSelector=\"Project Address\"),\"n/a\",PayeeCity)","v":0},null,null,null,null,null,null,null,null,null,{"$f":"IF(OR(IncentivePayeeSelector=\"Participant Business Address\",IncentivePayeeSelector=\"Project Address\"),\"n/a\",PayeeState)","v":0},null,null,null,null,{"$f":"IF(OR(IncentivePayeeSelector=\"Participant Business Address\",IncentivePayeeSelector=\"Project Address\"),\"n/a\",PayeeZip)","v":0}]
[null,null,null,null,null,"Contact name:",null,null,null,null,null,null,null,null,null,null,null,null,null,null,null,null,null,null,null,null,null,null,null,"Contact telephone:"]
[null,null,null,null,null,{"$f":"IF(OR(IncentivePayeeSelector=\"Participant Business Address\",IncentivePayeeSelector=\"Project Address\"),\"n/a\",PayeeContactName)","v":0},null,null,null,null,null,null,null,null,null,null,null,null,null,null,null,null,null,null,null,null,null,null,null,{"$f":"IF(OR(IncentivePayeeSelector=\"Participant Business Address\",IncentivePayeeSelector=\"Project Address\"),\"n/a\",PayeeContactPhone)","v":0}]
[]
[null,null,null,null,null,"APPLICATION ACKNOWLEDGEMENT"]
[null,null,null,null,null,{"$f":"\"By my signature below, I certify that all information provided for participation will be accurate including but not limited to supplemental material and claims of \" & \"participant and equipment information. I confirm I have read, understand and agree with the TERMS AND CONDITIONS and agree to be bound by them. I authorize \" & INDEX(UtilityName_List,MATCH(InstallState,StateAbrev_List,0)) & \" to provide my electric account information to consultants associated with the wattsmart Business program.\"","v":"By my signature below, I certify that all information provided for participation will be accurate including but not limited to supplemental material and claims of participant and equipment information. I confirm I have read, understand and agree with the TERMS AND CONDITIONS and agree to be bound by them. I authorize Rocky Mountain Power to provide my electric account information to consultants associated with the wattsmart Business program."}]
[null,null,null,null,null,"                                                                            Under penalties of perjury, I certify that: 1) The taxpayer identification number is correct, and 2) I am not subject to backup withholding due to failure to report interest and dividend income, and 3) I am a U.S. citizen, resident alien or other U.S. person. The Internal Revenue Service does not require your consent to any provision of this document other than the certifications required to avoid backup withholding."]
[]
[null,null,null,null,null,null,"Signatory name & title (please print)",null,null,null,null,null,null,null,null,null,null,null,null,null,null,null,"Participant signature",null,null,null,null,null,null,null,null,null,null,null,null,null,null,null,"Date"]
[null,null,null,null,null,null,{"$f":"\"Effective \" & VLOOKUP(InstallState,HVAC!$AE$4:$AG$8,2,FALSE) & \"    v12/23/2013\"","v":"Effective October 2, 2020    v12/23/2013"},null,null,null,null,null,null,null,null,null,null,null,null,null,null,null,null,null,null,null,null,null,null,null,null,null,null,null,null,null,null,null,null,null,null,null,null,null,null,null,null,"wattsmart is registered in U.S. Patent and Trademark Office."]
[]
[null,null,null,null,null,"TERMS & CONDITIONS"]
[]
[null,null,null,null,null,"How to participate:",null,null,null,null,null,null,null,null,null,null,null,null,null,null,null,null,null,null,null,null,null,null,{"$f":"INDEX(UtilityName_List,MATCH(InstallState,StateAbrev_List,0)) & \" does not warrant the performance of qualifying installed equipment/energy management measures and does not warrant that the qualifying installed equipment/energy management measures will deliver any specified amount of energy or cost savings. \" & \"Participant shall independently evaluate any advice or direction given by \" & INDEX(UtilityName_List,MATCH(InstallState,StateAbrev_List,0)) & \" or its consultants related to the estimates of electricity savings or the cost, selection or installation of qualifying equipment/energy management measures. \" & \"In no event will \" & INDEX(UtilityName_List,MATCH(InstallState,StateAbrev_List,0)) & \" or its consultants be liable for the failure of the participant to achieve its expected amount of energy savings, for any personal injury or harm to participant’s facilities of any kind, \" & \"or for any incidental or consequential damages of any kind including hazardous material identification in connection with installation or inspection of qualifying equipment and energy management measures. \" & INDEX(UtilityName_List,MATCH(InstallState,StateAbrev_List,0)) & \" is not responsible if a third party provides inaccurate information about the amount and/or conditions of the actual incentive and \" & INDEX(UtilityName_List,MATCH(InstallState,StateAbrev_List,0)) & \" will not pay incentives for equipment that is mislabeled or misrepresented by third parties regarding incentive qualifications.\"","v":"Rocky Mountain Power does not warrant the performance of qualifying installed equipment/energy management measures and does not warrant that the qualifying installed equipment/energy management measures will deliver any specified amount of energy or cost savings. Participant shall independently evaluate any advice or direction given by Rocky Mountain Power or its consultants related to the estimates of electricity savings or the cost, selection or installation of qualifying equipment/energy management measures. In no event will Rocky Mountain Power or its consultants be liable for the failure of the participant to achieve its expected amount of energy savings, for any personal injury or harm to participant’s facilities of any kind, or for any incidental or consequential damages of any kind including hazardous material identification in connection with installation or inspection of qualifying equipment and energy management measures. Rocky Mountain Power is not responsible if a third party provides inaccurate information about the amount and/or conditions of the actual incentive and Rocky Mountain Power will not pay incentives for equipment that is mislabeled or misrepresented by third parties regarding incentive qualifications."}]
[null,null,null,null,null,"Typical incentives:"]
[null,null,null,null,null,null,"1.","Pre-qualification is recommended but not required."]
[null,null,null,null,null,null,"2.","Purchase and install qualifying equipment."]
[null,null,null,null,null,null,"3.","Complete general application, technology-specific supplemental equipment form(s), and IRS Form W-9."]
[null,null,null,null,null,null,"4.","Submit application and all required supplemental forms as directed on supplemental form(s)."]
[]
[null,null,null,null,null,"Lighting retrofit incentives: "]
[null,null,null,null,null,null,"1.","Pre-qualification is required prior to equipment purchase. Submit general application and IRS Form W-9 to your Project Manager or a wattsmart Business Vendor."]
[null,null,null,null,null,null,"2.","Participate in inspections prior to the installation or removal of any equipment."]
[null,null,null,null,null,null,"3.","Incentive offer will be provided to eligible participants. \nReturn signed incentive offer.",null,null,null,null,null,null,null,null,null,null,null,null,null,null,null,null,null,null,null,null,{"$f":"\"                             \" & \"  The incentive offer is an estimate. The final incentive will be based on actual electric savings and approved actual project costs incurred by the participant for implemented approved energy efficiency measures. \" & \"Participant agrees to provide any reasonable documentation to allow \" & INDEX(UtilityName_List,MATCH(InstallState,StateAbrev_List,0)) & \" to determine electric savings and actual costs incurred. To the extent that \" & INDEX(UtilityName_List,MATCH(InstallState,StateAbrev_List,0)) & \" determines (at its sole discretion) that any of the recommended measures have not been installed and commissioned in a satisfactory manner, \" & \"participant shall receive a reduced incentive, if any, based on the inspection and verification of installed and commissioned measures.\"","v":"                               The incentive offer is an estimate. The final incentive will be based on actual electric savings and approved actual project costs incurred by the participant for implemented approved energy efficiency measures. Participant agrees to provide any reasonable documentation to allow Rocky Mountain Power to determine electric savings and actual costs incurred. To the extent that Rocky Mountain Power determines (at its sole discretion) that any of the recommended measures have not been installed and commissioned in a satisfactory manner, participant shall receive a reduced incentive, if any, based on the inspection and verification of installed and commissioned measures."}]
[null,null,null,null,null,null,"4.","Complete project and notify your assigned Project Manager or wattsmart Vendor."]
[]
[null,null,null,null,null,null,"5.","Provide all required documentation and participate in any required inspections."]
[null,null,null,null,null,"Custom and energy management incentives: "]
[null,null,null,null,null,null,"1.","Pre-qualification is required prior to equipment purchase/project implementation. Submit general application and IRS Form W-9."]
[null,null,null,null,null,null,"2.","Participate in project scoping meeting(s), inspections and engineering analysis(s) prior to installation or removal of equipment. Provide additional supplemental applications or information as needed.",null,null,null,null,null,null,null,null,null,null,null,null,null,null,null,null,null,null,null,null,{"$f":"\"                                                               \"&\"If Participant terminates a material portion of its electric service requirements from \"&INDEX(UtilityName_List,MATCH(InstallState,StateAbrev_List,0))&\"for Participant's Facility within up to 120 months of the date of final incentive payment, Participant is obligated to repay the final incentive to \"&INDEX(UtilityName_List,MATCH(InstallState,StateAbrev_List,0))&\"within 30 days of written request. The repayment (\"\"Repayment\"\"\"&\") will be determined as follows:\"&CONCATENATE(\" Repayment = final incentive x (120-Savings Delivery Term)/120, where Savings Delivery Term = number of months between the month the Final Incentive payment was made and the month the Facility terminated a material portion of its electric service.\")&CONCATENATE(\"For determining the repayment, the dates will be the first day of the month in which they occur.\")","v":"                                                               If Participant terminates a material portion of its electric service requirements from Rocky Mountain Powerfor Participant's Facility within up to 120 months of the date of final incentive payment, Participant is obligated to repay the final incentive to Rocky Mountain Powerwithin 30 days of written request. The repayment (\"Repayment\") will be determined as follows: Repayment = final incentive x (120-Savings Delivery Term)/120, where Savings Delivery Term = number of months between the month the Final Incentive payment was made and the month the Facility terminated a material portion of its electric service.For determining the repayment, the dates will be the first day of the month in which they occur."}]
[]
[null,null,null,null,null,null,"3.","Incentive offer(s) will be provided to eligible participants. Return signed incentive offer within the required time."]
[null,null,null,null,null,null,"4.","Complete project and provide completion notification to your assigned Project Manager."]
[null,null,null,null,null,null,"5.","Provide all required documentation and participate in any required inspections."]
[null,null,null,null,null,{"$f":"\"                                                                     \" & \"In the event that \" & INDEX(UtilityName_List,MATCH(InstallState,StateAbrev_List,0)) & \" does not pay the incentive as a result of the participant’s failure to comply with the terms and conditions, the assignee’s sole recourse shall be against participant.\"","v":"                                                                     In the event that Rocky Mountain Power does not pay the incentive as a result of the participant’s failure to comply with the terms and conditions, the assignee’s sole recourse shall be against participant."},null,null,null,null,null,null,null,null,null,null,null,null,null,null,null,null,null,null,null,null,null,null,{"$f":"\"                                                                       \" & \"  Participant hereby transfers to \" & INDEX(UtilityName_List,MATCH(InstallState,StateAbrev_List,0)) & \" all \"\"Environmental Attributes\"\" attributable to the installation of the qualifying equipment or its operation. \" & \"Environmental Attributes include any and all credits, benefits, emissions reductions, offsets and allowances, howsoever entitled, resulting from the avoidance of the emission of any substance to the air, \" & \"soil or water at or by the company’s generating facilities, through reduced generation of energy or other savings or offsets on account of the qualifying equipment.  \" & \"Participant will not claim ownership of any Environmental Attributes.  \" & \"As long as participant at the same time states the installation of the qualifying equipment was made possible with funding from \" & INDEX(UtilityName_List,MATCH(InstallState,StateAbrev_List,0)) & \", participant may claim that it is facilitating the production of the Environmental Attributes attributable to the qualifying equipment.\"","v":"                                                                         Participant hereby transfers to Rocky Mountain Power all \"Environmental Attributes\" attributable to the installation of the qualifying equipment or its operation. Environmental Attributes include any and all credits, benefits, emissions reductions, offsets and allowances, howsoever entitled, resulting from the avoidance of the emission of any substance to the air, soil or water at or by the company’s generating facilities, through reduced generation of energy or other savings or offsets on account of the qualifying equipment.  Participant will not claim ownership of any Environmental Attributes.  As long as participant at the same time states the installation of the qualifying equipment was made possible with funding from Rocky Mountain Power, participant may claim that it is facilitating the production of the Environmental Attributes attributable to the qualifying equipment."}]
[null,null,null,null,null,{"$f":"\"                                               \" & \"   Participant agrees to cooperate with \" & INDEX(UtilityName_List,MATCH(InstallState,StateAbrev_List,0)) & \" and its consultants to conduct energy analysis and inspections at the participant's site. \" & INDEX(UtilityName_List,MATCH(InstallState,StateAbrev_List,0)) & \" reserves the right to inspect qualifying equipment/energy management measures, which may include a telephone survey, site visit, \" & \"and/or the installation of temporary monitoring equipment at any time up to 36 months after installation for quality control or program performance evaluations.\"","v":"                                                  Participant agrees to cooperate with Rocky Mountain Power and its consultants to conduct energy analysis and inspections at the participant's site. Rocky Mountain Power reserves the right to inspect qualifying equipment/energy management measures, which may include a telephone survey, site visit, and/or the installation of temporary monitoring equipment at any time up to 36 months after installation for quality control or program performance evaluations."}]
[]
[]
[null,null,null,null,null,{"$f":"\"                         \" & \"Neither \" & INDEX(UtilityName_List,MATCH(InstallState,StateAbrev_List,0)) & \" nor its Program Administrator is providing tax advice or responsible for any tax liability which may be imposed on the participant as a result of any incentive payment. \" & \"Participant may be responsible for the tax reporting to the IRS of any incentive payments directed to third parties.                                       \"","v":"                         Neither Rocky Mountain Power nor its Program Administrator is providing tax advice or responsible for any tax liability which may be imposed on the participant as a result of any incentive payment. Participant may be responsible for the tax reporting to the IRS of any incentive payments directed to third parties.                                       "},null,null,null,null,null,null,null,null,null,null,null,null,null,null,null,null,null,null,null,null,null,null,{"$f":"\"                                   \" & \"  Incentive qualifications and amounts are subject to change and termination at any time. \" & \"Visit the program’s website or contact a wattsmart Business vendor or \" & INDEX(UtilityName_List,MATCH(InstallState,StateAbrev_List,0)) & \" for current program information.\"","v":"                                     Incentive qualifications and amounts are subject to change and termination at any time. Visit the program’s website or contact a wattsmart Business vendor or Rocky Mountain Power for current program information."}]
[null,null,null,null,null,{"$f":"\"                                                                                        \" & \"Participants may not receive custom incentives in lieu of typical (listed) incentives. \" & \"Participants are responsible for ensuring that equipment installed for this program meets all applicable codes, standards, environmental regulations and regulatory requirements.\"","v":"                                                                                        Participants may not receive custom incentives in lieu of typical (listed) incentives. Participants are responsible for ensuring that equipment installed for this program meets all applicable codes, standards, environmental regulations and regulatory requirements."},null,null,null,null,null,null,null,null,null,null,null,null,null,null,null,null,null,null,null,null,null,null,{"$f":"\"                                                \" & \"Confidential information provided to \" & INDEX(UtilityName_List,MATCH(InstallState,StateAbrev_List,0)) & \" or consultants shall not be disclosed to any third party. Confidential information shall mean data disclosed during the course of the energy analysis, \" & \"and identified by the participant in writing as confidential. The obligation to protect confidential information will remain in force for two (2) years from the date the energy analysis is performed.\"","v":"                                                Confidential information provided to Rocky Mountain Power or consultants shall not be disclosed to any third party. Confidential information shall mean data disclosed during the course of the energy analysis, and identified by the participant in writing as confidential. The obligation to protect confidential information will remain in force for two (2) years from the date the energy analysis is performed."}]
[]
[null,null,null,null,null,"Application Supplemental"]
[null,null,null,null,null,"HVAC - Air-conditioners & Heat Pumps"]
[]
[null,null,null,null,null,"To apply for wattsmart Business incentives, complete this application supplement and send it with the general incentive application to the address to the right. Please review and confirm each of the qualifying criteria below, as applicable.",null,null,null,null,null,null,null,null,null,null,null,null,null,null,null,null,null,null,null,null,null,null,null,null,null,null,null,"Send completed application by email, mail, or fax to:"]
[null,null,null,null,null,null,null,null,null,null,null,null,null,null,null,null,null,null,null,null,null,null,null,null,null,null,null,null,null,null,null,null,null,{"$f":"INDEX(HVACEmail_List,MATCH(InstallState,StateAbrev_List,0))","v":"wy.hvacr@rockymountainpower.net"}]
[null,null,null,null,null,null,null,null,null,null,null,null,null,null,null,null,null,null,null,null,null,null,null,null,null,null,null,null,null,null,null,null,null,{"$f":"\"wattsmart Business\n\" &\nINDEX(MailAddress1_List,MATCH(InstallState,StateAbrev_List,0)) & \"\n\" &\nINDEX(MailCity_List,MATCH(InstallState,StateAbrev_List,0)) & \", \" & INDEX(MailState,MATCH(InstallState,StateAbrev_List,0)) & \"  \" & INDEX(MailZip_List,MATCH(InstallState,StateAbrev_List,0))","v":"wattsmart Business\n2223 S Highland Drive #E6-333\nSalt Lake City, UT  84106"}]
[]
[null,null,null,null,null,null,null,"Equipment is installed and operating at the site listed on the general application."]
[]
[null,null,null,null,null,null,null,"The dated sales receipt or invoice is included with labor and material costs itemized."]
[null,null,null,null,null,null,null,null,null,null,null,null,null,null,null,null,null,null,null,null,null,null,null,null,null,null,null,null,null,null,null,null,null,{"$f":"INDEX(ApplyToFaxNL_List,MATCH(InstallState,StateAbrev_List,0)) & \" - fax\"","v":"1-801-266-4787 - fax"}]
[null,null,null,null,null,null,null,"Manufacturer’s specification sheet for each installed equipment model is included."]
[]
[null,null,null,null,null,null,null,"Completed application is submitted within six months of project completion.",null,null,null,null,null,null,null,null,null,null,null,null,null,null,null,null,null,null,null,null,null,null,null,null,null,"For additional information or assistance,\nplease call 1-855-805-7231"]

{"sheet":"Lookups","index":5,"n_rows":75,"n_cols":88,"rows_kept":75,"cut":false,"hidden":true,"merged":[]}
["Year","YearPlusOne","StateName","StateAbrev","UtilityName","UtilityWebsite","AllianceWebsite","UtilityHotline","FXHotline","UtilityEmail","UtilityFax","VersionNmbr","ApplicationVersionNmber","EffectiveDate","CustInct","CustCap","HVACEmail","MotorsEmail","FoodServiceEmail","IrrigationEmail","BldgEnvEmail","LightingEmail","CompAirEmail","FarmDairyEmail","OtherEmail","NLApplicationEmail","RateSchedule","MailAddress1","MailAddress2","MailCity","MailState","MailZip","States","OtherUtilityName","State1","State2","State3","State1Abb","State2Abb","State3Abb","ST1_RT_Schedule","ST2_RT_Schedule","ST3_RT_Schedule","ST1_CRD Name","ST1_CRD Info","ST1_CRD Number","ST1_CRD Email","ST2_CRD Name","ST2_CRD Number","ST2_CRD Info","ST2_CRD Email","ST3_CRD Name","ST3_CRD Number","ST3_CRD Info","ST3_CRD Email","Costpercentage","Purchase Directions","Purchase Directions","NC/MR Pre Purchase Directions","Letter of intent Note","Retrofit Directions","IA Retrofit Directions","Other Utility Directions","St1RetroLightingProcess","St1NCMRLightingProcess","St1NonlightProcess","St1CustomProcess","St2RetroLightingProcess","St2NCMRLightingProcess","St2NonlightProcess","St2CustomProcess","St3RetroLightingProcess","St3NCMRLightingProcess","St3NonlightProcess","St3CustomProcess","HESWebsite","ST1FinAnswerWebsite","ST2FinAnswerWebsite","ST3FinAnswerWebsite","BSTWebsite","EmailSuffix","EnergyCodeBaseline","CodeEffDate","AbbreviatedCode","Tariff #","ApplyToFaxNL","ApplyToFaxLtg","Program name"]
[2020,{"$f":"A2+1","v":2021},"Utah","UT","Rocky Mountain Power","wattsmart.com","rockymountainpower.net/alliance","1-800-222-4335","1-866-415-9800","energy.expert@rockymountainpower.net","801-233-0883","V 11/14/12","V 07/01/13","2014-07-01",0.1,50,"ut.hvacr@rockymountainpower.net","ut.motors@rockymountainpower.net","ut.foodservice@rockymountainpower.net","ut.irrigation@rockymountainpower.net","ut.bldgenvelope@rockymountainpower.net","ut.lighting@rockymountainpower.net","ut.compair@rockymountainpower.net","ut.farmdairy@rockymountainpower.net","ut.othertech@rockymountainpower.net","ut.finanswerexpress@rockymountainpower.net","6, 6A, 6B, 8, 9, 9A, 10, 12, 15, 21, 23, Supplementary service under Schedule 31","2223 S Highland Drive #E6-333",null,"Salt Lake City","UT",84106,"Utah, Wyoming and Idaho","Pacific Power","Utah","Wyoming","Idaho","UT","WY","ID","6, 6A, 6B, 8, 9, 9A, 10, 12, 15, 21, 23, Supplementary service under Schedule 31","25, 28, 33, 40, 46, 48, 54, 58, 210, 212, 213","6, 6A, 8, 9, 12, 19, 23, 23A, 24, 35, 35A","Mark Clary",null,"801.233.0882","ut.lighting@rockymountainpower.net","Jim Soukup","307.235.0438",null,"wy.lighting@rockymountainpower.net","William Gatchel","541.727.5386",null,"id.lighting@rockymountainpower.net",50,"Lighting retrofits must have a signed incentive agreement prior to purchase of equipment",null,null,null,null,null,null,"Pre-purchase Agreement","Post-purchase Application","Post-purchase Application","Pre-purchase Agreement","Pre-purchase Agreement","Post-purchase Application","Post-purchase Application","Pre-purchase Agreement","Pre-purchase Agreement","Post-purchase Application","Post-purchase Application","Pre-purchase Agreement","www.homeenergysavings.net","www.rockymountainpower.net/bus/se/epi/utah/ilc/ef.html","www.rockymountainpower.net/bus/se/epi/wyoming/ilc/ef.html","www.rockymountainpower.net/bus/se/epi/idaho/ilc/ef.html","www.rockymountainpower.net/bus/bst.html","@rockymountainpower.net","International Energy Conservation Code 2015","2010-07-01","IECC 2015",140,"1-801-266-4786","1-801-233-0883","wattsmart Business"]
[2020,{"$f":"A3+1","v":2021},"Wyoming","WY","Rocky Mountain Power","rockymountainpower.net/wattsmart","rockymountainpower.net/alliance","1-800-222-4335","1-866-415-9800","energy.expert@rockymountainpower.net","307-333-4952","V 10/01/11","V 01/01/13","2011-10-01",0.1,70,"wy.hvacr@rockymountainpower.net","wy.motors@rockymountainpower.net","wy.foodservice@rockymountainpower.net","wy.irrigation@rockymountainpower.net","wy.bldgenvelope@rockymountainpower.net","wy.lighting@rockymountainpower.net","wy.compair@rockymountainpower.net","wy.farmdairy@rockymountainpower.net","wy.othertech@rockymountainpower.net","wy.finanswerexpress@rockymountainpower.net","25, 28, 33, 40, 46, 48T, 54, 58, 210, 212, 213","2223 S Highland Drive #E6-333",null,"Salt Lake City","UT",84106,"Utah, Wyoming and Idaho","Pacific Power","Utah","Wyoming","Idaho","UT","WY","ID","6, 6A, 6B, 8, 9, 9A, 10, 12, 15, 21, 23, Supplementary service under Schedule 31","25, 28, 33, 40, 46, 48, 54, 58, 210, 212, 213","6, 6A, 8, 9, 12, 19, 23, 23A, 24, 35, 35A","Mark Clary",null,"801.233.0882","ut.lighting@rockymountainpower.net","Jim Soukup","307.235.0438",null,"wy.lighting@rockymountainpower.net","William Gatchel","541.727.5386",null,"id.lighting@rockymountainpower.net",50,null,null,null,null,null,null,null,"Pre-purchase Agreement","Post-purchase Application","Post-purchase Application","Pre-purchase Agreement","Pre-purchase Agreement","Post-purchase Application","Post-purchase Application","Pre-purchase Agreement","Pre-purchase Agreement","Post-purchase Application","Post-purchase Application","Pre-purchase Agreement","www.homeenergysavings.net","www.rockymountainpower.net/bus/se/epi/utah/ilc/ef.html","www.rockymountainpower.net/bus/se/epi/wyoming/ilc/ef.html","www.rockymountainpower.net/bus/se/epi/idaho/ilc/ef.html","www.rockymountainpower.net/bus/bst.html","@rockymountainpower.net","International Energy Conservation Code 2009","December 1, 2014 (as determined by Rocky Mountain Power)","IECC 2009",140,"1-801-266-4787","1-541-376-8446","wattsmart Business"]
[2020,{"$f":"A4+1","v":2021},"Idaho","ID","Rocky Mountain Power","rockymountainpower.net/wattsmart","rockymountainpower.net/alliance","1-800-222-4335","1-866-415-9800","energy.expert@rockymountainpower.net","541-376-8446","V 07/14/12","V 01/01/13","2014-11-01",0.1,50,"id.hvacr@rockymountainpower.net","id.motors@rockymountainpower.net","id.foodservice@rockymountainpower.net","id.irrigation@rockymountainpower.net","id.bldgenvelope@rockymountainpower.net","id.lighting@rockymountainpower.net","id.compair@rockymountainpower.net","id.farmdairy@rockymountainpower.net","id.othertech@rockymountainpower.net","id.finanswerexpress@rockymountainpower.net","6, 6A, 7, 7A, 9, 12, 19, 23, 23A, 24, 35, 35A","2223 S Highland Drive #E6-333",null,"Salt Lake City","UT",84106,"Utah, Wyoming and Idaho","Pacific Power","Utah","Wyoming","Idaho","UT","WY","ID","6, 6A, 6B, 8, 9, 9A, 10, 12, 15, 21, 23, Supplementary service under Schedule 31","25, 28, 33, 40, 46, 48, 54, 58, 210, 212, 213","6, 6A, 7, 7A, 9, 12, 19, 23, 23A, 24, 35, 35A","Mark Clary",null,"801.233.0882","ut.lighting@rockymountainpower.net","Jim Soukup","307.235.0438",null,"wy.lighting@rockymountainpower.net","William Gatchel","541.727.5386",null,"id.lighting@rockymountainpower.net",50,null,null,null,null,null,null,null,"Pre-purchase Agreement","Post-purchase Application","Post-purchase Application","Pre-purchase Agreement","Pre-purchase Agreement","Post-purchase Application","Post-purchase Application","Pre-purchase Agreement","Pre-purchase Agreement","Post-purchase Application","Post-purchase Application","Pre-purchase Agreement","www.homeenergysavings.net","www.rockymountainpower.net/bus/se/epi/utah/ilc/ef.html","www.rockymountainpower.net/bus/se/epi/wyoming/ilc/ef.html","www.rockymountainpower.net/bus/se/epi/idaho/ilc/ef.html","www.rockymountainpower.net/bus/bst.html","@rockymountainpower.net","International Energy Conservation Code 2009","2011-01-01","IECC 2009",140,"1-801-266-4788","1-503-482-7447","wattsmart Business"]
[2020,{"$f":"A5+1","v":2021},"California","CA","Pacific Power","pacificpower.net/wattsmart","pacificpower.net/alliance","1-800-222-4335","1-866-415-9800","energy.expert@pacificpower.net","(541) 770-2731","V 01/19/12","V 01/01/13","2014-07-01",0.1,70,"ca.hvacr@pacificpower.net","ca.motors@pacificpower.net","ca.foodservice@pacificpower.net","ca.irrigation@pacificpower.net","ca.bldgenvelope@pacificpower.net","ca.lighting@pacificpower.net","ca.compair@pacificpower.net","ca.farmdairy@pacificpower.net","ca.othertech@pacificpower.net","ca.finanswerexpress@pacificpower.net","A-25, A-32, A-33, A-36, AT-47, AT-48, LS-53, LS-58, OL-42, PA-20","6312 SW Capitol Way #1023",null,"Portland","OR",97239,"California and Washington","Rocky Mountain Power","California","Washington",null,"CA","WA",null,"A-25, A-32, A-33, A-36, AT-47, AT-48, AWH-31, LS-53, LS-58, OL-42, PA-20, PA-40","24, 33, 36, 40, 47T, 48T, 54",null,"Bob Greeley",null,"541.601.8088","ca.lighting@pacificpower.net","Lori Sanders","509.727.0394","- Yakima","wa.lighting@pacificpower.net","William Gatchel","541.377.7943","- Walla Walla","wa.lighting@pacificpower.net",60,"Lighting retrofits in Washington must have a signed incentive agreement prior to purchase of equipment.   Lighting retrofits in California may be done post-purchase, but pre-approval is recommended.",null,"Note that pre-purchase incentive agreements are only required in Washington for retrofit projects. Incentive Agreements and Letters of Intent are NOT required for any projects in California or for any New Construction/Major Renovation projects","Note: Letter of Intent is only required for retrofit projects in California.","For Washington retrofit projects, instruct customer not to purchase equipment until an incentive agreement is executed.","For retrofit projects (except in California), the incentive agreement must be signed BEFORE the customer signs purchase orders or installation contracts for the project.","For information on Rocky Mountain Power customer incentives in Oregon, contact the Energy Trust of Oregon at www.energytrust.org. ","Post-purchase Application","Post-purchase Application","Post-purchase Application","Pre-purchase Agreement","Pre-purchase Agreement","Post-purchase Application","Post-purchase Application","Pre-purchase Agreement",null,null,null,null,"www.homeenergysavings.net","www.pacificpower.net/bus/se/epi/california/ilc/ef.html","www.pacificpower.net/bus/se/epi/washington/ilc/ef.html",null,"www.pacificpower.net/bus/bst/index.html","@pacificpower.net","2019 Building Efficiency Standards","2010-01-01","Title 24 2013",140,"1-503-482-7447","1-503-482-7447","wattsmart Business"]
[2020,{"$f":"A6+1","v":2021},"Washington","WA","Pacific Power","bewattsmart.com","pacificpower.net/alliance","1-800-222-4335","1-866-415-9800","energy.expert@pacificpower.net","(541) 376-8446","V 01/01/14","V 01/01/14","2014-01-01",0.1,70,"wa.hvacr@pacificpower.net","wa.motors@pacificpower.net","wa.foodservice@pacificpower.net",null,"wa.bldgenvelope@pacificpower.net","wa.lighting@pacificpower.net","wa.compair@pacificpower.net","wa.farmdairy@pacificpower.net","wa.othertech@pacificpower.net","wa.finanswerexpress@pacificpower.net","24, 33, 36, 40, 47T, 48T, 53, 54","6312 SW Capitol Way #1023",null,"Portland","OR",97239,"California and Washington","Rocky Mountain Power","California","Washington",null,"CA","WA",null,"A-25, A-32, A-33, A-36, AT-47, AT-48, AWH-31, LS-53, LS-58, OL-42, PA-20, PA-40","24, 33, 36, 40, 47T, 48T, 54",null,"Bob Greeley",null,"541.601.8088","ca.lighting@pacificpower.net","Lori Sanders","509.727.0394","- Yakima","wa.lighting@pacificpower.net","William Gatchel","541.377.7943","- Walla Walla","wa.lighting@pacificpower.net",60,null,null,null,null,null,null,null,"Post-purchase Application","Post-purchase Application","Post-purchase Application","Pre-purchase Agreement","Pre-purchase Agreement","Post-purchase Application","Post-purchase Application","Pre-purchase Agreement",null,null,null,null,"www.homeenergysavings.net","www.pacificpower.net/bus/se/epi/california/ilc/ef.html","www.pacificpower.net/bus/se/epi/washington/ilc/ef.html",null,"www.pacificpower.net/bus/bst/index.html","@pacificpower.net","Washington State Energy Code 2015","2013-07-01","WSEC 2015",140,"1-503-482-7447","1-503-482-7447","wattsmart Business"]
[]
[]
[]
[]
[]
["Business Type List",null,"Install States",null,"Rate Schedules","Rate Schedules(truncated)",null,"Incentive Recipient List"]
["Agriculture - Dairy",null,"CA",null,{"$f":"HVAC!BB11","v":"WY 212"},{"$f":"RIGHT(E13,LEN(E13)-3)","v":"212"}]
["Agriculture - Livestock",null,"ID",null,{"$f":"HVAC!BB12","v":"WY 210"},{"$f":"RIGHT(E14,LEN(E14)-3)","v":"210"},null,"Project Address"]
["Agriculture - Poultry",null,"UT",null,{"$f":"HVAC!BB13","v":"WY 58"},"58",null,"Participant Business Address"]
["Agriculture - Sod",null,"WA",null,{"$f":"HVAC!BB14","v":"WY 54"},"54",null,"Other 3rd Party (enter below)"]
["Apartment",null,"WY",null,{"$f":"HVAC!BB15","v":"WY 48T"},"48T"]
["Auditorium",null,null,null,{"$f":"HVAC!BB16","v":"WY 46"},"46"]
["Auto Repair",null,null,null,{"$f":"HVAC!BB17","v":"WY 40"},"40"]
["Automotive facility",null,null,null,{"$f":"HVAC!BB18","v":"WY 33"},"33"]
["Common areas, corridors, restrooms, elevators, lobbies",null,null,null,{"$f":"HVAC!BB19","v":"WY 28"},"28"]
["Condominium",null,null,null,{"$f":"HVAC!BB20","v":"WY 25"},"25"]
["Convenience store",null,null,null,{"$f":"HVAC!BB21","v":"WA 48T"},"48T"]
["Convention Center",null,null,null,{"$f":"HVAC!BB22","v":"WA 40"},"40"]
["Courthouse",null,null,null,{"$f":"HVAC!BB23","v":"WA 36"},"36"]
["Data Center",null,null,null,{"$f":"HVAC!BB24","v":"WA 24"},"24"]
["Dining - Bar Lounge / Leisure",null,null,null,{"$f":"HVAC!BB25","v":0},{"$error":"#VALUE!"}]
["Dining - Cafeteria / Fast Food",null,null,null,{"$f":"HVAC!BB26","v":"UT 23"},"23"]
["Dining - Restaurant",null,null,null,{"$f":"HVAC!BB27","v":"UT 10"},"10"]
["Dormitory",null,null,null,{"$f":"HVAC!BB28","v":"UT 9"},"9"]
["Duplex",null,null,null,{"$f":"HVAC!BB29","v":"UT 9A"},"9A"]
["Exercise Center/Gymnasium",null,null,null,{"$f":"HVAC!BB30","v":"UT 8"},"8"]
["Financial Institution",null,null,null,{"$f":"HVAC!BB31","v":"UT 6"},"6"]
["General commercial/industrial work buildings",null,null,null,{"$f":"HVAC!BB32","v":"OR 48"},"48"]
["Grocery Stores",null,null,null,{"$f":"HVAC!BB33","v":"OR 30"},"30"]
["Healthcare - Hospital",null,null,null,{"$f":"HVAC!BB34","v":"OR 28"},"28"]
["Healthcare - Medical buildings and clinics",null,null,null,{"$f":"HVAC!BB35","v":"ID 35"},"35"]
["Healthcare - Nursing homes",null,null,null,{"$f":"HVAC!BB36","v":"ID 23"},"23"]
["Healthcare - other",null,null,null,{"$f":"HVAC!BB37","v":"ID 10"},"10"]
["Hotel banquet/conference/exhibition hall",null,null,null,{"$f":"HVAC!BB38","v":"ID 9"},"9"]
["Hotel/motel",null,null,null,{"$f":"HVAC!BB39","v":"ID 6"},"6"]
["Industrial",null,null,null,{"$f":"HVAC!BB40","v":"ID 6A"},"6A"]
["Irrigation",null,null,null,{"$f":"HVAC!BB41","v":"CA 48"},"48"]
["Laboratory spaces",null,null,null,{"$f":"HVAC!BB42","v":"CA 36"},"36"]
["Laboratory/Scientific",null,null,null,{"$f":"HVAC!BB43","v":"CA 32"},"32"]
["Laundries",null,null,null,{"$f":"HVAC!BB44","v":"CA 25"},"25"]
["Library",null,null,null,{"$f":"HVAC!BB45","v":"CA PA20"},"PA20"]
["Mall",null,null,null,{"$f":"HVAC!BB46","v":0}]
["Manufactured Home",null,null,null,{"$f":"HVAC!BB47","v":0}]
["Manufacturing Facility",null,null,null,{"$f":"HVAC!BB48","v":0}]
["Mixed use"]
["Mobile Home"]
["Multi-Family"]
["Museum/exhibit"]
["Office building, office/administrative areas"]
["Other"]
["Parking Garage"]
["Penitentiary"]
["Police/Fire Station"]
["Post Office"]
["Recreation"]
["Religious Building"]
["Retail/wholesale store"]
["School"]
["School - University"]
["School preK-12 - buildings/classrooms/daycare centers"]
["Service"]
["Single Dwelling"]
["Sports Arena"]
["Theater - motion picture"]
["Theater - performing arts"]
["Town Hall"]
["Transportation"]
["Tree fruit storage"]
["Warehouse - storage areas"]

{"sheet":"CFR 10.430.32","index":6,"n_rows":0,"n_cols":0,"rows_kept":0,"cut":false,"hidden":true,"merged":[]}

{"sheet":"IECC 2009","index":7,"n_rows":0,"n_cols":0,"rows_kept":0,"cut":false,"hidden":true,"merged":[]}

{"sheet":"IECC 2012","index":8,"n_rows":0,"n_cols":0,"rows_kept":0,"cut":false,"hidden":true,"merged":[]}

{"sheet":"Title 24-2013","index":9,"n_rows":0,"n_cols":0,"rows_kept":0,"cut":false,"hidden":true,"merged":[]}

{"sheet":"CFR Title 10.431.97","index":10,"n_rows":0,"n_cols":0,"rows_kept":0,"cut":false,"hidden":true,"merged":[]}

{"sheet":"WSEC 2015","index":11,"n_rows":0,"n_cols":0,"rows_kept":0,"cut":false,"hidden":true,"merged":[]}

{"sheet":"Change Log","index":12,"n_rows":42,"n_cols":6,"rows_kept":42,"cut":false,"hidden":true,"merged":[]}
["Date","Change Description","Name","Previous Revision #","New Revision #","Current Revision\n(click to check)"]
["2012-08-16","updated RMP rates (ID, UT, WY)","Troy Williams","071412","071412.2"]
["2013-05-15","Layout-Addition of a \"False-front\" to collect information for the application print out and allow changes in the look of the calculator without changing any calculations.\n\nAddition of application print out option- user may fillout information in the calculator tool and has the option of printing an application for incentives. A printed copy of the \"false-front\" will be included in the application print out. \n\nAdditional help buttons-Help buttons have been added to aid the user by providing information and  links to AHRI directory and applicable state HVAC catalog.\n\nAutomatic equipment size to tons- Useful information for the customer and processors\n\nCost/savings information for individual equipment lines- Previous versions calculated this information for the entire project. Information for each equipment line aids the Trade ally to properly inform the customer and aids the customer in decision making.\n\nAddition of a program requirements tab-Upon selection of  a project state the user may view the minimum efficiency program requirements to qualify for incentives. This information is limited to the equipment requiring calculation using this tool. The user may also find project specific minimum efficiency requirements upon the selection of an equipment type, size, and where applicable a system type.\n\nUpdates to baseline requirements to allign with state code: UT-IECC 2012, WA-WSEC 2012\n\nIncreased functionality to allow input, savings and incentive calculations for: groundsource heat pumps, groundwater source heat pumps, water cooled air conditioners, evaporatively cooled air conditioners.\n\nUpdates to rate schedules","Troy Williams, \nJake DeMann",71412.2,"070113.1"]
["2013-07-02","Updates to rate schedules","Jake DeMann","070113.1","070113.2"]
["2013-12-27","WA now exports to wattsmart Business application. Note: General application has not yet been updated","Jake DeMann",70113.2,"010114.1"]
["2014-01-07","Updated rates, using Rates for Software 1-1-2014","Jake DeMann","010114.1","010114.2"]
["2014-03-05","Revised incentive calculations to calculate from equipment tons rounded to the nearest tenth","Jake DeMann","010114.2","010114.3"]
["2014-06-01","Functionality increased to allow VRF heat pump (air-cooled and water-source only) cost, savings and incentive calculations. \n           Functionality added for all states, active only in UT and WA, disabled in CA, ID, WY\n           Air source VRF heat pumps (multi-split, multi-split with heat recovery)\n          Water source VRF heat pumps (multi-split, multi-split with heat recovery)\n          Calculation methodology the same as all other equipment types, costs developed through survey results. Baseline is  \n             code required efficiencies, program minimum efficiency requirements are CEE Tier 1 or better.\n          Program requirements updated to include VRF requirements\n          \nCode/standard label updates (UT to IECC 2012, CA to Title 24-2013)","Jake DeMann","010114.3","070114.1"]
["2014-07-15","QC revisions- help tab codes, tariff dates\n                         -spelling correction for VRF multisplit w/heat recovery to match user drop down selection to tool calculations\n                        -water source heat pump pre-filling (IEER, COP) programing error correction","Jake DeMann","070114.1","070114.2"]
["2014-10-27","Idaho changes:\n- Updated tariff number and effective date\n- VRF heat pumps added to HVAC Type drop-down (CA and WY territories will continue to omit this option)\n- Program name updated to wattsmart Business\n- Application printout updated to general application/wattsmart business format\n\nOther changes:\n- For projects with invoice dates before effective tariff dates:\no Messaging added to contact coordinator for applicable calculator tool\no Application will not print for these projects\n","Jake DeMann","'070114.2","110114.1"]
["2014-11-17","Fix equipment selection bug","Jake DeMann","110114.1","110114.2"]
["2014-11-18","Revised version # and effective date for ID","Jake DeMann","110114.2","111314.1"]
["2014-11-24","- WY tariff schedule revised to 140\n- WY tariff effective date revised to December 1, 2014\n- WY messaging/application revised to wattsmart Business\n- WY incentive levels revised to $25/ton, $50/ton, $75/ton (previously $50/ton, $75/ton, $100/ton)\n- VRF functionality allowed for WY projects\n- WY baseline updated to IECC 2009 \n","Jake DeMann","111314.1","beta 120114"]
["2014-12-05","- ID baseline updated to IECC 2012 (matches UT)","Jake DeMann","beta 120114","beta 010115"]
["2014-12-15","Finalized tool, official tool version",null,"beta 010115","010115.1"]
["2015-05-01","- CA tariff schedule revised to 140\n- CA tariff effective date revised to December 1, 2014\n- CA messaging/application revised to wattsmart Business\n- CA incentive levels revised to $25/ton, $50/ton, $75/ton (previously $50/ton, $75/ton, $100/ton)\n- VRF functionality allowed for CA projects\n- Single phase air-cooled heat pumps and air conditioner baselines adjusted to match CFR 10-430.32 in all states\n- Incentives adjusted for single phase air-cooled heat pumps and air conditioners to match Utah tariff effective 5-15-15 and Idaho tariff effective 5-16-15\n","Jake DeMann",10115.1,"beta 051615"]
["2015-05-01","-Incentives adjusted for single phase air-cooled heat pumps and air conditioners to match Washington tariff effective 6-1-2015","Jake DeMann","051615.1","beta 060115"]
["2015-05-21","Changed formula in N12 on main sheet to state A-140 for CA","Joe Larsen","beta 060115","060115.1"]
["2015-11-20","-Updated baseline requirements for watersource heat pumps to match Federal regulations effective Oct. 9, 2015 (see tab titled \"CFR Title 10.431.97\")\n-Incentives adjusted for single phase air-cooled heat pumps and air conditioners to match Wyoming tariff effective 1-1-2016?","Jake DeMann","060115.1","010116.1"]
["2016-02-22","Corrected rate schedule validation look-up ranges","Jake DeMann","010116.1","010116.2"]
["2016-06-10","Adjusted WA baselines to match WSEC 2015\nAdjusted UT baselines to match IECC 2015\nAdjusted minimum efficiency requirements to match proposed WA tariff","Jake DeMann","010116.2","beta 071116.1"]
["2016-07-07","Updated rates, using Rates for Software 6-17-2016","Jake DeMann","beta 071116.1","071116.1"]
["2016-11-15","Unlocked version for updating\nModified air cooled VRF heat-pump baselines and minimum efficiency requirements. Baselines now align with WSEC 2015 values for unitary air conditioners. Baseline decisions were based on ASHRAE 90.1 -2013 Appendix G Selection and CBECS 2012 Building Stock Characteristics for the Pacific Region.  Used to determine what is the most probable HVAC system type VRF will be replacing or installed in place of.","Jake DeMann",null,"beta 010117.1"]
["2017-01-06","Revised version # and effective date for WA\nLocked tool","Jake DeMann","beta 010117.1","010117.1"]
["2017-11-01","WA incentive fix","Jake DeMann","010117.1","010117.2"]
["2017-01-23","UT and ID program change updates and Federal Baseline adjustments","Jake DeMann","010117.2","010117.3"]
["2018-12-26","WY, UT, WA rate change.  Update WY and WA CEE specifications effective 1/1/2019","Van Le","010117.3",122618]
["2019-02-01","WY, UT, WY rate correction.  Update UT CEE specifications effective 1/1/2019","Van Le",122618,122618.1]
["2019-02-19","WA CEE specification correction. CA & ID rate updates","Van Le",122618.1,"122618.1.2"]
["2019-02-21","VRF incentive adjustment to $125/ton.  Added Incentive ($/ton) (column H) on the \"HVAC-Tool\" Tab.  Update language for the General application the \"Application NEW\" tab; add hyperlinks to IRS W-9 form and the \"find a vendor\" search. ","Van Le","122618.1.2",122618.2]
["2019-03-08","Update tools for the UT 4/24/2019 tariff change ","Van Le",122618.2,"042419"]
["2019-07-01","Fix VRF HP efficiency requirement for UT","Van Le","042419","042419.2"]
["2019-07-16","Fix efficiency requirements for ID, UT, WY, and WA.  Update rates using Rates for Software 6.18.2019","Van Le","042419.2","042419.3"]
["2020-01-13","Updated minimum efficiencies to match new WA program. Update rates using Rates for Software 11.22.2019 for WA.","Drew Petersen","042419.3","010120.1"]
["2020-02-28","Updated minimum efficiencies for Utah 2020 tariff. Update rates using Rates for Software 11.22.2019 for UT and WY. Fixed minor eligibility issues outlined in the HVAC Calculator Tool QC 022820 Google document. https://docs.google.com/document/d/1EzsO6je0Sqt-F_2D3E_tZKDqTe5ZXgRT7pHhxwJzrX4/edit#","Van Le","010120.1","010120.2"]
["2020-07-01","Update Wyoming with bonus incentives from Covid-19 effective 6/22/2020","Van Le",10120.200000000001,70120.100000000006]
["2020-07-30","Update Washington with bonus incentives from Covid-19 effective 8/1/2020","Van Le",70120.100000000006,73020.100000000006]
["2020-10-21","Fix incentive calculation for HP replacing ER (HVAC tab, col Q).  Add deemed incremental cost HP replacing ER for payback calculation.\nUpdate California to the latest tariff effective 9/24/2020.\nFix WA minimum eligibility requirements, which were previously incorrect\nRevise lock tool macro to hide the \"Program Requirements\" tab. The tab needs revision for a more professional look; however, it is rarely used, so it should stay hidden for now.\nUpdate some information in the \"Lookups\" tab, but this tab needs more work.","Van Le",73020.100000000006,73020.2]
["2020-10-27","Expand ground-source heat pump to Air-to-Air and Water-to-Water with loop types in Wyoming.  Minimum efficiency requirement is Energy Star","Van Le",73020.2,73020.3]
["2020-11-10","Add baseline and minimum efficiency EER reqs to AC in all states (EER = 11).  The program doesn't require equipment to meet a specific EER, but the kW and deemed cost is not calculated correctly without these values coded into the tool.","Van Le",70320.2,70320.399999999994]
["2021-01-05","Moved the Wyoming VRF efficiency reqs from CD:CI (Tier 3) to BR:BW (Tier 1).  Change the Tier 1 incentives to $125 in Wyoming (cell BU311).  This change is to accommodate the higher VRF incentives ($75 to $125/ton) effective 10/2/2020.  This incentive increase is not part of the Covid-19 bonus incentive. \n\nChanged the efficiency reqs for VRF < 65 kBtu in California to be the same as the baseline.","Van Le",70320.399999999994,70320.5,"a"]
["Next time","If the bonus incentive is removed, remember to revise the California incentives so it calculates correctly (HVAC tab, row 189)"]

{"sheet":"Sheet1","index":13,"n_rows":0,"n_cols":0,"rows_kept":0,"cut":false,"hidden":true,"merged":[]}